Workbook

Sheet Information
A1: These template sheets come with some scores already entered into cells.
A3: These scores act as placeholders and demonstrate what scores are necessary. The only sheets that require any user input are the
A4: "Input page Early Years" (green tab below) and the
A5: "Input page School-Age" (blue tab below).
A6: All cells, except those requiring entry, are protected. Use the mouse or the TAB key to move from input cell to input cell.
A8: ****Be sure to delete any scores that do not pertain to your particular case.****
A10: We, Ron Dumont and John Willis, and NCS Pearson, take no responsibility for any errors made while using these templates.
A12: There may be some differences between some of the templates reporting and data in the DAS-II Manuals.
A14: The Percentiles reported here are simple SS to Percentile lookups. They are based upon the normal curve distribution.
A16: The Composite and FSIQ ranges are based upon a Standard Error of Estimate formula (SEe).
A18: For updates for this template - check the webpages at:
A20: http://alpha.fdu.edu/~dumont/psychology/

Sheet Input page Early Years
B2: Name: | D2: A D | T2: =YEAR(D3) -> 2008 | U2: =MONTH(D3) -> 11 | V2: =DAY(D3) -> 17 | W2: =IF(X3>Y2,T2-1,T2) -> 2008 | X2: =IF(X3>Y2,Y2+12,Y2) -> 11 | Y2: =IF(Z3>V2,U2-1,U2) -> 11 | Z2: =IF(Z3>V2,V2+30,V2) -> 17
B3: Date of Test: | D3: 2008-11-17 | H3: Age: | J3: =AB4 -> 4 years, 6 months, 0 days | W3: =YEAR(D4) -> 2004 | X3: =MONTH(D4) -> 5 | Z3: =DAY(D4) -> 17
B4: Date of Birth: | D4: 2004-05-17 | H4: Date Analyzed: | J4: =NOW() -> 2014-02-11T13:44:26.090 | W4: =W2-W3 -> 4 | X4: =X2-X3 -> 6 | Z4: =Z2-Z3 -> 0 | AB4: =W4&" years, "&X4&X5&Z4&Z5 -> 4 years, 6 months, 0 days
X5: =IF(X4=1," month, "," months, ") -> months, | Z5: =IF(Z4=1," day"," days") -> days
D7: T Score
B8: Verbal Comprehension (Gc) | C8: VCom | D8: 53
B9: Picture Similarities (Gf) | C9: PSim | D9: 56 | T9: 2
B10: Naming Vocabulary (Gc) | C10: NVoc | D10: 62
B11: Pattern Construction (Gv) | C11: PCon | D11: 46
B12: =IF(T9=2,"Matrices (Gf)","[Matrices (Gf)]") -> Matrices (Gf) | C12: Mat | D12: 63
B13: =IF(T9=2,"Copying (Gv)","[Copying (Gv)]") -> Copying (Gv) | C13: Copy | D13: 49
D14: Standard Score
B16: Verbal | D16: 113
B17: Nonverbal Reasoning | D17: 117
B18: Spatial | D18: 95
B19: GCA | D19: 111 | T19: 2
B20: SNV | D20: 107
D21: T Score
B22: Recall of Objects-Immediate (Glr) | C22: RObI | D22: 52
B23: Recall of Objects-Delayed (Glr) | C23: RObD
B24: Recall of Digits Forward (Gsm) | C24: DigF | D24: 50
B25: Recognition of Pictures (Gv) | C25: RPic | D25: 47
B26: Early Number Concepts (Gc/Gf) | C26: ENC | D26: 48
B27: Matching Letter Like Forms (Gv) | C27: MLLF | D27: 49
B28: Recall of Sequential Order (Gsm) | C28: SeqO
B29: Speed of Information Processing (Gs) | C29: SIP
B30: Recall of Digits Backward (Gsm) | C30: DigB
B31: Phonological Processing (Ga) | C31: PhP
B32: Rapid Naming (Gs) | C32: RNam
D33: Standard Score
B35: Working Memory
B36: Processing Speed
B37: School Readiness
B39: Phonological Processing (Ga) | D39: Ability | F39: SEm
C40: Task 1 (Rhyming)
D41: Ability | F41: SEm
C42: Task 2 (Blending)
D43: Ability | F43: SEm
C44: Task 3 (Deletion)
D45: Ability | F45: SEm
C46: Task 4 (Phoneme Identification and Segmentation)
B48: Rapid Naming (Gs) | D48: Ability | F48: Sem
C49: Simple Naming
D50: Ability | F50: Seem
C51: Complex Naming
D54: T Score
B55: Recall of Designs (Gv) | C55: RDes
B56: Word Definition (Gc) | C56: WDef
B57: Verbal Similarities (Gc) | C57: VSim
B58: Sequential & Quantitative Reasoning (Gf) | C58: SQR

Sheet Record form Early Years
B2: Name: | C2: =IF('Input page Early Years'!D2="","",'Input page Early Years'!D2) -> A D | J2: Date of Test: | K2: =IF('Input page Early Years'!D3="","",'Input page Early Years'!D3) -> 2008-11-17
B3: Age: | C3: =IF('Input page Early Years'!J3="","",'Input page Early Years'!J3) -> 4 years, 6 months, 0 days | J3: Date of Birth: | K3: =IF('Input page Early Years'!D4="","",'Input page Early Years'!D4) -> 2004-05-17
J4: Date Analyzed: | K4: =NOW() -> 2014-02-11T13:44:26.090 | T4: ='Input page Early Years'!T9 -> 2
B6: Core Subtest T Scores | F6: Verbal | H6: =IF('Input page Early Years'!T9=1, "Nonverbal","Nonverbal Reasoning") -> Nonverbal Reasoning | J6: Spatial | L6: GCA | N6: SNV | T6: Standard Score
D7: T Score | F7: =IF('Input page Early Years'!T9=1,"Lower","Upper") -> Upper | H7: =IF('Input page Early Years'!T9=1,"Lower","Upper") -> Upper | J7: =IF('Input page Early Years'!T9=1,"","Upper") -> Upper | L7: =IF('Input page Early Years'!T9=1,"Lower","Upper") -> Upper | N7: =IF('Input page Early Years'!T9=1,"","Upper") -> Upper | P7: Percentile
B8: Verbal Comprehension (Gc) | C8: VCom | D8: =IF('Input page Early Years'!D8="","",'Input page Early Years'!D8) -> 53 | F8: =IF(D8="","",D8) -> 53 | L8: =IF(D8="","",D8) -> 53 | P8: =IF(D8="","",LOOKUP(D8,ttopr)) -> 62 | T8: =100+((D8-50)/10)*15 -> 104.5
B9: Picture Similarities (Gf) | C9: PSim | D9: =IF('Input page Early Years'!D9="","",'Input page Early Years'!D9) -> 56 | H9: =IF(D9="","",D9) -> 56 | L9: =IF(D9="","",D9) -> 56 | N9: =IF('Input page Early Years'!T9=1,0,IF(D9="","",D9)) -> 56 | P9: 73 | T9: 109
B10: Naming Vocabulary (Gc) | C10: NVoc | D10: =IF('Input page Early Years'!D10="","",'Input page Early Years'!D10) -> 62 | F10: =IF(D10="","",D10) -> 62 | L10: =IF(D10="","",D10) -> 62 | P10: 88 | T10: 118
B11: Pattern Construction (Gv) | C11: PCon | D11: =IF('Input page Early Years'!D11="","",'Input page Early Years'!D11) -> 46 | H11: =IF(T4=1,D11,0) -> 0 | J11: =IF('Input page Early Years'!T9=1,0,IF(D11="","",D11)) -> 46 | L11: =IF(D11="","",D11) -> 46 | N11: =IF('Input page Early Years'!T9=1,0,IF(D11="","",D11)) -> 46 | P11: 34 | T11: 94 | V11: =COUNT(L8:L11) -> 4 | W11: =COUNT(L8:L13) -> 6 | X11: =COUNT(N8:N13) -> 4
B12: ='Input page Early Years'!B12 -> Matrices (Gf) | C12: Mat | D12: =IF('Input page Early Years'!D12="","",'Input page Early Years'!D12) -> 63 | H12: =IF('Input page Early Years'!T9=1,0,IF(D12="","",D12)) -> 63 | L12: =IF('Input page Early Years'!T9=1,0,IF(D12="","",D12)) -> 63 | N12: =IF('Input page Early Years'!T9=1,0,IF(D12="","",D12)) -> 63 | P12: 90 | T12: 119.5 | V12: =SUM(L8:L11) -> 217 | W12: =SUM(L8:L13) -> 329 | X12: =SUM(N8:N13) -> 214
B13: ='Input page Early Years'!B13 -> Copying (Gv) | C13: Copy | D13: =IF('Input page Early Years'!D13="","",'Input page Early Years'!D13) -> 49 | J13: =IF('Input page Early Years'!T9=1,0,IF(D13="","",D13)) -> 49 | L13: =IF('Input page Early Years'!T9=1,0,IF(D13="","",D13)) -> 49 | N13: =IF('Input page Early Years'!T9=1,0,IF(D13="","",D13)) -> 49 | P13: 48 | T13: 98.5 | V13: =IF(V11<4,"",ROUND((V12/4),0)) -> 54 | W13: =IF(W11<6,"",ROUND((W12/6),0)) -> 55 | X13: =IF(X11<4,"",ROUND((X12/4),0)) -> 54
B14: Cluster/Composite Scores | V14: =IF('Input page Early Years'!T9=1,V13,W13) -> 55
V15: 2 | W15: =IF(V15=1,90,95) -> 95
D16: Sum of Core T scores | F16: =IF(COUNT(F8:F13)<2,"","("&SUM(F8:F15)&")") -> (115) | H16: =IF('Input page Early Years'!T9=1,T16,T17) -> (119) | J16: =IF('Input page Early Years'!T9=1,"",IF(COUNT(J8:J13)<2,"","("&SUM(J8:J15)&")")) -> (95) | L16: =IF(COUNT(L8:L13)<6,"","("&SUM(L8:L15)&")") -> (329) | N16: =IF('Input page Early Years'!T9=1,"","("&SUM(N8:N15)&")") -> (214) | T16: =IF(AND('Input page Early Years'!T9=1,COUNT(H9:H11)<2),"","("&SUM(H9+H11)&")") -> (56) | U16: v | V16: 0.9 | W16: =100+V16*(F17-100) -> 111.7 | X16: =15*SQRT((1-V16)*(V16)) -> 4.5 | Y16: =IF($W$15=90,X16*1.65,X16*1.96) -> 8.82 | Z16: =ROUND(W16-Y16,0) -> 103 | AA16: =ROUND(W16+Y16,0) -> 121 | AB16: =SUM(F8:F13) -> 115 | AC16: =SUM(H8:H13) -> 119 | AD16: =SUM(J8:J13) -> 95 | AE16: =SUM(L8:L13) -> 329 | AF16: =SUM(N8:N13) -> 214 | AG16: =SUM(F33:F38) -> 0 | AH16: =SUM(H33:H38) -> 0 | AI16: =SUM(J32:J37) -> 97
D17: Standard Score | F17: =IF('Input page Early Years'!D16="","",'Input page Early Years'!D16) -> 113 | H17: =IF('Input page Early Years'!D17="","",'Input page Early Years'!D17) -> 117 | J17: =IF('Input page Early Years'!D18="","",'Input page Early Years'!D18) -> 95 | L17: =IF('Input page Early Years'!D19="","",'Input page Early Years'!D19) -> 111 | N17: =IF('Input page Early Years'!D20="","",'Input page Early Years'!D20) -> 107 | T17: =IF(AND('Input page Early Years'!T9=2,COUNT(H9:H12)<3),"","("&SUM(H9+H12)&")") -> (119) | U17: nv | V17: 0.89 | W17: =100+V17*(H17-100) -> 115.13 | X17: =15*SQRT((1-V17)*(V17)) -> 4.693346354 | Y17: =IF($W$15=90,X17*1.65,X17*1.96) -> 9.198958854 | Z17: =ROUND(W17-Y17,0) -> 106 | AA17: =ROUND(W17+Y17,0) -> 124 | AB17: =LOOKUP(AB16,Vts) -> 112 | AC17: =LOOKUP(AC16,NVts) -> 115 | AD17: =LOOKUP(AD16,Spts) -> 95 | AE17: =LOOKUP(AE16,gcasum) -> 109 | AF17: =LOOKUP(AF16,gcasum) -> 73 | AG17: =LOOKUP(AG16,wmss) ->  | AH17: =LOOKUP(AH16,psss) ->  | AI17: =LOOKUP(AI16,gcasum) -> 40
D18: Percentile | F18: =IF(F17="","",LOOKUP(F17,sstopr)) -> 81 | H18: =IF(H17="","",LOOKUP(H17,sstopr)) -> 87 | J18: =IF(J17="","",LOOKUP(J17,sstopr)) -> 37 | L18: =IF(L17="","",LOOKUP(L17,sstopr)) -> 77 | N18: =IF(N17="","",LOOKUP(N17,sstopr)) -> 68 | U18: sp | V18: 0.95 | W18: =100+V18*(J17-100) -> 95.25 | X18: =15*SQRT((1-V18)*(V18)) -> 3.269174208 | Y18: =IF($W$15=90,X18*1.65,X18*1.96) -> 6.407581447 | Z18: =ROUND(W18-Y18,0) -> 89 | AA18: =ROUND(W18+Y18,0) -> 102 | AB18: v | AC18: nv | AD18: sp | AE18: gca | AF18: snc | AG18: wm | AH18: ps | AI18: sr
B19: Confidence Interval | F19: =IF(F18="","",Z16&" to "&AA16) -> 103 to 121 | H19: =IF(H18="","",Z17&" to "&AA17) -> 106 to 124 | J19: =IF(J18="","",Z18&" to "&AA18) -> 89 to 102 | L19: =IF(L18="","",Z24&" to "&AA24) -> 104 to 117 | N19: =IF(N18="","",Z25&" to "&AA25) -> 100 to 113 | U19: sr | V19: 0.9 | W19: =100+V19*(J42-100) ->  | X19: =15*SQRT((1-V19)*(V19)) -> 4.5 | Y19: =IF($W$15=90,X19*1.65,X19*1.96) -> 8.82 | Z19: =ROUND(W19-Y19,0) ->  | AA19: =ROUND(W19+Y19,0) -> 
D20: Between Cluster Difference | F20: =IF(F17="","",V61) ->  | H20: =IF(H17="","",IF(sp="","",V63)) -> NVR > Sp | J20: =IF(J17="","",V62) -> V > Sp
D21: Within Cluster Differences | F21: =IF(F17="","",V76) ->  | H21: =IF('Input page Early Years'!T9=1,IF(H17="","",W77),IF(H17="","",V77)) ->  | J21: =IF(J17="","",V78) -> 
D22: Mean Core T Score | L22: =V14 -> 55 | N22: =IF('Input page Early Years'!T9=1,"",X13) -> 54 | U22: wm | V22: 0.94 | W22: =100+V22*(F42-100) ->  | X22: =15*SQRT((1-V22)*(V22)) -> 3.562302626 | Y22: =IF($W$15=90,X22*1.65,X22*1.96) -> 6.982113147 | Z22: =ROUND(W22-Y22,0) ->  | AA22: =ROUND(W22+Y22,0) -> 
F23: Verbal | H23: Nonverbal Reasoning | J23: Spatial | L23: GCA | N23: SNV | U23: ps | V23: 0.89 | W23: =100+V23*(H42-100) ->  | X23: =15*SQRT((1-V23)*(V23)) -> 4.693346354 | Y23: =IF($W$15=90,X23*1.65,X23*1.96) -> 9.198958854 | Z23: =ROUND(W23-Y23,0) ->  | AA23: =ROUND(W23+Y23,0) -> 
F24: (Gc) | H24: (Gf) | J24: (Gv) | L24: (g) | N24: (g) | U24: gca | V24: 0.95 | W24: =100+V24*(L17-100) -> 110.45 | X24: =15*SQRT((1-V24)*(V24)) -> 3.269174208 | Y24: =IF($W$15=90,X24*1.65,X24*1.96) -> 6.407581447 | Z24: =ROUND(W24-Y24,0) -> 104 | AA24: =ROUND(W24+Y24,0) -> 117
U25: snv | V25: 0.95 | W25: =100+V25*(N17-100) -> 106.65 | X25: =15*SQRT((1-V25)*(V25)) -> 3.269174208 | Y25: =IF($W$15=90,X25*1.65,X25*1.96) -> 6.407581447 | Z25: =ROUND(W25-Y25,0) -> 100 | AA25: =ROUND(W25+Y25,0) -> 113
B26: Core Subtest T Scores | F26: Working Memory | H26: Processing Speed | J26: School Readiness | S26: Standard Score
D27: T Score | F27: (Gsm) | H27: (Gs) | J27: (5:0-8:11) | L27: Percentile | U27: v v GCA | V27: =CHOOSE(btwcl, 11,15,19) -> 15 | W27: =IF(ABS(verb-gca)>=V27,1,0) -> 0 | X27: =verb-gca -> 2 | Y27: =IF(W27=0,"",IF(X27>0,"V > GCA","V < GCA")) -> 
B28: Recall of Objects-Immediate (Glr) | C28: RObI | D28: =IF('Input page Early Years'!D22="","",'Input page Early Years'!D22) -> 52 | L28: =IF(D28="","",LOOKUP(D28,ttopr)) -> 58 | S28: =100+((D28-50)/10)*15 -> 103 | U28: NV v GCA | V28: =CHOOSE(btwcl, 9,12,15) -> 12 | W28: =IF(ABS(nverb-gca)>=V28,1,0) -> 0 | X28: =nverb-gca -> 6 | Y28: =IF(W28=0,"",IF(X28>0,"NV > GCA","NV < GCA")) -> 
B29: Recall of Objects-Delayed (Glr) | C29: RObD | D29: =IF('Input page Early Years'!D23="","",'Input page Early Years'!D23) ->  | U29: SP v GCA | V29: =CHOOSE(btwcl, 9,13,17) -> 13 | W29: =IF(ABS(sp-gca)>=V29,1,0) -> 1 | X29: =sp-gca -> -16 | Y29: =IF(W29=0,"",IF(X29>0,"Sp > GCA","Sp < GCA")) -> Sp < GCA
B30: Recall of Digits Forward (Gsm) | C30: DigF | D30: =IF('Input page Early Years'!D24="","",'Input page Early Years'!D24) -> 50 | L30: 50 | S30: 100
B31: Recognition of Pictures (Gv) | C31: RPic | D31: =IF('Input page Early Years'!D25="","",'Input page Early Years'!D25) -> 47 | L31: 38 | S31: 95.5
B32: Early Number Concepts (Gc/Gf) | C32: ENC | D32: =IF('Input page Early Years'!D26="","",'Input page Early Years'!D26) -> 48 | J32: =IF(D32="","",D32) -> 48 | L32: 42 | S32: 97 | V32: enc | W32: =J32 -> 48 | X32: =W32-W33 -> -1 | Y32: =IF(X32=0,"",IF(X32>0,"ENC > MLLF","ENC < MLLF")) -> ENC < MLLF | Z32: =IF(ABS(X32)>10,Y32,"") -> 
B33: Matching Letter Like Forms (Gv) | C33: MLLF | D33: =IF('Input page Early Years'!D27="","",'Input page Early Years'!D27) -> 49 | J33: =IF(D33="","",D33) -> 49 | L33: 48 | S33: 98.5 | V33: mllf | W33: =J33 -> 49 | X33: =W33-W34 ->  | Y33: =IF(X33=0,"",IF(X33>0,"MLLF > PhP","MLLF < PhP")) ->  | Z33: =IF(ABS(X33)>9,Y33,"") -> 
B34: Recall of Sequential Order (Gsm) | C34: SeqO | D34: =IF('Input page Early Years'!D28="","",'Input page Early Years'!D28) ->  | F34: =IF(D34="","",D34) ->  | V34: php | W34: =J37 ->  | X34: =W32-W34 ->  | Y34: =IF(X34=0,"",IF(X34>0,"ENC > PhP","ENC < PhP")) ->  | Z34: =IF(ABS(X34)>7,Y34,"") ->  | AA34: =Z32&" "&Z33&" "&Z34 -> 
B35: Speed of Information Processing (Gs) | C35: SIP | D35: =IF('Input page Early Years'!D29="","",'Input page Early Years'!D29) ->  | H35: =IF(D35="","",D35) -> 
B36: Recall of Digits Backward (Gsm) | C36: DigB | D36: =IF('Input page Early Years'!D30="","",'Input page Early Years'!D30) ->  | F36: =IF(D36="","",D36) -> 
B37: Phonological Processing (Ga) | C37: PhP | D37: =IF('Input page Early Years'!D31="","",'Input page Early Years'!D31) ->  | J37: =IF(D37="","",D37) -> 
B38: Rapid Naming (Gs) | C38: RNam | D38: =IF('Input page Early Years'!D32="","",'Input page Early Years'!D32) ->  | H38: =IF(D38="","",D38) -> 
B39: Diagnostic Cluster Scores
D41: Sum of Core T scores | F41: =V42 ->  | H41: =V43 ->  | J41: =V44 ->  | X41: =gca -> 111 | Y41: gca
D42: Standard Score | F42: =IF(F41="","",'Input page Early Years'!D35) ->  | H42: =IF(H41="","",'Input page Early Years'!D36) ->  | J42: =IF(J41="","",'Input page Early Years'!D37) ->  | V42: =IF(COUNT(F34:F37)<2,"",F34+F36) ->  | X42: =wm ->  | Y42: wm | Z42: =IF(X42="",0,IF(X41="",0,(X42-X41))) -> 0 | AA42: =IF(Z42=0,"",IF(Z42>0,"WM > GCA","WM < GCA")) ->  | AB42: =IF(ABS(Z42)>8,AA42,"") -> 
D43: Percentile | F43: =IF(F41="","",LOOKUP(F42,sstopr)) ->  | H43: =IF(H41="","",LOOKUP(H42,sstopr)) ->  | J43: =IF(J41="","",LOOKUP(J42,sstopr)) ->  | V43: =IF(COUNT(H35:H38)<2,"",H35+H38) ->  | X43: =ps ->  | Y43: ps | Z43: =IF(X44="",0,IF(X41="",0,(X44-X41))) -> 0 | AA43: =IF(Z43=0,"",IF(Z43>0,"PS > GCA","PS < GCA")) ->  | AB43: =IF(ABS(Z43)>10,AA43,"") -> 
D44: Confidence Interval | F44: =IF(F41="","",Z22&" to "&AA22) ->  | H44: =IF(H41="","",Z23&" to "&AA23) ->  | J44: =IF(J41="","",Z19&" to "&AA19) ->  | V44: =IF(COUNT(J32:J37)<3,"",J32+J33+J37) ->  | X44: =sr ->  | Y44: schr | Z44: =IF(X44="",0,IF(X41="",0,(X44-X41))) -> 0 | AA44: =IF(Z44=0,"",IF(Z44>0,"SR > GCA","SR < GCA")) ->  | AB44: =IF(ABS(Z44)>8,AA44,"") ->  | AC44: =IF(X44="",0,IF(X42="",0,(X44-X42))) -> 0 | AD44: =IF(AC44=0,"",IF(AC44>0,"SR < WM","SR > WM")) ->  | AE44: =IF(ABS(AC44)>9,AD44,"") ->  | AF44: =IF(X44="",0,IF(X43="",0,(X44-X43))) -> 0 | AG44: =IF(AF44=0,"",IF(AF44>0,"SR < PS","SR > PS")) ->  | AH44: =IF(ABS(AF44)>11,AG44,"") ->  | AI44: =AE44&" "&AH44 -> 
D45: Difference from GCA | F45: =IF(F41="","",AB42) ->  | H45: =IF(H41="","",AB43) ->  | J45: =IF(J41="","",AB44) -> 
D46: Between Cluster Difference | F46: =IF(OR(F41="",H41=""),"",V64) ->  | J46: =IF(J41="","",AI44) -> 
D47: Within Cluster Differences | F47: =IF(F41="","",V79) ->  | H47: =IF(H41="","",V80) ->  | J47: =IF(J41="","",AA34) ->  | AA47: 0 | AB47: 16 | AC47: 19 | AD47: 24 | AE47: 30 | AF47: 37 | AG47: 48 | AH47: vvsnv vh
F48: Working Memory | H48: Processing Speed | J48: School Readiness | V48: 2 | W48: =CHOOSE(btwcl,".15",".05",".01") -> .05 | AA48: 0 | AB48: 13 | AC48: 18 | AD48: 24 | AE48: 30 | AF48: 35 | AG48: 42 | AH48: vvsnv vl
F49: (Gsm) | H49: (Gs) | J49: (5:0-8:11) | AA49: 0 | AB49: 15 | AC49: 19 | AD49: 25 | AE49: 30 | AF49: 38 | AG49: 42 | AH49: vvssp vh
V50: Score 1 | W50: Score2 | Y50: <=> | AA50: 0 | AB50: 15 | AC50: 19 | AD50: 23 | AE50: 30 | AF50: 36 | AG50: 44 | AH50: vvssp vl
C51: ="Comparisons at "&W48&" level" -> Comparisons at .05 level | H51: Difference | J51: Significance | L51: Frequency | U51: v vs nv | V51: =verb -> 113 | W51: =nverb -> 117 | X51: =CHOOSE(btwcl,11,15,19) -> 15 | Y51: =IF(V51=W51,2,IF(V51>W51,1,3)) -> 3 | Z51: =IF(Y51=2,"",IF(Y51=1,LOOKUP(ABS(H52),AA47:AG47,AA65:AG65),LOOKUP(ABS(H52),AA48:AG48,AA65:AG65))) -> >15 | AA51: 0 | AB51: 15 | AC51: 19 | AD51: 25 | AE51: 33 | AF51: 38 | AG51: 42 | AH51: nvvssp nvh
F52: =IF(V51=W51,"Verbal ("&F17&") = Nonverbal Reasoning ("&H17&") ",IF(V51>W51,"Verbal ("&F17&") > Nonverbal Reasoning ("&H17&") ","Verbal ("&F17&") < Nonverbal Reasoning ("&H17&") ")) -> Verbal (113) < Nonverbal Reasoning (117) | H52: =IF(OR(V51="",W51=""),"",V51-W51) -> -4 | J52: =IF(OR(V51="",W51=""),"",IF(ABS(H52)>=X51,"Yes","No")) -> No | L52: =IF(OR(V51="",W51=""),"",Z51&"%") -> >15% | U52: v vs sp | V52: =verb -> 113 | W52: =sp -> 95 | X52: =CHOOSE(btwcl,9,12,15) -> 12 | Y52: 1 | Z52: =IF(Y52=2,"",IF(Y52=1,LOOKUP(ABS(H53),AA49:AG49,AA65:AG65),LOOKUP(ABS(H53),AA50:AG50,AA65:AG65))) -> 10 | AA52: 0 | AB52: 16 | AC52: 19 | AD52: 24 | AE52: 30 | AF52: 32 | AG52: 35 | AH52: nvvssp nvl
F53: =IF(V53=W53,"Nonverbal ("&H17&") = Spatial ("&J17&")",IF(V53>W53,"Nonverbal ("&H17&")> Spatial ("&J17&")","Nonverbal ("&H17&") < Spatial ("&J17&")")) -> Nonverbal (117)> Spatial (95) | H53: =IF(OR(V53="",W53=""),"",V53-W53) -> 22 | J53: =IF(OR(V53="",W53=""),"",IF(ABS(H53)>=X53,"Yes","No")) -> Yes | L53: =IF(OR(V53="",W53=""),"",Z52&"%") -> 10% | U53: nv vs sp | V53: =nverb -> 117 | W53: =sp -> 95 | X53: =CHOOSE(btwcl,9,13,17) -> 13 | Y53: 1 | Z53: =IF(Y53=2,"",IF(Y53=1,LOOKUP(ABS(H54),AA51:AG51,AA65:AG65),LOOKUP(ABS(H54),AA52:AF52,AA65:AG65))) -> 15 | AA53: 0 | AB53: 18 | AC53: 22 | AD53: 30 | AE53: 38 | AF53: 45 | AG53: 49 | AH53: wmvspsp wmh
F54: =IF(V53=W53,"Verbal ("&F17&")= Spatial ("&J17&")",IF(V53>W53,"Verbal ("&F17&")> Spatial ("&J17&")","Verbal ("&F17&") < Spatial ("&J17&")")) -> Verbal (113)> Spatial (95) | H54: =IF(OR(V52="",W52=""),"",V52-W52) -> 18 | J54: =IF(OR(V52="",W52=""),"",IF(ABS(H54)>=X52,"Yes","No")) -> Yes | L54: =IF(OR(V52="",W52=""),"",Z53&"%") -> 15% | U54: wm vs ps | V54: =F42 ->  | W54: =H42 ->  | X54: =CHOOSE(btwcl,9,12,15) -> 12 | Y54: 2 | Z54: =IF(Y54=2,"",IF(Y54=1,LOOKUP(ABS(H58),AA53:AG53,AA65:AG65),LOOKUP(ABS(H58),AA54:AG54,AA65:AG65))) ->  | AA54: 0 | AB54: 16 | AC54: 20 | AD54: 26 | AE54: 34 | AF54: 35 | AG54: 37 | AH54: wmvspsp wml
F55: =IF(V51=W51,"Working Memory ("&wm&") = GCA ("&gca&") ",IF(V51>W51,"Working Memory ("&wm&") > GCA ("&gca&")","Working Memory ("&wm&") < GCA ("&gca&")")) -> Working Memory () < GCA (111) | H55: =IF(OR(V57="",W57=""),"",V57-W57) ->  | J55: =IF(OR(V57="",W57=""),"",IF(ABS(H55)>=X57,"Yes","No")) ->  | L55: =IF(OR(V57="",W57=""),"",Z57&"%") ->  | U55: wm vs schr | V55: =F42 ->  | W55: =J42 ->  | X55: =CHOOSE(btwcl,8,10,14) -> 10 | Y55: 2 | Z55: =IF(Y55=2,"",IF(Y55=1,LOOKUP(ABS(H59),AA55:AG55,AA65:AG65),LOOKUP(ABS(H59),AA56:AG56,AA65:AG65))) ->  | AA55: 0 | AB55: 12 | AC55: 15 | AD55: 19 | AE55: 23 | AF55: 26 | AG55: 36
F56: =IF(V52=W52,"Processing Speed ("&ps&") = GCA ("&gca&") ",IF(V52>W52,"Processing Speed ("&ps&") < GCA ("&gca&")","Processing Speed ("&ps&") > GCA ("&gca&")")) -> Processing Speed () < GCA (111) | H56: =IF(OR(V58="",W58=""),"",V58-W58) ->  | J56: =IF(OR(V58="",W58=""),"",IF(ABS(H56)>=X58,"Yes","No")) ->  | L56: =IF(OR(V58="",W58=""),"",Z58&"%") ->  | U56: sch vs ps | V56: =J42 ->  | W56: =H42 ->  | X56: =CHOOSE(btwcl,9,12,16) -> 12 | Y56: 2 | Z56: =IF(Y56=2,"",IF(Y56=1,LOOKUP(ABS(H60),AA60:AG60,AA65:AG65),LOOKUP(ABS(H60),AH60:AN60,AA65:AG65))) ->  | AA56: 0 | AB56: 13 | AC56: 17 | AD56: 22 | AE56: 26 | AF56: 29 | AG56: 31
F57: =IF(V53=W53,"School Readiness ("&sr&") = GCA ("&gca&") ",IF(V53>W53,"School Readiness ("&sr&") > GCA ("&gca&")","School Readiness ("&sr&") < GCA ("&gca&")")) -> School Readiness () > GCA (111) | H57: =IF(OR(V59="",W59=""),"",V59-W59) ->  | J57: =IF(OR(V59="",W59=""),"",IF(ABS(H57)>=X59,"Yes","No")) ->  | L57: =IF(OR(V59="",W59=""),"",Z59&"%") ->  | U57: m vs gca | V57: =F42 ->  | W57: =gca -> 111 | X57: =CHOOSE(btwcl,7,9,12) -> 9 | Y57: =IF(V57=W57,2,IF(V57>W57,1,3)) -> 1 | Z57: =IF(Y57=2,"",IF(Y57=1,LOOKUP(ABS(H55),AA57:AG57,AA65:AG65),LOOKUP(ABS(H55),AA57:AG57,AA65:AG65))) ->  | AA57: 0 | AB57: 12 | AC57: 15 | AD57: 20
F58: =IF(V54=W54,"Working Memory ("&F42&") = Processing Speed ("&H42&") ",IF(V54>W54,"Working Memory ("&F42&") > Processing Speed ("&H42&")","Working Memory ("&F42&") < Processing Speed ("&H42&")")) -> Working Memory () = Processing Speed () | H58: =IF(OR(V54="",W54=""),"",V54-W54) ->  | J58: =IF(OR(V54="",W54=""),"",IF(ABS(H58)>=X54,"Yes","No")) ->  | L58: =IF(OR(V54="",W54=""),"",Z54&"%") ->  | U58: ps vs gca | V58: =H42 ->  | W58: =gca -> 111 | X58: =CHOOSE(btwcl,8,11,15) -> 11 | Y58: 1 | Z58: =IF(Y58=2,"",IF(Y58=1,LOOKUP(ABS(H56),AA58:AG58,AA65:AG65),LOOKUP(ABS(H56),AH58:AN58,AA65:AG65))) ->  | AA58: 0 | AB58: 16 | AC58: 20 | AD58: 28 | AH58: 0 | AI58: 16 | AJ58: 20 | AK58: 26
F59: =IF(V55=W55,"Working Memory ("&F42&") = School Readiness ("&J42&") ",IF(V55>W55,"Working Memory ("&F42&") > School Readiness ("&J42&")","Working Memory ("&F42&") < School Readiness ("&J42&")")) -> Working Memory () = School Readiness () | H59: =IF(OR(V55="",W55=""),"",V55-W55) ->  | J59: =IF(OR(V55="",W55=""),"",IF(ABS(H59)>=X55,"Yes","No")) ->  | L59: =IF(OR(V55="",W55=""),"",Z55&"%") ->  | U59: schr vs gca | V59: =J42 ->  | W59: =gca -> 111 | X59: =CHOOSE(btwcl,7,9,12) -> 9 | Y59: 1 | Z59: =IF(Y59=2,"",IF(Y59=1,LOOKUP(ABS(H57),AA60:AG60,AA65:AG65),LOOKUP(ABS(H57),AH60:AN60,AA65:AG65))) ->  | AA59: 0 | AB59: 11 | AC59: 14 | AD59: 18 | AE59: 22 | AF59: 27 | AG59: 30 | AH59: 0 | AI59: 11 | AJ59: 14 | AK59: 17 | AL59: 22 | AM59: 23 | AN59: 25
F60: =IF(V56=W56,"School Readiness ("&J42&") = Processing Speed ("&H42&") ",IF(V56>W56,"School Readiness ("&J42&") > Processing Speed ("&H42&")","School Readiness ("&J42&") < Processing Speed ("&H42&")")) -> School Readiness () = Processing Speed () | H60: =IF(OR(V56="",W56=""),"",V56-W56) ->  | J60: =IF(OR(V56="",W56=""),"",IF(ABS(H60)>=X56,"Yes","No")) ->  | L60: =IF(OR(V56="",W56=""),"",Z56&"%") ->  | AA60: 0 | AB60: 17 | AC60: 20 | AD60: 27 | AE60: 36 | AF60: 38 | AG60: 42 | AH60: 0 | AI60: 16 | AJ60: 20 | AK60: 26 | AL60: 29 | AM60: 33 | AN60: 39
V61: =IF(J52="No","",IF(V51=W51,"",IF(V51>W51,"V > NVR","V< NVR"))) ->  | AA61: 0 | AB61: 12 | AC61: 15 | AD61: 19 | AE61: 23 | AF61: 26 | AG61: 36 | AH61: srvswm srh
D62: ="Verbal ("&V51&") " -> Verbal (113) | F62: =IF(OR(V66="",W66=""),"",X77) ->  | V62: =IF(J54="No","",IF(V52=W52,"",IF(V52>W52,"V > Sp","V< Sp"))) -> V > Sp | AA62: 0 | AB62: 13 | AC62: 17 | AD62: 22 | AE62: 26 | AF62: 29 | AG62: 31 | AH62: srvswm srl
F63: =IF(V48=X48,"Verbal Comprehension ("&F8&") = Naming Vocabulary ("&F10&") ",IF(V48>X48,"Verbal Comprehension ("&F8&") > Naming Vocabulary ("&F10&")","Verbal Comprehension ("&F8&") < Naming Vocabulary ("&F10&")")) -> Verbal Comprehension (53) > Naming Vocabulary (62) | H63: =IF(OR(V66="",W66=""),"",V66-W66) -> -9 | J63: =IF(OR(V66="",W66=""),"",IF(ABS(H63)>=X66,"Yes","No")) -> No | L63: =IF(OR(V66="",W66=""),"",Z66&"%") -> 15% | V63: =IF(J53="No","",IF(V53=W53,"",IF(V53>W53,"NVR > Sp","NVR < Sp"))) -> NVR > Sp | AA63: 0 | AB63: 17 | AC63: 20 | AD63: 27 | AE63: 36 | AF63: 38 | AG63: 42 | AH63: srvsphp srh
D64: ="Nonverbal Reasoning ("&W51&") " -> Nonverbal Reasoning (117) | F64: =IF(OR(V67="",W67=""),"",X78) ->  | U64: =IF(V67=V68,"Picture Similarities ("&H9&") = Pattern Construction ("&V68&") ",IF(V67>V68,"Picture Similarities ("&H9&") > Pattern Construction ("&V68&")","Picture Similarities ("&H9&") < Pattern Construction ("&V68&")")) -> Picture Similarities (56) > Pattern Construction (46) | V64: =IF(J58="No","",IF(V54=W54,"",IF(V54>W54,"WM > PS","WM < PS"))) ->  | AA64: 0 | AB64: 16 | AC64: 20 | AD64: 26 | AE64: 29 | AF64: 33 | AG64: 39 | AH64: srvsphp srl
F65: =IF('Input page Early Years'!T9=1,U64,U65) -> Picture Similarities (56) < Matrices (63) | H65: =IF(OR(V67="",W67=""),"",V67-W67) -> -7 | J65: =IF(OR(V67="",W67=""),"",IF(ABS(H65)>=X67,"Yes","No")) -> No | L65: =IF(OR(V67="",W67=""),"",Z67&"%") -> >15% | U65: =IF(V67=W67,"Picture Similarities ("&H9&") = Matrices ("&W67&") ",IF(V67>W67,"Picture Similarities ("&H9&") > Matrices ("&W67&")","Picture Similarities ("&H9&") < Matrices ("&W67&")")) -> Picture Similarities (56) < Matrices (63) | AA65: >15 | AB65: 15 | AC65: 10 | AD65: 5 | AE65: 2 | AF65: 1 | AG65: 0.5
D66: =IF('Input page Early Years'!T9=1,"","Spatial ("&W52&") ") -> Spatial (95) | F66: =IF(OR(V68="",W68=""),"",X79) ->  | U66: vc vs nv | V66: =F8 -> 53 | W66: =F10 -> 62 | X66: =CHOOSE(btwcl,8,11,15) -> 11 | Y66: =IF(V66=W66,2,IF(V66>W66,1,3)) -> 3 | Z66: =IF(Y66=2,"",IF(Y66=1,LOOKUP(ABS(H63),AA66:AE66,AA82:AE82),LOOKUP(ABS(H63),AA67:AE67,AA82:AE82))) -> 15 | AA66: 0 | AB66: 8 | AC66: 10 | AD66: 13 | AE66: 19 | AF66: wd>S
F67: =IF('Input page Early Years'!T9=1,"",IF(V68=W68,"Pattern Construction ("&V68&") = Copying ("&W68&") ",IF(V68>W68,"Pattern Construction ("&V68&") > Copying ("&W68&")","Pattern Construction ("&V68&") < Copying ("&W68&")"))) -> Pattern Construction (46) < Copying (49) | H67: =IF(OR(V68="",W68=""),"",V68-W68) -> -3 | J67: =IF(OR(V68="",W68=""),"",IF(ABS(H67)>=X68,"Yes","No")) -> No | L67: =IF(OR(V68="",W68=""),"",Z68&"%") -> >15% | U67: =IF('Input page Early Years'!T9=1,"psim vs pc","psim vs mat") -> psim vs mat | V67: =H9 -> 56 | W67: =IF('Input page Early Years'!T9=1,IF(H11=0,"",H11),IF(H12=0,"",H12)) -> 63 | X67: =CHOOSE(btwcl,9,12,16) -> 12 | Y67: =IF(V67=W67,2,IF(V67>W67,1,3)) -> 3 | Z67: =IF(Y67=2,"",IF(Y67=1,LOOKUP(ABS(H65),AA68:AE68,AA82:AE82),LOOKUP(ABS(H65),AA69:AE69,AA82:AE82))) -> >15 | AA67: 0 | AB67: 9 | AC67: 12 | AD67: 15 | AE67: 17 | AF67: Wd<s
D68: ="Working Memory ("&V54&") " -> Working Memory () | F68: =IF(OR(V69="",W69=""),"",X80) ->  | U68: pc vs copy | V68: =IF('Input page Early Years'!T9=1,H11,J11) -> 46 | W68: =IF(J13=0,"",J13) -> 49 | X68: =CHOOSE(btwcl,6,8,10) -> 8 | Y68: 3 | Z68: =IF(Y68=2,"",IF(Y68=1,LOOKUP(ABS(H67),AA70:AE70,AA82:AE82),LOOKUP(ABS(H67),AA77:AE77,AA82:AE82))) -> >15 | AA68: 0 | AB68: =IF('Input page Early Years'!T9=1,12,11) -> 11 | AC68: =IF('Input page Early Years'!T9=1,15,14) -> 14 | AD68: 18 | AE68: =IF('Input page Early Years'!T9=1,23,24) -> 24 | AF68: m>sq
F69: =IF(V69=W69,"Recall of Sequential Order ("&F34&") = Recall of Digits Backward ("&F36&") ",IF(V69>W69,"Recall of Sequential Order ("&F34&") > Recall of Digits Backward ("&F36&")","Recall of Sequential Order ("&F34&") < Recall of Digits Backward ("&F36&")")) -> Recall of Sequential Order () = Recall of Digits Backward () | H69: =IF(OR(V69="",W69=""),"",V69-W69) ->  | J69: =IF(OR(V69="",W69=""),"",IF(ABS(H69)>=X69,"Yes","No")) ->  | L69: =IF(OR(V69="",W69=""),"",Z69&"%") ->  | U69: rso vs rdb | V69: =F34 ->  | W69: =F36 ->  | X69: =CHOOSE(btwcl,7,9,12) -> 9 | Y69: 2 | Z69: =IF(Y69=2,"",IF(Y69=1,LOOKUP(ABS(H69),AA78:AE78,AA82:AE82),LOOKUP(ABS(H69),AA79:AE79,AA82:AE82))) ->  | AA69: 0 | AB69: =IF('Input page Early Years'!T9=1,8,12) -> 12 | AC69: =IF('Input page Early Years'!T9=1,12,14) -> 14 | AD69: =IF('Input page Early Years'!T9=1,14,18) -> 18 | AE69: =IF('Input page Early Years'!T9=1,20,22) -> 22 | AF69: M<sq
D70: ="Processing Speed ("&W54&") " -> Processing Speed () | F70: =IF(OR(V70="",W70=""),"",X81) ->  | U70: sip vs rn | V70: =H35 ->  | W70: =H38 ->  | X70: =CHOOSE(btwcl,8,11,14) -> 11 | Y70: 2 | Z70: =IF(Y70=2,"",IF(Y70=1,LOOKUP(ABS(I71),AA80:AE80,AA82:AE82),LOOKUP(ABS(I71),AA81:AE81,AA82:AE82))) ->  | AA70: 0 | AB70: 9 | AC70: 12 | AD70: 16 | AE70: 23 | AF70: rdes>pc
F71: =IF(V70=W70,"Speed of Information Processing ("&H35&") = Rapid Naming ("&H38&") ",IF(V70>W70,"Speed of Information Processing ("&H35&") > Rapid Naming ("&H38&")","Speed of Information Processing ("&H35&") < Rapid Naming ("&H38&")")) -> Speed of Information Processing () = Rapid Naming () | H71: =IF(OR(V70="",W70=""),"",V70-W70) ->  | I71: =V70-W70 ->  | J71: =IF(OR(V70="",W70=""),"",IF(ABS(I71)>=X70,"Yes","No")) ->  | L71: =IF(OR(V70="",W70=""),"",Z70&"%") ->  | U71: enc vs mllf | V71: =J32 -> 48 | W71: =J33 -> 49 | X71: =CHOOSE(btwcl,8,11,14) -> 11 | Y71: =IF(V71=W71,2,IF(V71>W71,1,3)) -> 3 | Z71: =IF(Y71=2,"",IF(Y71=1,LOOKUP(ABS(H73),AA71:AE71,AA82:AE82),LOOKUP(ABS(H73),AA72:AE72,AA82:AE82))) -> >15 | AA71: 0 | AB71: 11 | AC71: 14 | AD71: 19 | AE71: 25
D72: ="School Readiness ("&V56&") " -> School Readiness () | F72: =IF(OR(V72="",W72=""),"",X83) ->  | U72: enc vs Php | V72: =J32 -> 48 | W72: =J37 ->  | X72: =CHOOSE(btwcl,8,11,14) -> 11 | Y72: 3 | Z72: =IF(Y72=2,"",IF(Y72=1,LOOKUP(ABS(I74),AA73:AE73,AA82:AE82),LOOKUP(ABS(I74),AA74:AE74,AA82:AE82))) ->  | AA72: 0 | AB72: 11 | AC72: 13 | AD72: 18 | AE72: 23
F73: =IF(V71=W71,"Early Number Concepts ("&J32&") = Matching Letter-like Forms ("&J33&") ",IF(V71>W71,"Early Number Concepts ("&J32&") > Matching Letter-like Forms ("&J33&")","Early Number Concepts ("&J32&") < Matching Letter-like Forms ("&J33&")")) -> Early Number Concepts (48) < Matching Letter-like Forms (49) | H73: =IF(OR(V71="",W71=""),"",V71-W71) -> -1 | I73: =V72-W72 ->  | J73: =IF(OR(V72="",W72=""),"",IF(ABS(I73)>=X72,"Yes","No")) ->  | L73: =IF(OR(V71="",W71=""),"",IF(H73=0,"",Z71&"%")) -> >15% | U73: mllf vs Php | V73: =J33 -> 49 | W73: =J37 ->  | X73: =CHOOSE(btwcl,8,11,14) -> 11 | Y73: 3 | Z73: =IF(Y73=2,"",IF(Y73=1,LOOKUP(ABS(I75),AA75:AE75,AA82:AE82),LOOKUP(ABS(I75),AA76:AE76:AE73AA79:AA82:AE82))) ->  | AA73: 0 | AB73: 11 | AC73: 14 | AD73: 19 | AE73: 24
F74: =IF(V72=W72,"Early Number Concepts ("&J32&") = Phonological Processing ("&J37&") ",IF(V72>W72,"Early Number Concepts ("&J32&") > Phonological Processing ("&J37&")","Early Number Concepts ("&J32&") < Phonological Processing ("&J37&")")) -> Early Number Concepts (48) < Phonological Processing () | H74: =IF(OR(V72="",W72=""),"",V72-W72) ->  | I74: =V72-W72 ->  | J74: =IF(OR(V73="",W73=""),"",IF(ABS(I74)>=X73,"Yes","No")) ->  | L74: =IF(OR(V72="",W72=""),"",IF(H74=0,"",Z72&"%")) ->  | AA74: 0 | AB74: 9 | AC74: 11 | AD74: 14 | AE74: 18
F75: =IF(V73=W73,"Matching Letter-like Forms ("&J33&") = Phonological Processing ("&J37&") ",IF(V73>W73,"Matching Letter-like Forms ("&J33&") > Phonological Processing ("&J37&")","Matching Letter-like Forms ("&J33&") < Phonological Processing ("&J37&")")) -> Matching Letter-like Forms (49) < Phonological Processing () | H75: =IF(OR(V73="",W73=""),"",V73-W73) ->  | I75: =V73-W73 ->  | J75: =IF(OR(V73="",W73=""),"",IF(ABS(I75)>=X73,"Yes","No")) ->  | L75: =IF(OR(V73="",W73=""),"",IF(H75=0,"",Z73&"%")) ->  | AA75: 0 | AB75: 14 | AC75: 17 | AD75: 23 | AE75: 27
V76: =IF(J63="No","",IF(V66=W66,"",IF(V66>W66,"VC > NV","VC< NV"))) ->  | AA76: 0 | AB76: 9 | AC76: 12 | AD76: 16 | AE76: 20
V77: =IF(J65="No","",IF(V67=W67,"",IF(V67>W67,"PSim > Mat","PSim < Mat"))) ->  | W77: =IF(J65="No","",IF(V67=W67,"",IF(V67>W67,"PSim > PC","PSim < PC"))) ->  | X77: =IF(J63="No","","Interpret With Caution") ->  | AA77: 0 | AB77: 9 | AC77: 12 | AD77: 15 | AE77: 21 | AF77: Rdes<pc
V78: =IF(J67="No","",IF(J67="No","",IF(V68=W68,"",IF(V68>W68,"PC > Copy","PC < Copy")))) ->  | X78: =IF(J65="No","","Interpret With Caution") ->  | AA78: 0 | AB78: 11 | AC78: 14 | AD78: 18 | AE78: 22 | AF78: rso>db
F79: =V85 -> 55 | H79: Difference required | V79: =IF(J69="No","",IF(J69="No","",IF(V69=W69,"",IF(V69>W69,"RSO > DB","RSO < DB")))) ->  | X79: =IF(J67="No","","Interpret With Caution") ->  | AA79: 0 | AB79: 10 | AC79: 11 | AD79: 16 | AE79: 22 | AF79: rso<db
F80: T Score | J80: Difference | L80: Significance | N80: Frequency | V80: =IF(J71="No","",IF(J71="No","",IF(V70=W70,"",IF(V70>W70,"SIP > RN","SIP < RN")))) ->  | X80: =IF(J69="No","","Interpret With Caution") -> Interpret With Caution | AA80: 0 | AB80: 11 | AC80: 14 | AD80: 17 | AE80: 24 | AF80: sip>rn
E81: =B8 -> Verbal Comprehension (Gc) | F81: =D8 -> 53 | H81: =X86 -> 8 | J81: =IF(OR(F81="",F79=""),"",U85-V85) -> -2 | L81: =IF(OR(F81="",F79=""),"",Z85) ->  | N81: =IF(L81="","",IF(meant=1,AB85&"%",AC85&"%")) ->  | X81: =IF(J71="No","","Interpret With Caution") -> Interpret With Caution | AA81: 0 | AB81: 11 | AC81: 13 | AD81: 17 | AE81: 22 | AF81: sip<rn
E82: =B10 -> Naming Vocabulary (Gc) | F82: =D10 -> 62 | H82: =X89 -> 6 | J82: =IF(OR(F82="",F79=""),"",U86-V86) -> 7 | L82: =IF(OR(F82="",F79=""),"",Z86) ->  | X82: =IF(J72="No","","Interpret With Caution") -> Interpret With Caution | AA82: >15 | AB82: 15 | AC82: 10 | AD82: 5 | AE82: <5
E83: =B9 -> Picture Similarities (Gf) | F83: =D9 -> 56 | H83: =X88 -> 8 | J83: =IF(OR(F83="",F79=""),"",U87-V87) -> 1 | L83: =IF(OR(F83="",F79=""),"",Z87) ->  | V83: =IF(meant=1,"GCA","SNC") -> GCA | X83: =IF(J73="No","",IF(J74="No","",IF(J75="No","","Interpret With Caution"))) -> Interpret With Caution
E84: =B12 -> Matrices (Gf) | F84: =D12 -> 63 | H84: =X90 -> 7 | J84: =IF(OR(F84="",F79=""),"",U88-V88) -> 8 | L84: =IF(OR(F84="",F79=""),"",Z88) -> High | N84: 15% | U84: 1 | V84: m t | W84: diff | X84: cv | Y84: <=> | Z84: sig | AA84: <=> | AB84: gca | AC84: snc
E85: =B11 -> Pattern Construction (Gv) | F85: =D11 -> 46 | H85: =X85 -> 7 | J85: =IF(OR(F85="",F79=""),"",U89-V89) -> -9 | L85: =IF(OR(F85="",F79=""),"",Z89) -> Low | N85: 15% | T85: =E81 -> Verbal Comprehension (Gc) | U85: =F81 -> 53 | V85: =IF(meant=1,$L$22,$N$22) -> 55 | W85: =IF(OR(U85="",V85=""),"",ABS(U85-V85)) -> 2 | X85: =IF(AND(btwcl=1,meant=1),5,IF(AND(btwcl=2,meant=1),7,IF(AND(btwcl=3,meant=1),10,IF(AND(btwcl=1,meant=2),7,IF(AND(btwcl=2,meant=2),10,IF(AND(btwcl=3,meant=2),13)))))) -> 7 | Y85: =IF(U85=V85,"",IF(U85>V85,"High","Low")) -> Low | Z85: =IF(W85>=X85,Y85,"") ->  | AA85: =IF(U85<V85,3,IF(U85>V85,1,2)) -> 3 | AB85: =IF(AA85=1,LOOKUP(W85,AD85:AG85,$AD$119:$AG$119),LOOKUP(W85,AD86:AG86,$AD$119:$AG$119)) -> >15 | AC85: =IF(AB85=3,LOOKUP(W85,AH85:AK85,$AD$119:$AG$119),LOOKUP(W85,AH86:AK86,$AD$119:$AG$119)) -> >15 | AD85: 0 | AE85: 5 | AF85: 8 | AG85: 9 | AH85: 0 | AI85: 7 | AJ85: 10 | AK85: 11 | AL85: =E81 -> Verbal Comprehension (Gc)
E86: =B13 -> Copying (Gv) | F86: =D13 -> 49 | H86: =X87 -> 7 | J86: =IF(OR(F86="",F79=""),"",U90-V90) -> -6 | L86: =IF(OR(F86="",F79=""),"",Z90) ->  | T86: =E82 -> Naming Vocabulary (Gc) | U86: 62 | V86: 55 | W86: 7 | X86: =IF(AND(btwcl=1,meant=1),6,IF(AND(btwcl=2,meant=1),8,IF(AND(btwcl=3,meant=1),10,IF(AND(btwcl=1,meant=2),8,IF(AND(btwcl=2,meant=2),10,IF(AND(btwcl=3,meant=2),14)))))) -> 8 | Y86: High | AA86: 1 | AB86: =IF(AA86=1,LOOKUP(W86,AD87:AG87,$AD$119:$AG$119),LOOKUP(W86,AD88:AG88,$AD$119:$AG$119)) -> 10 | AC86: =IF(AB86=3,LOOKUP(W86,AH87:AK87,$AD$119:$AG$119),LOOKUP(W86,AH88:AK88,$AD$119:$AG$119)) -> 15 | AD86: 0 | AE86: 6 | AF86: 8 | AG86: 9 | AH86: 0 | AI86: 8 | AJ86: 10 | AK86: 11
T87: Picture Similarities (Gf) | U87: 56 | V87: 55 | W87: 1 | X87: =IF(AND(btwcl=1,meant=1),5,IF(AND(btwcl=2,meant=1),7,IF(AND(btwcl=3,meant=1),10,IF(AND(btwcl=1,meant=2),5,IF(AND(btwcl=2,meant=2),7,IF(AND(btwcl=3,meant=2),9)))))) -> 7 | Y87: High | AA87: 1 | AB87: =IF(AA87=1,LOOKUP(W87,AD89:AG89,$AD$119:$AG$119),LOOKUP(W87,AD90:AG90,$AD$119:$AG$119)) -> >15 | AC87: =IF(AB87=3,LOOKUP(W87,AH89:AK89,$AD$119:$AG$119),LOOKUP(W87,AH90:AK90,$AD$119:$AG$119)) -> >15 | AD87: 0 | AE87: 6 | AF87: 7 | AG87: 8 | AH87: 0 | AI87: 6 | AJ87: 7 | AK87: 8 | AL87: =E83 -> Picture Similarities (Gf)
E88: =B28 -> Recall of Objects-Immediate (Glr) | F88: =D28 -> 52 | H88: =X94 -> 11 | J88: =IF(OR(F88="",F79=""),"",U92-V92) -> -3 | L88: =IF(OR(F88="",F79=""),"",Z92) ->  | N88: =IF(L88="","",IF(meant=1,AB94&"%",AC94&"%")) ->  | T88: Matrices (Gf) | U88: 63 | V88: 55 | W88: 8 | X88: =IF(AND(btwcl=1,meant=1),6,IF(AND(btwcl=2,meant=1),8,IF(AND(btwcl=3,meant=1),10,IF(AND(btwcl=1,meant=2),5,IF(AND(btwcl=2,meant=2),7,IF(AND(btwcl=3,meant=2),9)))))) -> 8 | Y88: High | Z88: High | AA88: 1 | AB88: =IF(AA88=1,LOOKUP(W88,AD91:AG91,$AD$119:$AG$119),LOOKUP(W88,AD94:AG94,$AD$119:$AG$119)) -> 15 | AC88: =IF(AB88=13,LOOKUP(W88,AH91:AK91,$AD$119:$AG$119),LOOKUP(W88,AH94:AK94,$AD$119:$AG$119)) -> 10 | AD88: 0 | AE88: 7 | AF88: 9 | AG88: 10 | AH88: 0 | AI88: 7 | AJ88: 9 | AK88: 10
E89: Recall of Objects-Delayed (Glr) | L89: =IF(F89="","",Z95) ->  | T89: Pattern Construction (Gv) | U89: 46 | V89: 55 | W89: 9 | X89: =IF(AND(btwcl=1,meant=1),4,IF(AND(btwcl=2,meant=1),6,IF(AND(btwcl=3,meant=1),8,IF(AND(btwcl=1,meant=2),5,IF(AND(btwcl=2,meant=2),6,IF(AND(btwcl=3,meant=2),8)))))) -> 6 | Y89: Low | Z89: Low | AA89: 3 | AB89: =IF(AA89=1,LOOKUP(W89,AD95:AG95,$AD$119:$AG$119),LOOKUP(W89,AD96:AG96,$AD$119:$AG$119)) -> 15 | AC89: =IF(AB89=3,LOOKUP(W89,AH95:AK95,$AD$119:$AG$119),LOOKUP(W89,AH96:AK96,$AD$119:$AG$119)) -> 10 | AD89: 0 | AE89: 7 | AF89: 9 | AG89: 10 | AH89: 0 | AI89: 9 | AJ89: 12 | AK89: 13 | AL89: =E82 -> Naming Vocabulary (Gc)
E90: Recall of Digits Forward (Gsm) | F90: 50 | H90: =X96 -> 8 | J90: =IF(OR(F90="",F79=""),"",U94-V94) -> -5 | L90: =IF(OR(F90="",F79=""),"",Z94) ->  | N90: =IF(L90="","",IF(meant=1,AB96&"%",AC96&"%")) ->  | T90: Copying (Gv) | U90: 49 | V90: 55 | W90: 6 | X90: =IF(AND(btwcl=1,meant=1),5,IF(AND(btwcl=2,meant=1),7,IF(AND(btwcl=3,meant=1),9,IF(AND(btwcl=1,meant=2),5,IF(AND(btwcl=2,meant=2),6,IF(AND(btwcl=3,meant=2),8)))))) -> 7 | Y90: Low | AA90: 3 | AB90: =IF(AA90=1,LOOKUP(W90,AD97:AG97,$AD$119:$AG$119),LOOKUP(W90,AD98:AG98,$AD$119:$AG$119)) -> >15 | AC90: =IF(AB90=3,LOOKUP(W90,AH97:AK97,$AD$119:$AG$119),LOOKUP(W90,AH98:AK98,$AD$119:$AG$119)) -> >15 | AD90: 0 | AE90: 7 | AF90: 8 | AG90: 9 | AH90: 0 | AI90: 9 | AJ90: 11 | AK90: 12
E91: Recognition of Pictures (Gv) | F91: 47 | H91: =X97 -> 10 | J91: =IF(OR(F91="",F79=""),"",U97-V97) -> -6 | L91: =IF(OR(F91="",F79=""),"",Z97) ->  | N91: =IF(L91="","",IF(meant=1,AB97&"%",AC97&"%")) ->  | T91: 0 | AD91: 0 | AE91: 7 | AF91: 9 | AG91: 10 | AH91: 0 | AI91: 6 | AJ91: 8 | AK91: 9 | AL91: =E85 -> Pattern Construction (Gv)
E92: Early Number Concepts (Gc/Gf) | F92: 48 | H92: =X92 -> 9 | J92: =IF(OR(F92="",F79=""),"",U96-V96) -> -7 | L92: =IF(OR(F92="",F79=""),"",Z96) ->  | N92: =IF(L92="","",IF(meant=1,AB98&"%",AC98&"%")) ->  | T92: Recall of Objects-Immediate (Glr) | U92: =F88 -> 52 | V92: =IF(meant=1,$L$22,$N$22) -> 55 | W92: 3 | X92: =IF(AND(btwcl=1,meant=1),7,IF(AND(btwcl=2,meant=1),9,IF(AND(btwcl=3,meant=1),12,IF(AND(btwcl=1,meant=2),7,IF(AND(btwcl=2,meant=2),9,IF(AND(btwcl=3,meant=2),12)))))) -> 9 | Y92: =IF(U92=V92,"",IF(U92>V92,"High","Low")) -> Low | Z92: =IF(W92>=X92,Y92,"") ->  | AA92: =IF(U92<V92,3,IF(U92>V92,1,2)) -> 3 | AB92: =IF(AA92=1,LOOKUP(W92,AD115:AG115,$AD$119:$AG$119),LOOKUP(W92,AD116:AG116,$AD$119:$AG$119)) -> >15 | AC92: =IF(AB92=3,LOOKUP(W92,AH115:AK115,$AH$119:$AK$119),LOOKUP(W92,AH116:AK116,$AH$119:$AK$119)) -> >15
E93: Matching Letter Like Forms (Gv) | F93: 49 | H93: =X93 -> 9 | J93: =IF(OR(F93="",F79=""),"",U97-V97) -> -6 | L93: =IF(OR(F93="",F79=""),"",Z97) ->  | N93: =IF(L93="","",IF(meant=1,AB99&"%",AC99&"%")) ->  | T93: Recall of Objects-Delayed (Glr) | U93: =F89 ->  | V93: =IF(meant=1,$L$22,$N$22) -> 55 | X93: =IF(AND(btwcl=1,meant=1),7,IF(AND(btwcl=2,meant=1),9,IF(AND(btwcl=3,meant=1),12,IF(AND(btwcl=1,meant=2),7,IF(AND(btwcl=2,meant=2),10,IF(AND(btwcl=3,meant=2),13)))))) -> 9 | Y93: =IF(U93=V93,"",IF(U93>V93,"High","Low")) -> High | Z93: High | AA93: 1 | AB93: =IF(AA93=1,LOOKUP(W93,AD117:AG117,$AD$119:$AG$119),LOOKUP(W93,AD118:AG118,$AD$119:$AG$119)) ->  | AC93: =IF(AB93=3,LOOKUP(W93,AH117:AK117,$AH$119:$AK$119),LOOKUP(W93,AH118:AK118,$AH$119:$AK$119)) -> 
E94: =B37 -> Phonological Processing (Ga) | F94: =D37 ->  | H94: =X101 -> 7 | J94: =IF(OR(F94="",F79=""),"",U98-V98) ->  | L94: =IF(OR(F94="",F79=""),"",Z98) ->  | N94: =IF(L94="","",IF(meant=1,AB101&"%",AC101&"%")) ->  | T94: Recall of Digits Forward (Gsm) | U94: 50 | V94: =IF(meant=1,$L$22,$N$22) -> 55 | W94: 5 | X94: =IF(AND(btwcl=1,meant=1),8,IF(AND(btwcl=2,meant=1),11,IF(AND(btwcl=3,meant=1),14,IF(AND(btwcl=1,meant=2),8,IF(AND(btwcl=2,meant=2),11,IF(AND(btwcl=3,meant=2),14)))))) -> 11 | Y94: =IF(U94=V94,"",IF(U94>V94,"High","Low")) -> Low | AA94: 3 | AB94: =IF(AA94=1,LOOKUP(W94,AD99:AG99,$AD$119:$AG$119),LOOKUP(W94,AD100:AG100,$AD$119:$AG$119)) -> >15 | AC94: =IF(AB94=3,LOOKUP(W94,AH99:AK99,$AD$119:$AG$119),LOOKUP(W94,AH100:AK100,$AD$119:$AG$119)) -> >15 | AD94: 0 | AE94: 7 | AF94: 9 | AG94: 10 | AH94: 0 | AI94: 7 | AJ94: 8 | AK94: 9
E95: =B34 -> Recall of Sequential Order (Gsm) | F95: =D34 ->  | H95: =X98 -> 8 | J95: =IF(OR(F95="",F79=""),"",U99-V99) ->  | L95: =IF(OR(F95="",F79=""),"",Z99) ->  | N95: =IF(L95="","",IF(meant=1,AB98&"%",AC98&"%")) ->  | T95: Recognition of Pictures (Gv) | U95: 47 | V95: =IF(meant=1,$L$22,$N$22) -> 55 | W95: =ABS(U95-V95) -> 8 | X95: 11 | Y95: =IF(U95=V95,"",IF(U95>V95,"RObI < RObD","RobI > RobD")) -> RobI > RobD | AA95: 3 | AB95: =IF(AA95=1,LOOKUP(W95,AD95:AG95,$AD$119:$AG$119),LOOKUP(W95,AD96:AG96,$AD$119:$AG$119)) -> 15 | AC95: =IF(AA95=1,LOOKUP(W95,AH95:AK95,$AD$119:$AG$119),LOOKUP(W95,AH96:AK96,$AD$119:$AG$119)) -> 15 | AD95: 0 | AE95: 8 | AF95: 10 | AG95: 11 | AH95: 0 | AI95: 8 | AJ95: 10 | AK95: 11 | AL95: =E84 -> Matrices (Gf)
E96: =B36 -> Recall of Digits Backward (Gsm) | F96: =D36 ->  | H96: =X100 -> 9 | J96: =IF(OR(F96="",F79=""),"",U100-V100) ->  | L96: =IF(OR(F96="",F79=""),"",Z100) ->  | N96: =IF(L96="","",IF(meant=1,AB100&"%",AC100&"%")) ->  | T96: Early Number Concepts (Gc/Gf) | U96: 48 | V96: =IF(meant=1,$L$22,$N$22) -> 55 | W96: =IF(OR(U96="",V96=""),"",ABS(U96-V96)) -> 7 | X96: =IF(AND(btwcl=1,meant=1),6,IF(AND(btwcl=2,meant=1),8,IF(AND(btwcl=3,meant=1),10,IF(AND(btwcl=1,meant=2),6,IF(AND(btwcl=2,meant=2),8,IF(AND(btwcl=3,meant=2),11)))))) -> 8 | Y96: =IF(U96=V96,"",IF(U96>V96,"High","Low")) -> Low | AA96: 3 | AB96: =IF(AA96=1,LOOKUP(W96,AD101:AG101,$AD$119:$AG$119),LOOKUP(W96,AD102:AG102,$AD$119:$AG$119)) -> >15 | AC96: =IF(AB96=3,LOOKUP(W96,AH101:AK101,$AD$119:$AG$119),LOOKUP(W96,AH102:AK102,$AD$119:$AG$119)) -> >15 | AD96: 0 | AE96: 8 | AF96: 10 | AG96: 11 | AH96: 0 | AI96: 8 | AJ96: 9 | AK96: 10
E97: =B35 -> Speed of Information Processing (Gs) | F97: =D35 ->  | H97: =X99 -> 8 | J97: =IF(OR(F97="",F79=""),"",U101-V101) ->  | L97: =IF(OR(F97="",F79=""),"",Z101) ->  | N97: =IF(L97="","",IF(meant=1,AB99&"%",AC99&"%")) ->  | T97: Matching Letter Like Forms (Gv) | U97: 49 | V97: 55 | W97: 6 | X97: =IF(AND(btwcl=1,meant=1),8,IF(AND(btwcl=2,meant=1),10,IF(AND(btwcl=3,meant=1),14,IF(AND(btwcl=1,meant=2),8,IF(AND(btwcl=2,meant=2),11,IF(AND(btwcl=3,meant=2),14)))))) -> 10 | Y97: Low | AA97: 3 | AB97: =IF(AA97=1,LOOKUP(W97,AD103:AG103,$AD$119:$AG$119),LOOKUP(W97,AD104:AG104,$AD$119:$AG$119)) -> >15 | AC97: =IF(AB97=3,LOOKUP(W97,AH103:AK103,$AD$119:$AG$119),LOOKUP(W97,AH104:AK104,$AD$119:$AG$119)) -> >15 | AD97: 0 | AE97: 7 | AF97: 9 | AG97: 10 | AH97: 0 | AI97: 7 | AJ97: 9 | AK97: 10 | AL97: =E86 -> Copying (Gv)
E98: =B38 -> Rapid Naming (Gs) | F98: =D38 ->  | H98: =X102 -> 10 | J98: =IF(OR(F98="",F79=""),"",U102-V102) ->  | L98: =IF(OR(F98="",F79=""),"",Z102) ->  | N98: =IF(L98="","",IF(meant=1,AB102&"%",AC102&"%")) ->  | T98: Phonological Processing (Ga) | U98: =F94 ->  | V98: 55 | X98: =IF(AND(btwcl=1,meant=1),6,IF(AND(btwcl=2,meant=1),8,IF(AND(btwcl=3,meant=1),10,IF(AND(btwcl=1,meant=2),6,IF(AND(btwcl=2,meant=2),8,IF(AND(btwcl=3,meant=2),11)))))) -> 8 | Y98: High | Z98: High | AA98: 1 | AB98: =IF(AA98=1,LOOKUP(W98,AD105:AG105,$AD$119:$AG$119),LOOKUP(W98,AD106:AG106,$AD$119:$AG$119)) ->  | AC98: =IF(AB98=3,LOOKUP(W98,AH105:AK105,$AD$119:$AG$119),LOOKUP(W98,AH106:AK106,$AD$119:$AG$119)) ->  | AD98: 0 | AE98: 7 | AF98: 9 | AG98: 10 | AH98: 0 | AI98: 7 | AJ98: 8 | AK98: 9
T99: Recall of Sequential Order (Gsm) | V99: 55 | X99: =IF(AND(btwcl=1,meant=1),6,IF(AND(btwcl=2,meant=1),8,IF(AND(btwcl=3,meant=1),11,IF(AND(btwcl=1,meant=2),6,IF(AND(btwcl=2,meant=2),9,IF(AND(btwcl=3,meant=2),11)))))) -> 8 | Y99: High | Z99: High | AA99: 1 | AB99: =IF(AA99=1,LOOKUP(W99,AD107:AG107,$AD$119:$AG$119),LOOKUP(W99,AD108:AG108,$AD$119:$AG$119)) ->  | AC99: =IF(AB99=3,LOOKUP(W99,AH107:AK107,$AD$119:$AG$119),LOOKUP(W99,AH108:AK108,$AD$119:$AG$119)) ->  | AD99: 0 | AE99: 10 | AF99: 12 | AG99: 13 | AH99: 0 | AI99: 11 | AJ99: 14 | AK99: 15 | AL99: =E88 -> Recall of Objects-Immediate (Glr)
T100: Recall of Digits Backward (Gsm) | V100: 55 | X100: =IF(AND(btwcl=1,meant=1),6,IF(AND(btwcl=2,meant=1),9,IF(AND(btwcl=3,meant=1),11,IF(AND(btwcl=1,meant=2),7,IF(AND(btwcl=2,meant=2),9,IF(AND(btwcl=3,meant=2),12)))))) -> 9 | Y100: High | Z100: High | AA100: 1 | AB100: =IF(AA100=1,LOOKUP(W100,AD109:AG109,$AD$119:$AG$119),LOOKUP(W100,AD110:AG110,$AD$119:$AG$119)) ->  | AC100: =IF(AB100=3,LOOKUP(W100,AH109:AK109,$AD$119:$AG$119),LOOKUP(W100,AH110:AK110,$AD$119:$AG$119)) ->  | AD100: 0 | AE100: 11 | AF100: 13 | AG100: 14 | AH100: 0 | AI100: 11 | AJ100: 14 | AK100: 15
J101: Ability Score | T101: Speed of Information Processing (Gs) | V101: 55 | X101: =IF(AND(btwcl=1,meant=1),5,IF(AND(btwcl=2,meant=1),7,IF(AND(btwcl=3,meant=1),9,IF(AND(btwcl=1,meant=2),5,IF(AND(btwcl=2,meant=2),7,IF(AND(btwcl=3,meant=2),10)))))) -> 7 | Y101: High | Z101: High | AA101: =IF(U101<V101,3,IF(U101>V101,1,IF(U101=V101,2))) -> 1 | AB101: =IF(AA101=1,LOOKUP(W101,AD111:AG111,$AD$119:$AG$119),LOOKUP(W101,AD112:AG112,$AD$119:$AG$119)) ->  | AC101: =IF(AB101=3,LOOKUP(W101,AH111:AK111,$AD$119:$AG$119),LOOKUP(W101,AH112:AK112,$AD$119:$AG$119)) ->  | AD101: 0 | AE101: 9 | AF101: 11 | AG101: 12 | AH101: 0 | AI101: 9 | AJ101: 11 | AK101: 12 | AL101: =E90 -> Recall of Digits Forward (Gsm)
C102: Phonological Processing (Ability Score Comparisons) | J102: Difference | L102: Critical Value | N102: Significance | U102: =F98 ->  | V102: 55 | X102: =IF(AND(btwcl=1,meant=1),7,IF(AND(btwcl=2,meant=1),10,IF(AND(btwcl=3,meant=1),13,IF(AND(btwcl=1,meant=2),7,IF(AND(btwcl=2,meant=2),10,IF(AND(btwcl=3,meant=2),13)))))) -> 10 | Y102: High | Z102: High | AA102: =IF(U102<V102,3,IF(U102>V102,1,2)) -> 1 | AB102: =IF(AA102=1,LOOKUP(W102,AD113:AG113,$AD$119:$AG$119),LOOKUP(W102,AD114:AG114,$AD$119:$AG$119)) ->  | AC102: =IF(AB102=3,LOOKUP(W102,AH113:AK113,$AD$119:$AG$119),LOOKUP(W102,AH114:AK114,$AD$119:$AG$119)) ->  | AD102: 0 | AE102: 10 | AF102: 11 | AG102: 12 | AH102: 0 | AI102: 10 | AJ102: 13 | AK102: 13
H103: ='Input page School-age'!C38&" versus "&'Input page School-age'!C40 -> Task 1 (Rhyming) versus Task 2 (Blending) | J103: =IF(AA105=1,"",W105) ->  | L103: =IF(J103="","",Z105) ->  | N103: =IF(AA105=1,"",IF(J103="","",IF(J103>=L103,"Yes","No"))) ->  | AD103: 0 | AE103: 8 | AF103: 10 | AG103: 11 | AH103: 0 | AI103: 8 | AJ103: 11 | AK103: 12 | AL103: =E91 -> Recognition of Pictures (Gv)
H104: ='Input page School-age'!C38&" versus "&'Input page School-age'!C42 -> Task 1 (Rhyming) versus Task 3 (Deletion) | U104: ab | V104: ab | W104: diff | X104: sem | Y104: sem2 | Z104: cv | AD104: 0 | AE104: 8 | AF104: 10 | AG104: 11 | AH104: 0 | AI104: 9 | AJ104: 11 | AK104: 12
H105: ='Input page School-age'!C38&" versus "&'Input page School-age'!C44 -> Task 1 (Rhyming) versus Task 4 (Phoneme Identification and Segmentation) | T105: 12 | U105: =IF('Input page School-age'!D38="","",'Input page School-age'!D38) ->  | V105: =IF('Input page School-age'!D40="","",'Input page School-age'!D40) ->  | W105: =IF(OR('Input page School-age'!D38="",'Input page School-age'!D40=""),"",ABS(U105-V105)) ->  | X105: =IF('Input page School-age'!F38="","",'Input page School-age'!F38) ->  | Y105: =IF('Input page School-age'!F40="","",'Input page School-age'!F40) ->  | Z105: =IF(OR(X105="",Y105=""),"",1.65*SQRT(X105^2+Y105^2)) ->  | AA105: =IF(U105="",1,IF(V105="",1, IF(Y105="",1,IF(Z105="",1,0)))) -> 1 | AD105: 0 | AE105: 9 | AF105: 11 | AG105: 12 | AH105: 0 | AI105: 9 | AJ105: 12 | AK105: 13 | AL105: =E95 -> Recall of Sequential Order (Gsm)
H106: ='Input page School-age'!C40&" versus "&'Input page School-age'!C42 -> Task 2 (Blending) versus Task 3 (Deletion) | T106: 13 | U106: =IF('Input page School-age'!D38="","",'Input page School-age'!D38) ->  | V106: =IF('Input page School-age'!D42="","",'Input page School-age'!D42) ->  | W106: =IF(OR('Input page School-age'!D38="",'Input page School-age'!D42=""),"",ABS(U106-V106)) ->  | X106: =IF('Input page School-age'!F38="","",'Input page School-age'!F38) ->  | Y106: =IF('Input page School-age'!F42="","",'Input page School-age'!F42) ->  | AA106: 1 | AD106: 0 | AE106: 9 | AF106: 10 | AG106: 11 | AH106: 0 | AI106: 9 | AJ106: 11 | AK106: 12
H107: ='Input page School-age'!C40&" versus "&'Input page School-age'!C44 -> Task 2 (Blending) versus Task 4 (Phoneme Identification and Segmentation) | T107: 14 | U107: =IF('Input page School-age'!D38="","",'Input page School-age'!D38) ->  | V107: =IF('Input page School-age'!D44="","",'Input page School-age'!D44) ->  | W107: =IF(OR('Input page School-age'!D38="",'Input page School-age'!D44=""),"",ABS(U107-V107)) ->  | X107: =IF('Input page School-age'!F38="","",'Input page School-age'!F38) ->  | Y107: =IF('Input page School-age'!F44="","",'Input page School-age'!F44) ->  | AA107: 1 | AD107: 0 | AE107: 9 | AF107: 13 | AG107: 14 | AH107: 0 | AI107: 10 | AJ107: 11 | AK107: 12 | AL107: =E97 -> Speed of Information Processing (Gs)
H108: ='Input page School-age'!C42&" versus "&'Input page School-age'!C44 -> Task 3 (Deletion) versus Task 4 (Phoneme Identification and Segmentation) | T108: 23 | U108: =IF('Input page School-age'!D40="","",'Input page School-age'!D40) ->  | V108: =IF('Input page School-age'!D42="","",'Input page School-age'!D42) ->  | W108: =IF(OR('Input page School-age'!D42="",'Input page School-age'!D40=""),"",ABS(U108-V108)) ->  | X108: =IF('Input page School-age'!F40="","",'Input page School-age'!F40) ->  | Y108: =IF('Input page School-age'!F42="","",'Input page School-age'!F42) ->  | AA108: 1 | AD108: 0 | AE108: 10 | AF108: 12 | AG108: 13 | AH108: 0 | AI108: 10 | AJ108: 13 | AK108: 14
T109: 24 | U109: =IF('Input page School-age'!D40="","",'Input page School-age'!D40) ->  | V109: =IF('Input page School-age'!D44="","",'Input page School-age'!D44) ->  | W109: =IF(OR('Input page School-age'!D44="",'Input page School-age'!D40=""),"",ABS(U109-V109)) ->  | X109: =IF('Input page School-age'!F40="","",'Input page School-age'!F40) ->  | Y109: =IF('Input page School-age'!F44="","",'Input page School-age'!F44) ->  | AA109: 1 | AD109: 0 | AE109: 7 | AF109: 9 | AG109: 10 | AH109: 0 | AI109: 7 | AJ109: 10 | AK109: 11 | AL109: =E96 -> Recall of Digits Backward (Gsm)
T110: 34 | U110: =IF('Input page School-age'!D42="","",'Input page School-age'!D42) ->  | V110: =IF('Input page School-age'!D44="","",'Input page School-age'!D44) ->  | W110: =IF(OR('Input page School-age'!D44="",'Input page School-age'!D42=""),"",ABS(U110-V110)) ->  | X110: =IF('Input page School-age'!F42="","",'Input page School-age'!F42) ->  | Y110: =IF('Input page School-age'!F44="","",'Input page School-age'!F44) ->  | AA110: 1 | AD110: 0 | AE110: 10 | AF110: 12 | AG110: 13 | AH110: 0 | AI110: 9 | AJ110: 12 | AK110: 13
C111: Rapid Naming (Ability Score Comparisons) | AD111: 0 | AE111: 8 | AF111: 9 | AG111: 10 | AH111: 0 | AI111: 8 | AJ111: 10 | AK111: 11 | AL111: =E94 -> Phonological Processing (Ga)
H112: ='Input page School-age'!C47&" versus "&'Input page School-age'!C49 -> Simple Naming versus Complex Naming | J112: =IF(AA114=1,"",W114) ->  | L112: =IF(J112="","",Z114) ->  | N112: =IF(AA114=1,"",IF(J112="","",IF(J112>=L112,"Yes","No"))) ->  | AD112: 0 | AE112: 9 | AF112: 12 | AG112: 13 | AH112: 0 | AI112: 10 | AJ112: 13 | AK112: 14
AD113: 0 | AE113: 8 | AF113: 10 | AG113: 11 | AH113: 0 | AI113: 8 | AJ113: 10 | AK113: 11 | AL113: =E98 -> Rapid Naming (Gs)
U114: =IF('Input page School-age'!D47="","",'Input page School-age'!D47) ->  | V114: =IF('Input page School-age'!D49="","",'Input page School-age'!D49) ->  | W114: =IF(OR('Input page School-age'!D47="",'Input page School-age'!D49=""),"",ABS(U114-V114)) ->  | X114: =IF('Input page School-age'!F47="","",'Input page School-age'!F47) ->  | Y114: =IF('Input page School-age'!F49="","",'Input page School-age'!F49) ->  | Z114: =IF(OR(X114="",Y114=""),"",1.65*SQRT(X114^2+Y114^2)) ->  | AA114: =IF(U114="",1,IF(V114="",1, IF(Y114="",1,IF(Z114="",1,0)))) -> 1 | AD114: 0 | AE114: 9 | AF114: 12 | AG114: 13 | AH114: 0 | AI114: 9 | AJ114: 11 | AK114: 12
AD115: 0 | AE115: 6 | AF115: 8 | AG115: 9 | AH115: 0 | AI115: 7 | AJ115: 10 | AK115: 11
AD116: 0 | AE116: 7 | AF116: 8 | AG116: 9 | AH116: 0 | AI116: 8 | AJ116: 9 | AK116: 10
AD117: 0 | AE117: 9 | AF117: 12 | AG117: 13 | AH117: 0 | AI117: 9 | AJ117: 11 | AK117: 12
U118: GCA | V118: =gca -> 111 | AD118: 0 | AE118: 8 | AF118: 10 | AG118: 11 | AH118: 0 | AI118: 9 | AJ118: 11 | AK118: 12
U119: SNC | V119: =snc -> 107 | AD119: >15 | AE119: 15 | AF119: 10 | AG119: <10 | AH119: >15 | AI119: 15 | AJ119: 10 | AK119: <10
U121: Verbal | V121: =verb -> 113
U122: Nonverbal Reasoning | V122: =nverb -> 117
U123: Spatial | V123: =sp -> 95
U125: Working Memory | V125: =wm -> 
U126: Processing Speed | V126: =ps -> 
U127: School Readiness | V127: =sr -> 
U128: =E81 -> Verbal Comprehension (Gc) | V128: 53 | X128: Verbal Conceptualization | Y128: VC, NV, ENC | AA128: 0.6 | AB128: 10.07 | AD128: 8.11
U129: Naming Vocabulary (Gc) | V129: 62 | X129: Formulation and Testing of Hypotheses | Y129: VC, PS, PC, Mat | AA129: 0.51 | AB129: -1.02 | AD129: 7.53
U130: Picture Similarities (Gf) | V130: 56 | X130: Use of Verbal Mediation to Solve Nonverbal Problems | Y130: PS, PC, Mat | AA130: 0.64 | AB130: 3.53 | AD130: 8.19
U131: Matrices (Gf) | V131: 63 | X131: Verbal Comprehension: | Y131: VC, ENC, RSO | AA131: 0.64 | AB131: 4.23 | AD131: 7.78
U132: Pattern Construction (Gv) | V132: 46 | X132: Verbal Expression: | Y132: NV, ROi , RDf, RSO, RDb, PhP, RN | AA132: 0.32 | AB132: -12.96 | AD132: 6.2
U133: Copying (Gv) | V133: 49 | X133: Visual Analysis of Pictures: | Y133: VC, PS, Mat, ROi, RPic | AA133: 0.44 | AB133: -10.2 | AD133: 8.48
X134: Visual Analysis of Figures or Designs: | Y134: PSim, PC, Mat, Copy, MLLF | AA134: 0.41 | AB134: -2.98 | AD134: 6.68
U135: =E88 -> Recall of Objects-Immediate (Glr) | V135: 52 | X135: Spatial Visualization and Orientation: | Y135: PC, Copy, MLLF | AA135: 0.62 | AB135: 7.21 | AD135: 6.73
U136: Recall of Objects-Delayed (Glr) | X136: Visual Verbal Integration: | Y136: PSim, Mat, ROi, RSO | AA136: 0.58 | AB136: -16.42 | AD136: 9.48
U137: Recall of Digits Forward (Gsm) | V137: 50 | X137: Short-term Memory: (general): | Y137: ROi, RDf, RPic, RSO, RDb | AA137: 0.44 | AB137: -10.97 | AD137: 7.5
U138: Recognition of Pictures (Gv) | V138: 47 | X138: Auditory Short-term Memory: | Y138: RDf, RSO, RDb, | AA138: 0.68 | AB138: -1.44 | AD138: 7.4
U139: Early Number Concepts | V139: =J32 -> 48 | X139: Visual Short-term Memory: | Y139: ROi, RPic | AA139: 0.91 | AB139: 8.71 | AD139: 11.76
U140: Matching Letter-like Forms | V140: =J33 -> 49 | X140: Verbal Long-term Information Retrieval: | Y140: NV, ENC, RN | AA140: 0.69 | AB140: -2.91 | AD140: 9.56
U141: =E94 -> Phonological Processing (Ga) | X141: Visual/holistic Information Processing: | Y141: PSim, PC, Mat, Copy, RPic, MLLF | AA141: 0.35 | AB141: -5.77 | AD141: 6.54
U142: Recall of Sequential Order (Gsm) | X142: Sequential Information Processing: | Y142: VC, ROi, RDf, RSO, SIP, RDb, RN | AA142: 0.33 | AB142: -16.35 | AD142: 6.46
U143: Recall of Digits Backward (Gsm)
U144: Speed of Information Processing (Gs)
U145: Rapid Naming (Gs)
C304: sum | D304: 20 | E304: =D304+1 -> 21 | F304: 22 | G304: 23 | H304: 24 | I304: 25 | J304: 26 | K304: 27 | L304: 28 | M304: 29 | N304: 30 | O304: 31 | P304: 32 | Q304: 33 | R304: 34 | S304: 35 | T304: 36 | U304: 37 | V304: 38 | W304: 39 | X304: 40 | Y304: 41 | Z304: 42 | AA304: 43 | AB304: 44 | AC304: 45 | AD304: 46 | AE304: 47 | AF304: 48 | AG304: 49 | AH304: 50 | AI304: 51 | AJ304: 52 | AK304: =AJ304+1 -> 53 | AL304: 54 | AM304: 55 | AN304: 56 | AO304: 57 | AP304: 58 | AQ304: 59 | AR304: 60 | AS304: 61 | AT304: 62 | AU304: 63 | AV304: 64 | AW304: 65 | AX304: 66 | AY304: 67 | AZ304: 68 | BA304: 69 | BB304: 70 | BC304: 71 | BD304: 72 | BE304: 73 | BF304: 74 | BG304: 75 | BH304: 76 | BI304: 77 | BJ304: 78 | BK304: 79 | BL304: 80 | BM304: 81 | BN304: 82 | BO304: 83 | BP304: 84 | BQ304: =BP304+1 -> 85 | BR304: 86 | BS304: 87 | BT304: 88 | BU304: 89 | BV304: 90 | BW304: 91 | BX304: 92 | BY304: 93 | BZ304: 94 | CA304: 95 | CB304: 96 | CC304: 97 | CD304: 98 | CE304: 99 | CF304: 100 | CG304: 101 | CH304: 102 | CI304: 103 | CJ304: 104 | CK304: 105 | CL304: 106 | CM304: 107 | CN304: 108 | CO304: 109 | CP304: 110 | CQ304: 111 | CR304: 112 | CS304: 113 | CT304: 114 | CU304: 115 | CV304: 116 | CW304: =CV304+1 -> 117 | CX304: 118 | CY304: 119 | CZ304: 120 | DA304: 121 | DB304: 122 | DC304: 123 | DD304: 124 | DE304: 125 | DF304: 126 | DG304: 127 | DH304: 128 | DI304: 129 | DJ304: 130 | DK304: 131 | DL304: 132 | DM304: 133 | DN304: 134 | DO304: 135 | DP304: 136 | DQ304: 137 | DR304: 138 | DS304: 139 | DT304: 140 | DU304: 141 | DV304: 142 | DW304: 143 | DX304: 144 | DY304: 145 | DZ304: 146 | EA304: 147 | EB304: 148 | EC304: =EB304+1 -> 149 | ED304: 150 | EE304: 151 | EF304: 152 | EG304: 153 | EH304: 154 | EI304: 155 | EJ304: 156 | EK304: 157 | EL304: 158 | EM304: 159 | EN304: 160 | EO304: 161 | EP304: 162 | EQ304: 163 | ER304: 164 | ES304: 165 | ET304: 166 | EU304: 167 | EV304: 168 | EW304: 169 | EX304: 170 | EY304: 171 | EZ304: 172 | FA304: 173 | FB304: 174 | FC304: 175 | FD304: 176 | FE304: 177 | FF304: 178 | FG304: 179 | FH304: 180
C305: wm | D305: 33 | E305: 34 | F305: 35 | G305: 36 | H305: 37 | I305: 38 | J305: 39 | K305: 40 | L305: 41 | M305: 42 | N305: 42 | O305: 43 . | P305: 44 | Q305: 45 | R305: 46 | S305: 47 | T305: 48 | U305: 49 | V305: 50 | W305: 50 | X305: 51 | Y305: 52 | Z305: 53 | AA305: 54 | AB305: 55 | AC305: 56 | AD305: 57 | AE305: 58 | AF305: 59 | AG305: 59 | AH305: 60 | AI305: 61 | AJ305: 62 | AK305: 63 | AL305: 64 | AM305: 65 | AN305: 66 | AO305: 66 | AP305: 67 | AQ305: 68 | AR305: 69 | AS305: 70 | AT305: 70 | AU305: 71 | AV305: 72 | AW305: 72 | AX305: 73 | AY305: 74 | AZ305: 74 | BA305: 75 | BB305: 76 | BC305: 76 | BD305: 77 | BE305: 78 | BF305: 78 | BG305: 79 | BH305: 80 | BI305: 81 | BJ305: 81 | BK305: 82 | BL305: 83 | BM305: 84 | BN305: 85 | BO305: 85 | BP305: 86 | BQ305: 87 | BR305: 88 | BS305: 89 | BT305: 89 | BU305: 90 | BV305: 91 | BW305: 92 | BX305: 93 | BY305: 94 | BZ305: 95 | CA305: 96 | CB305: 96 | CC305: 97 | CD305: 98 | CE305: 99 | CF305: 100 | CG305: 101 | CH305: 102 | CI305: 103 | CJ305: 104 | CK305: 105 | CL305: 105 | CM305: 106 | CN305: 107 | CO305: 108 | CP305: 109 | CQ305: 110 | CR305: 111 | CS305: 112 | CT305: 113 | CU305: 113 | CV305: 114 | CW305: 115 | CX305: 116 | CY305: 117 | CZ305: 118 | DA305: 119 | DB305: 119 | DC305: 120 | DD305: 121 | DE305: 122 | DF305: 123 | DG305: 124 | DH305: 124 | DI305: 125 | DJ305: 126 | DK305: 127 | DL305: 128 | DM305: 129 | DN305: 129 | DO305: 130 | DP305: 131 | DQ305: 132 | DR305: 133 | DS305: 134 | DT305: 134 | DU305: 135 | DV305: 136 | DW305: 137 | DX305: 138 | DY305: 139 | DZ305: 139 | EA305: 140 | EB305: 141 | EC305: 142 | ED305: 143 | EE305: 144 | EF305: 144 | EG305: 145 | EH305: 146 | EI305: 147 | EJ305: 149 | EK305: 148 | EL305: 149 | EM305: 150 | EN305: 151 | EO305: 152 | EP305: 152 | EQ305: 153 | ER305: 154 | ES305: 155 | ET305: 156 | EU305: 157 | EV305: 157 | EW305: 158 | EX305: 159 | EY305: 160 | EZ305: 161 | FA305: 162 | FB305: 163 | FC305: 164 | FD305: 165 | FE305: 166 | FF305: 167 | FG305: 168 | FH305: 169
C306: pr | D306: <0.1 | E306: <0.1 | F306: <0.1 | G306: <0.1 | H306: <0.1 | I306: <0.1 | J306: <0.1 | K306: <0.1 | L306: <0.1 | M306: <0.1 | N306: <0.1 | O306: <0.1 | P306: <0.1 | Q306: <0.1 | R306: <0.1 | S306: <0.1 | T306: <0.1 | U306: <0.1 | V306: <0.1 | W306: <0.1 | X306: 0.1 | Y306: 0.1 | Z306: 0.1 | AA306: 0.1 | AB306: 0.1 | AC306: 0.2 | AD306: 0.2 | AE306: 0.3 | AF306: 0.3 | AG306: 0.3 | AH306: 0.4 | AI306: 0.5 | AJ306: 1 | AK306: 1 | AL306: 1 | AM306: 1 | AN306: 1 | AO306: 1 | AP306: 1 | AQ306: 2 | AR306: 2 | AS306: 2 | AT306: 2 | AU306: 3 | AV306: 3 | AW306: 3 | AX306: 4 | AY306: 4 | AZ306: 4 | BA306: 5 | BB306: 5 | BC306: 5 | BD306: 6 | BE306: 7 | BF306: 7 | BG306: 8 | BH306: 9 | BI306: 10 | BJ306: 10 | BK306: 12 | BL306: 13 | BM306: 14 | BN306: 16 | BO306: 16 | BP306: 18 | BQ306: 19 | BR306: 21 | BS306: 23 | BT306: 23 | BU306: 25 | BV306: 27 | BW306: 30 | BX306: 32 | BY306: 34 | BZ306: 37 | CA306: 39 | CB306: 39 | CC306: 42 | CD306: 45 | CE306: 47 | CF306: 50 | CG306: 53 | CH306: 55 | CI306: 58 | CJ306: 61 | CK306: 63 | CL306: 63 | CM306: 66 | CN306: 68 | CO306: 70 | CP306: 73 | CQ306: 75 | CR306: 77 | CS306: 79 | CT306: 81 | CU306: 81 | CV306: 82 | CW306: 84 | CX306: 86 | CY306: 87 | CZ306: 88 | DA306: 90 | DB306: 90 | DC306: 91 | DD306: 92 | DE306: 93 | DF306: 94 | DG306: 95 | DH306: 95 | DI306: 95 | DJ306: 96 | DK306: 96 | DL306: 97 | DM306: 97 | DN306: 97 | DO306: 98 | DP306: 98 | DQ306: 98 | DR306: 99 | DS306: 99 | DT306: 99 | DU306: 99 | DV306: 99 | DW306: 99 | DX306: 99 | DY306: 99.5 | DZ306: 99.5 | EA306: 99.6 | EB306: 99.7 | EC306: 99.7 | ED306: 99.8 | EE306: 99.8 | EF306: 99.8 | EG306: 99.9 | EH306: 99.9 | EI306: 99.9 | EJ306: 99.9 | EK306: 99.9 | EL306: 99.9 | EM306: >99.9 | EN306: >99.9 | EO306: >99.9 | EP306: >99.9 | EQ306: >99.9 | ER306: >99.9 | ES306: >99.9 | ET306: >99.9 | EU306: >99.9 | EV306: >99.9 | EW306: >99.9 | EX306: >99.9 | EY306: >99.9 | EZ306: >99.9 | FA306: >99.9 | FB306: >99.9 | FC306: >99.9 | FD306: >99.9 | FE306: >99.9 | FF306: >99.9 | FG306: >99.9 | FH306: >99.9
C307: 90p | D307: 31-42 | E307: 32-43 | F307: 33-43 | G307: 34-44 | H307: 35-45 | I307: 36-46 | J307: 37-47 | K307: 38-48 | L307: 39-49 | M307: 40-50 | N307: 40-50 | O307: 41-51 | P307: 42-52 | Q307: 43-53 | R307: 43-54 | S307: 44-55 | T307: 45-56 | U307: 46-57 | V307: 47-58 | W307: 47-58 | X307: 48-59 | Y307: 49-60 | Z307: 50-61 | AA307: 51-62 | AB307: 52-62 | AC307: 53-63 | AD307: 54-64 | AE307: 55-65 | AF307: 56-66 | AG307: 56-66 | AH307: 57-67 | AI307: 58-68 | AJ307: 59-69 | AK307: 60-70 | AL307: 61-71 | AM307: 62-72 | AN307: 62-73 | AO307: 62-73 | AP307: 63-74 | AQ307: 64-75 | AR307: 65-76 | AS307: 66-77 | AT307: 66-77 | AU307: 67-78 | AV307: 68-79 | AW307: 68-79 | AX307: 69-80 | AY307: 70-81 | AZ307: 70-81 | BA307: 71-81 | BB307: 72-82 | BC307: 72-82 | BD307: 73-83 | BE307: 74-84 | BF307: 74-84 | BG307: 75-85 | BH307: 76-86 | BI307: 77-87 | BJ307: 77-87 | BK307: 78-88 | BL307: 79-89 | BM307: 80-90 | BN307: 81-91 | BO307: 81-91 | BP307: 81-92 | BQ307: 82-93 | BR307: 83-94 | BS307: 84-95 | BT307: 84-95 | BU307: 85-96 | BV307: 86-97 | BW307: 87-98 | BX307: 88-99 | BY307: 89-100 | BZ307: 90-100 | CA307: 91-101 | CB307: 91-101 | CC307: 92-102 | CD307: 93-103 | CE307: 94-104 | CF307: 95-105 | CG307: 96-106 | CH307: 97-107 | CI307: 98-108 | CJ307: 99-109 | CK307: 100-110 | CL307: 100-110 | CM307: 100-111 | CN307: 101-112 | CO307: 102-113 | CP307: 103-114 | CQ307: 104-115 | CR307: 105-116 | CS307: 106-117 | CT307: 107-118 | CU307: 107-118 | CV307: 108-119 | CW307: 109-119 | CX307: 110-120 | CY307: 111-121 | CZ307: 112-122 | DA307: 113-123 | DB307: 113-123 | DC307: 114-124 | DD307: 115-125 | DE307: 116-126 | DF307: 117-127 | DG307: 118-128 | DH307: 118-128 | DI307: 119-129 | DJ307: 119-130 | DK307: 120-131 | DL307: 121-132 | DM307: 122-133 | DN307: 122-133 | DO307: 123-134 | DP307: 124-135 | DQ307: 125-136 | DR307: 126-137 | DS307: 127-138 | DT307: 127-138 | DU307: 128-138 | DV307: 129-139 | DW307: 130-140 | DX307: 131-141 | DY307: 132-142 | DZ307: 132-142 | EA307: 133-143 | EB307: 134-144 | EC307: 135-145 | ED307: 136-146 | EE307: 137-147 | EF307: 137-147 | EG307: 138-148 | EH307: 138-149 | EI307: 139-150 | EJ307: 140-151 | EK307: 140-151 | EL307: 141-152 | EM307: 142-153 | EN307: 143-154 | EO307: 144-155 | EP307: 144-155 | EQ307: 145-156 | ER307: 146-157 | ES307: 147-157 | ET307: 148-158 | EU307: 149-159 | EV307: 149-159 | EW307: 150-160 | EX307: 151-161 | EY307: 152-162 | EZ307: 153-163 | FA307: 154-164 | FB307: 155-165 | FC307: 156-166 | FD307: 157-167 | FE307: 157-168 | FF307: 158-169 | FG307: 159-170 | FH307: 160-171
C308: 95p | D308: 30-43 | E308: 31-44 | F308: 32-44 | G308: 33-45 | H308: 34-46 | I308: 35-47 | J308: 36-48 | K308: 37-49 | L308: 38-50 | M308: 39-51 | N308: 39-51 | O308: 40-52 | P308: 41-53 | Q308: 42-54 | R308: 42-55 | S308: 43-56 | T308: 44-57 | U308: 45-58 | V308: 46-59 | W308: 46-59 | X308: 47-60 | Y308: 48-61 | Z308: 49-62 | AA308: 50-63 | AB308: 51-63 | AC308: 52-64 | AD308: 53-65 | AE308: 54-66 | AF308: 55-67 | AG308: 55-67 | AH308: 56-68 | AI308: 57-69 | AJ308: 58-70 | AK308: 59-71 | AL308: 60-72 | AM308: 61-73 | AN308: 61-74 | AO308: 61-74 | AP308: 62-75 | AQ308: 63-76 | AR308: 64-77 | AS308: 65-78 | AT308: 65-78 | AU308: 66-79 | AV308: 67-80 | AW308: 67-80 | AX308: 68-81 | AY308: 69-82 | AZ308: 69-82 | BA308: 70-82 | BB308: 71-83 | BC308: 71-83 | BD308: 72-84 | BE308: 73-85 | BF308: 73-85 | BG308: 74-86 | BH308: 75-87 | BI308: 76-88 | BJ308: 76-88 | BK308: 77-89 | BL308: 78-90 | BM308: 79-91 | BN308: 80-92 | BO308: 80-92 | BP308: 80-93 | BQ308: 81-94 | BR308: 82-95 | BS308: 83-96 | BT308: 83-96 | BU308: 84-97 | BV308: 85-98 | BW308: 86-99 | BX308: 87-100 | BY308: 88-101 | BZ308: 89-101 | CA308: 90-102 | CB308: 90-102 | CC308: 91-103 | CD308: 92-104 | CE308: 93-105 | CF308: 94-106 | CG308: 95-107 | CH308: 96-108 | CI308: 97-109 | CJ308: 98-110 | CK308: 99-111 | CL308: 99-111 | CM308: 99-112 | CN308: 100-113 | CO308: 101-114 | CP308: 102-115 | CQ308: 103-116 | CR308: 104-117 | CS308: 105-118 | CT308: 106-119 | CU308: 106-119 | CV308: 107-120 | CW308: 108-120 | CX308: 109-121 | CY308: 110-122 | CZ308: 111-123 | DA308: 112-124 | DB308: 112-124 | DC308: 113-125 | DD308: 114-126 | DE308: 115-127 | DF308: 116-128 | DG308: 117-129 | DH308: 117-129 | DI308: 118-130 | DJ308: 118-131 | DK308: 119-132 | DL308: 120-133 | DM308: 121-134 | DN308: 121-134 | DO308: 122-135 | DP308: 123-136 | DQ308: 124-137 | DR308: 125-138 | DS308: 126-139 | DT308: 126-139 | DU308: 127-139 | DV308: 128-140 | DW308: 129-141 | DX308: 130-142 | DY308: 131-143 | DZ308: 131-143 | EA308: 132-144 | EB308: 133-145 | EC308: 134-146 | ED308: 135-147 | EE308: 136-148 | EF308: 136-148 | EG308: 137-149 | EH308: 137-150 | EI308: 138-151 | EJ308: 139-152 | EK308: 139-152 | EL308: 140-153 | EM308: 141-154 | EN308: 142-155 | EO308: 143-156 | EP308: 143-156 | EQ308: 144-157 | ER308: 145-158 | ES308: 146-158 | ET308: 147-159 | EU308: 148-160 | EV308: 148-160 | EW308: 149-161 | EX308: 150-162 | EY308: 151-163 | EZ308: 152-164 | FA308: 153-165 | FB308: 154-166 | FC308: 155-167 | FD308: 156-168 | FE308: 156-169 | FF308: 157-170 | FG308: 158-171 | FH308: 159-172
C316: psss | D316: 20 | E316: =D316+1 -> 21 | F316: 22 | G316: 23 | H316: 24 | I316: 25 | J316: 26 | K316: 27 | L316: 28 | M316: 29 | N316: 30 | O316: 31 | P316: 32 | Q316: 33 | R316: 34 | S316: 35 | T316: 36 | U316: 37 | V316: 38 | W316: 39 | X316: 40 | Y316: 41 | Z316: 42 | AA316: 43 | AB316: 44 | AC316: 45 | AD316: 46 | AE316: 47 | AF316: 48 | AG316: 49 | AH316: 50 | AI316: 51 | AJ316: 52 | AK316: =AJ316+1 -> 53 | AL316: 54 | AM316: 55 | AN316: 56 | AO316: 57 | AP316: 58 | AQ316: 59 | AR316: 60 | AS316: 61 | AT316: 62 | AU316: 63 | AV316: 64 | AW316: 65 | AX316: 66 | AY316: 67 | AZ316: 68 | BA316: 69 | BB316: 70 | BC316: 71 | BD316: 72 | BE316: 73 | BF316: 74 | BG316: 75 | BH316: 76 | BI316: 77 | BJ316: 78 | BK316: 79 | BL316: 80 | BM316: 81 | BN316: 82 | BO316: 83 | BP316: 84 | BQ316: =BP316+1 -> 85 | BR316: 86 | BS316: 87 | BT316: 88 | BU316: 89 | BV316: 90 | BW316: 91 | BX316: 92 | BY316: 93 | BZ316: 94 | CA316: 95 | CB316: 96 | CC316: 97 | CD316: 98 | CE316: 99 | CF316: 100 | CG316: 101 | CH316: 102 | CI316: 103 | CJ316: 104 | CK316: 105 | CL316: 106 | CM316: 107 | CN316: 108 | CO316: 109 | CP316: 110 | CQ316: 111 | CR316: 112 | CS316: 113 | CT316: 114 | CU316: 115 | CV316: 116 | CW316: =CV316+1 -> 117 | CX316: 118 | CY316: 119 | CZ316: 120 | DA316: 121 | DB316: 122 | DC316: 123 | DD316: 124 | DE316: 125 | DF316: 126 | DG316: 127 | DH316: 128 | DI316: 129 | DJ316: 130 | DK316: 131 | DL316: 132 | DM316: 133 | DN316: 134 | DO316: 135 | DP316: 136 | DQ316: 137 | DR316: 138 | DS316: 139 | DT316: 140 | DU316: 141 | DV316: 142 | DW316: 143 | DX316: 144 | DY316: 145 | DZ316: 146 | EA316: 147 | EB316: 148 | EC316: =EB316+1 -> 149 | ED316: 150 | EE316: 151 | EF316: 152 | EG316: 153 | EH316: 154 | EI316: 155 | EJ316: 156 | EK316: 157 | EL316: 158 | EM316: 159 | EN316: 160 | EO316: 161 | EP316: 162 | EQ316: 163 | ER316: 164 | ES316: 165 | ET316: 166 | EU316: 167 | EV316: 168 | EW316: 169 | EX316: 170 | EY316: 171 | EZ316: 172 | FA316: 173 | FB316: 174 | FC316: 175
D317: 30 | E317: 30 | F317: 30 | G317: 30 | H317: 30 | I317: 31 | J317: 32 | K317: 33 | L317: 34 | M317: 35 | N317: 36 | O317: 37 | P317: 38 | Q317: 39 | R317: 39 | S317: 40 | T317: 41 | U317: 42 | V317: 43 | W317: 44 | X317: 45 | Y317: 46 | Z317: 47 | AA317: 48 | AB317: 49 | AC317: 49 | AD317: 50 | AE317: 51 | AF317: 52 | AG317: 53 | AH317: 54 | AI317: 55 | AJ317: 56 | AK317: 57 | AL317: 58 | AM317: 59 | AN317: 59 | AO317: 60 | AP317: 61 | AQ317: 62 | AR317: 63 | AS317: 64 | AT317: 65 | AU317: 66 | AV317: 67 | AW317: 68 | AX317: 69 | AY317: 69 | AZ317: 70 | BA317: 71 | BB317: 72 | BC317: 73 | BD317: 74 | BE317: 75 | BF317: 76 | BG317: 77 | BH317: 78 | BI317: 79 | BJ317: 79 | BK317: 80 | BL317: 81 | BM317: 82 | BN317: 83 | BO317: 84 | BP317: 85 | BQ317: 86 | BR317: 87 | BS317: 88 | BT317: 89 | BU317: 89 | BV317: 90 | BW317: 91 | BX317: 92 | BY317: 93 | BZ317: 94 | CA317: 95 | CB317: 96 | CC317: 97 | CD317: 98 | CE317: 99 | CF317: 100 | CG317: 101 | CH317: 102 | CI317: 103 | CJ317: 104 | CK317: 105 | CL317: 106 | CM317: 107 | CN317: 108 | CO317: 109 | CP317: 109 | CQ317: 110 | CR317: 111 | CS317: 112 | CT317: 113 | CU317: 114 | CV317: 115 | CW317: 116 | CX317: 117 | CY317: 118 | CZ317: 119 | DA317: 119 | DB317: 120 | DC317: 121 | DD317: 122 | DE317: 123 | DF317: 124 | DG317: 125 | DH317: 126 | DI317: 127 | DJ317: 128 | DK317: 129 | DL317: 129 | DM317: 130 | DN317: 131 | DO317: 132 | DP317: 133 | DQ317: 134 | DR317: 135 | DS317: 136 | DT317: 137 | DU317: 138 | DV317: 139 | DW317: 139 | DX317: 140 | DY317: 141 | DZ317: 142 | EA317: 143 | EB317: 144 | EC317: 145 | ED317: 146 | EE317: 147 | EF317: 148 | EG317: 149 | EH317: 149 | EI317: 150 | EJ317: 151 | EK317: 152 | EL317: 153 | EM317: 154 | EN317: 155 | EO317: 156 | EP317: 157 | EQ317: 158 | ER317: 159 | ES317: 160 | ET317: 161 | EU317: 162 | EV317: 163 | EW317: 164 | EX317: 165 | EY317: 166 | EZ317: 167 | FA317: 168 | FB317: 169 | FC317: 170
C319: gcasum | D319: 60 | E319: 63 | F319: 64 | G319: 67 | H319: 69 | I319: 70 | J319: 73 | K319: 75 | L319: 77 | M319: 80 | N319: 81 | O319: 83 | P319: 86 | Q319: 87 | R319: 90 | S319: 93 | T319: 94 | U319: 98 | V319: 99 | W319: 101 | X319: 105 | Y319: 108 | Z319: 111 | AA319: 112 | AB319: 115 | AC319: 117 | AD319: 119 | AE319: 123 | AF319: 127 | AG319: 129 | AH319: 131 | AI319: 134 | AJ319: 135 | AK319: 138 | AL319: 141 | AM319: 145 | AN319: 147 | AO319: 148 | AP319: 152 | AQ319: 153 | AR319: 155 | AS319: 158 | AT319: 159 | AU319: 161 | AV319: 165 | AW319: 169 | AX319: 171 | AY319: 174 | AZ319: 177 | BA319: 181 | BB319: 183 | BC319: 184 | BD319: 188 | BE319: 189 | BF319: 191 | BG319: 195 | BH319: 199 | BI319: 201 | BJ319: 202 | BK319: 206 | BL319: 207 | BM319: 210 | BN319: 213 | BO319: 214 | BP319: 218 | BQ319: 219 | BR319: 222 | BS319: 225 | BT319: 228 | BU319: 231 | BV319: 232 | BW319: 236 | BX319: 237 | BY319: 240 | BZ319: 243 | CA319: 244 | CB319: 246 | CC319: 249 | CD319: 252 | CE319: 255 | CF319: 258 | CG319: 261 | CH319: 265 | CI319: 267 | CJ319: 268 | CK319: 272 | CL319: 273 | CM319: 274 | CN319: 277 | CO319: 279 | CP319: 280 | CQ319: 283 | CR319: 285 | CS319: 286 | CT319: 289 | CU319: 291 | CV319: 294 | CW319: 297 | CX319: 300 | CY319: 303 | CZ319: 307 | DA319: 309 | DB319: 310 | DC319: 313 | DD319: 315 | DE319: 317 | DF319: 320 | DG319: 321 | DH319: 323 | DI319: 326 | DJ319: 327 | DK319: 328 | DL319: 331 | DM319: 333 | DN319: 334 | DO319: 337 | DP319: 339 | DQ319: 340 | DR319: 343 | DS319: 345 | DT319: 346 | DU319: 349 | DV319: 351 | DW319: 352 | DX319: 355 | DY319: 357 | DZ319: 358 | EA319: 361 | EB319: 363 | EC319: 366 | ED319: 369 | EE319: 371 | EF319: 373 | EG319: 375 | EH319: 376 | EI319: 378 | EJ319: 381 | EK319: 384 | EL319: 386 | EM319: 387 | EN319: 389 | EO319: 392 | EP319: 393 | EQ319: 395 | ER319: 398 | ES319: 399 | ET319: 401 | EU319: 404 | EV319: 405 | EW319: 408 | EX319: 411 | EY319: 414 | EZ319: 417 | FA319: 420 | FB319: 423 | FC319: 426 | FD319: 429 | FE319: 432 | FF319: 435 | FG319: 437 | FH319: 440 | FI319: 441 | FJ319: 443 | FK319: 446 | FL319: 447 | FM319: 448 | FN319: 451 | FO319: 453 | FP319: 454 | FQ319: 457 | FR319: 459 | FS319: 460 | FT319: 463 | FU319: 465 | FV319: 466 | FW319: 469 | FX319: 471 | FY319: 472 | FZ319: 475 | GA319: 477 | GB319: 478 | GC319: 481 | GD319: 483 | GE319: 484 | GF319: 487 | GG319: 489 | GH319: 490 | GI319: 493 | GJ319: 495 | GK319: 496 | GL319: 499 | GM319: 501 | GN319: 502 | GO319: 505 | GP319: 507 | GQ319: 513 | GR319: 519 | GS319: 525 | GT319: 531 | GU319: 537
D320: 30 | E320: 30 | F320: 31 | G320: 32 | H320: 32 | I320: 33 | J320: 34 | K320: 34 | L320: 35 | M320: 36 | N320: 36 | O320: 37 | P320: 38 | Q320: 38 | R320: 39 | S320: 39 | T320: 40 | U320: 41 | V320: 41 | W320: 42 | X320: 43 | Y320: 44 | Z320: 44 | AA320: 45 | AB320: 46 | AC320: 46 | AD320: 47 | AE320: 48 | AF320: 49 | AG320: 49 | AH320: 50 | AI320: 51 | AJ320: 51 | AK320: 52 | AL320: 53 | AM320: 54 | AN320: 54 | AO320: 55 | AP320: 56 | AQ320: 56 | AR320: 57 | AS320: 58 | AT320: 58 | AU320: 59 | AV320: 60 | AW320: 61 | AX320: 61 | AY320: 62 | AZ320: 63 | BA320: 64 | BB320: 64 | BC320: 65 | BD320: 66 | BE320: 66 | BF320: 67 | BG320: 68 | BH320: 69 | BI320: 69 | BJ320: 70 | BK320: 71 | BL320: 71 | BM320: 72 | BN320: 72 | BO320: 73 | BP320: 74 | BQ320: 74 | BR320: 75 | BS320: 76 | BT320: 77 | BU320: 77 | BV320: 78 | BW320: 79 | BX320: 79 | BY320: 80 | BZ320: 80 | CA320: 81 | CB320: 82 | CC320: 83 | CD320: 84 | CE320: 85 | CF320: 86 | CG320: 87 | CH320: 88 | CI320: 88 | CJ320: 89 | CK320: 90 | CL320: 90 | CM320: 91 | CN320: 92 | CO320: 92 | CP320: 93 | CQ320: 94 | CR320: 94 | CS320: 95 | CT320: 96 | CU320: 97 | CV320: 98 | CW320: 99 | CX320: 100 | CY320: 101 | CZ320: 102 | DA320: 102 | DB320: 103 | DC320: 104 | DD320: 104 | DE320: 105 | DF320: 106 | DG320: 106 | DH320: 107 | DI320: 108 | DJ320: 108 | DK320: 109 | DL320: 110 | DM320: 110 | DN320: 111 | DO320: 112 | DP320: 112 | DQ320: 113 | DR320: 114 | DS320: 114 | DT320: 115 | DU320: 116 | DV320: 116 | DW320: 117 | DX320: 118 | DY320: 118 | DZ320: 119 | EA320: 120 | EB320: 121 | EC320: 122 | ED320: 123 | EE320: 124 | EF320: 125 | EG320: 125 | EH320: 126 | EI320: 127 | EJ320: 128 | EK320: 129 | EL320: 130 | EM320: 130 | EN320: 131 | EO320: 132 | EP320: 132 | EQ320: 133 | ER320: 134 | ES320: 134 | ET320: 135 | EU320: 136 | EV320: 136 | EW320: 137 | EX320: 138 | EY320: 139 | EZ320: 140 | FA320: 141 | FB320: 142 | FC320: 143 | FD320: 144 | FE320: 145 | FF320: 146 | FG320: 147 | FH320: 148 | FI320: 148 | FJ320: 149 | FK320: 150 | FL320: 150 | FM320: 151 | FN320: 152 | FO320: 152 | FP320: 153 | FQ320: 154 | FR320: 154 | FS320: 155 | FT320: 156 | FU320: 156 | FV320: 157 | FW320: 158 | FX320: 158 | FY320: 159 | FZ320: 160 | GA320: 160 | GB320: 161 | GC320: 162 | GD320: 162 | GE320: 163 | GF320: 164 | GG320: 164 | GH320: 165 | GI320: 166 | GJ320: 166 | GK320: 167 | GL320: 168 | GM320: 168 | GN320: 169 | GO320: 170 | GP320: 170 | GQ320: 170 | GR320: 170 | GS320: 170 | GT320: 170 | GU320: 170
C322: t | D322: 10 | E322: =D322+1 -> 11 | F322: 12 | G322: 13 | H322: 14 | I322: 15 | J322: 16 | K322: 17 | L322: 18 | M322: 19 | N322: 20 | O322: 21 | P322: 22 | Q322: 23 | R322: 24 | S322: 25 | T322: 26 | U322: 27 | V322: 28 | W322: 29 | X322: 30 | Y322: 31 | Z322: 32 | AA322: 33 | AB322: 34 | AC322: 35 | AD322: 36 | AE322: 37 | AF322: 38 | AG322: 39 | AH322: 40 | AI322: 41 | AJ322: 42 | AK322: =AJ322+1 -> 43 | AL322: 44 | AM322: 45 | AN322: 46 | AO322: 47 | AP322: 48 | AQ322: 49 | AR322: 50 | AS322: 51 | AT322: 52 | AU322: 53 | AV322: 54 | AW322: 55 | AX322: 56 | AY322: 57 | AZ322: 58 | BA322: 59 | BB322: 60 | BC322: 61 | BD322: 62 | BE322: 63 | BF322: 64 | BG322: 65 | BH322: 66 | BI322: 67 | BJ322: 68 | BK322: 69 | BL322: 70 | BM322: 71 | BN322: 72 | BO322: 73 | BP322: 74 | BQ322: =BP322+1 -> 75 | BR322: 76 | BS322: 77 | BT322: 78 | BU322: 79 | BV322: 80 | BW322: 81 | BX322: 82 | BY322: 83 | BZ322: 84 | CA322: 85 | CB322: 86 | CC322: 87 | CD322: 88 | CE322: 89 | CF322: 90
C323: PR | D323: <.1 | E323: <.1 | F323: <.1 | G323: <.1 | H323: <.1 | I323: <.1 | J323: <.1 | K323: <.1 | L323: <.1 | M323: 0.1 | N323: 0.1 | O323: 0.2 | P323: 0.3 | Q323: 0.4 | R323: 0.5 | S323: 1 | T323: 1 | U323: 1 | V323: 1 | W323: 2 | X323: 2 | Y323: 3 | Z323: 4 | AA323: 4 | AB323: 5 | AC323: 7 | AD323: 8 | AE323: 10 | AF323: 12 | AG323: 14 | AH323: 16 | AI323: 17 | AJ323: 21 | AK323: 24 | AL323: 27 | AM323: 31 | AN323: 34 | AO323: 38 | AP323: 42 | AQ323: 48 | AR323: 50 | AS323: 54 | AT323: 58 | AU323: 62 | AV323: 66 | AW323: 69 | AX323: 73 | AY323: 76 | AZ323: 79 | BA323: 82 | BB323: 84 | BC323: 86 | BD323: 88 | BE323: 90 | BF323: 92 | BG323: 93 | BH323: 95 | BI323: 96 | BJ323: 96 | BK323: 97 | BL323: 98 | BM323: 98 | BN323: 99 | BO323: 99 | BP323: 99 | BQ323: 99 | BR323: 99.5 | BS323: 99.7 | BT323: 99.7 | BU323: 99.8 | BV323: 99.9 | BW323: 99.9 | BX323: 99.9 | BY323: >99.9 | BZ323: >99.9 | CA323: >99.9 | CB323: >99.9 | CC323: >99.9 | CD323: >99.9 | CE323: >99.9 | CF323: >99.9
C325: Vts | D325: 20 | E325: =D325+1 -> 21 | F325: 22 | G325: 23 | H325: 24 | I325: 25 | J325: 26 | K325: 27 | L325: 28 | M325: 29 | N325: 30 | O325: 31 | P325: 32 | Q325: 33 | R325: 34 | S325: 35 | T325: 36 | U325: 37 | V325: 38 | W325: 39 | X325: 40 | Y325: 41 | Z325: 42 | AA325: 43 | AB325: 44 | AC325: 45 | AD325: 46 | AE325: 47 | AF325: 48 | AG325: 49 | AH325: 50 | AI325: 51 | AJ325: 52 | AK325: =AJ325+1 -> 53 | AL325: 54 | AM325: 55 | AN325: 56 | AO325: 57 | AP325: 58 | AQ325: 59 | AR325: 60 | AS325: 61 | AT325: 62 | AU325: 63 | AV325: 64 | AW325: 65 | AX325: 66 | AY325: 67 | AZ325: 68 | BA325: 69 | BB325: 70 | BC325: 71 | BD325: 72 | BE325: 73 | BF325: 74 | BG325: 75 | BH325: 76 | BI325: 77 | BJ325: 78 | BK325: 79 | BL325: 80 | BM325: 81 | BN325: 82 | BO325: 83 | BP325: 84 | BQ325: =BP325+1 -> 85 | BR325: 86 | BS325: 87 | BT325: 88 | BU325: 89 | BV325: 90 | BW325: 91 | BX325: 92 | BY325: 93 | BZ325: 94 | CA325: 95 | CB325: 96 | CC325: 97 | CD325: 98 | CE325: 99 | CF325: 100 | CG325: 101 | CH325: =CG325+1 -> 102 | CI325: 103 | CJ325: 104 | CK325: 105 | CL325: 106 | CM325: 107 | CN325: 108 | CO325: 109 | CP325: 110 | CQ325: 111 | CR325: 112 | CS325: 113 | CT325: 114 | CU325: 115 | CV325: 116 | CW325: 117 | CX325: 118 | CY325: 119 | CZ325: 120 | DA325: 121 | DB325: 122 | DC325: 123 | DD325: 124 | DE325: 125 | DF325: 126 | DG325: 127 | DH325: 128 | DI325: 129 | DJ325: 130 | DK325: 131 | DL325: 132 | DM325: 133 | DN325: =DM325+1 -> 134 | DO325: 135 | DP325: 136 | DQ325: 137 | DR325: 138 | DS325: 139 | DT325: 140 | DU325: 141 | DV325: 142 | DW325: 143 | DX325: 144 | DY325: 145 | DZ325: 146 | EA325: 147 | EB325: 148 | EC325: 149 | ED325: 150 | EE325: 151 | EF325: 152 | EG325: 153 | EH325: 154 | EI325: 155 | EJ325: 156 | EK325: 157 | EL325: 158 | EM325: 159 | EN325: 160 | EO325: 161 | EP325: 162 | EQ325: 163 | ER325: 164 | ES325: 165 | ET325: =ES325+1 -> 166 | EU325: 167 | EV325: 168 | EW325: 169 | EX325: 170 | EY325: 171 | EZ325: 172 | FA325: 173 | FB325: 174 | FC325: 175 | FD325: 176 | FE325: 177 | FF325: 178 | FG325: 179 | FH325: 180
C326: Vcls | D326: 31 | E326: 32 | F326: 33 | G326: 34 | H326: 35 | I326: 36 | J326: 37 | K326: 38 | L326: 39 | M326: 40 | N326: 41 | O326: 42 | P326: 43 | Q326: 44 | R326: 45 | S326: 45 | T326: 46 | U326: 47 | V326: 48 | W326: 49 | X326: 50 | Y326: 51 | Z326: 51 | AA326: 52 | AB326: 53 | AC326: 54 | AD326: 55 | AE326: 56 | AF326: 57 | AG326: 57 | AH326: 58 | AI326: 59 | AJ326: 60 | AK326: 61 | AL326: 62 | AM326: 63 | AN326: 63 | AO326: 64 | AP326: 65 | AQ326: 66 | AR326: 67 | AS326: 68 | AT326: 69 | AU326: 70 | AV326: 70 | AW326: 71 | AX326: 72 | AY326: 73 | AZ326: 73 | BA326: 74 | BB326: 75 | BC326: 76 | BD326: 77 | BE326: 77 | BF326: 78 | BG326: 79 | BH326: 80 | BI326: 80 | BJ326: 81 | BK326: 82 | BL326: 83 | BM326: 83 | BN326: 84 | BO326: 85 | BP326: 86 | BQ326: 86 | BR326: 87 | BS326: 88 | BT326: 89 | BU326: 89 | BV326: 90 | BW326: 91 | BX326: 92 | BY326: 93 | BZ326: 94 | CA326: 95 | CB326: 96 | CC326: 97 | CD326: 98 | CE326: 99 | CF326: 100 | CG326: 101 | CH326: 102 | CI326: 103 | CJ326: 103 | CK326: 104 | CL326: 105 | CM326: 106 | CN326: 106 | CO326: 107 | CP326: 108 | CQ326: 109 | CR326: 109 | CS326: 110 | CT326: 111 | CU326: 112 | CV326: 113 | CW326: 114 | CX326: 115 | CY326: 116 | CZ326: 117 | DA326: 118 | DB326: 119 | DC326: 102 | DD326: 120 | DE326: 121 | DF326: 122 | DG326: 123 | DH326: 123 | DI326: 124 | DJ326: 125 | DK326: 126 | DL326: 127 | DM326: 128 | DN326: 128 | DO326: 129 | DP326: 130 | DQ326: 131 | DR326: 132 | DS326: 133 | DT326: 133 | DU326: 134 | DV326: 135 | DW326: 136 | DX326: 137 | DY326: 138 | DZ326: 138 | EA326: 139 | EB326: 140 | EC326: 141 | ED326: 142 | EE326: 143 | EF326: 143 | EG326: 144 | EH326: 145 | EI326: 146 | EJ326: 147 | EK326: 148 | EL326: 148 | EM326: 149 | EN326: 150 | EO326: 151 | EP326: 152 | EQ326: 153 | ER326: 153 | ES326: 154 | ET326: 155 | EU326: 156 | EV326: 157 | EW326: 158 | EX326: 159 | EY326: 160 | EZ326: 161 | FA326: 162 | FB326: 163 | FC326: 164 | FD326: 165 | FE326: 166 | FF326: 167 | FG326: 168 | FH326: 169
C327: NVts | D327: 20 | E327: =D327+1 -> 21 | F327: 22 | G327: 23 | H327: 24 | I327: 25 | J327: 26 | K327: 27 | L327: 28 | M327: 29 | N327: 30 | O327: 31 | P327: 32 | Q327: 33 | R327: 34 | S327: 35 | T327: 36 | U327: 37 | V327: 38 | W327: 39 | X327: 40 | Y327: 41 | Z327: 42 | AA327: 43 | AB327: 44 | AC327: 45 | AD327: 46 | AE327: 47 | AF327: 48 | AG327: 49 | AH327: 50 | AI327: 51 | AJ327: 52 | AK327: =AJ327+1 -> 53 | AL327: 54 | AM327: 55 | AN327: 56 | AO327: 57 | AP327: 58 | AQ327: 59 | AR327: 60 | AS327: 61 | AT327: 62 | AU327: 63 | AV327: 64 | AW327: 65 | AX327: 66 | AY327: 67 | AZ327: 68 | BA327: 69 | BB327: 70 | BC327: 71 | BD327: 72 | BE327: 73 | BF327: 74 | BG327: 75 | BH327: 76 | BI327: 77 | BJ327: 78 | BK327: 79 | BL327: 80 | BM327: 81 | BN327: 82 | BO327: 83 | BP327: 84 | BQ327: =BP327+1 -> 85 | BR327: 86 | BS327: 87 | BT327: 88 | BU327: 89 | BV327: 90 | BW327: 91 | BX327: 92 | BY327: 93 | BZ327: 94 | CA327: 95 | CB327: 96 | CC327: 97 | CD327: 98 | CE327: 99 | CF327: =CE327+1 -> 100 | CG327: 101 | CH327: 102 | CI327: 103 | CJ327: 104 | CK327: 105 | CL327: 106 | CM327: 107 | CN327: 108 | CO327: 109 | CP327: 110 | CQ327: 111 | CR327: 112 | CS327: 113 | CT327: 114 | CU327: 115 | CV327: 116 | CW327: 117 | CX327: 118 | CY327: 119 | CZ327: 120 | DA327: 121 | DB327: 122 | DC327: 123 | DD327: 124 | DE327: 125 | DF327: 126 | DG327: 127 | DH327: 128 | DI327: 129 | DJ327: 130 | DK327: 131 | DL327: =DK327+1 -> 132 | DM327: 133 | DN327: 134 | DO327: 135 | DP327: 136 | DQ327: 137 | DR327: 138 | DS327: 139 | DT327: 140 | DU327: 141 | DV327: 142 | DW327: 143 | DX327: 144 | DY327: 145 | DZ327: 146 | EA327: 147 | EB327: 148 | EC327: 149 | ED327: 150 | EE327: 151 | EF327: 152 | EG327: 153 | EH327: 154 | EI327: 155 | EJ327: 156 | EK327: 157 | EL327: 158 | EM327: 159 | EN327: 160 | EO327: 161 | EP327: 162 | EQ327: 163 | ER327: =EQ327+1 -> 164 | ES327: 165 | ET327: 166 | EU327: 167 | EV327: 168 | EW327: 169 | EX327: 170 | EY327: 171 | EZ327: 172 | FA327: 173 | FB327: 174 | FC327: 175 | FD327: 176 | FE327: 177 | FF327: 178 | FG327: 179 | FH327: 180
C328: NVcls | D328: 31 | E328: 32 | F328: 33 | G328: 34 | H328: 35 | I328: 36 | J328: 37 | K328: 38 | L328: 39 | M328: 40 | N328: 41 | O328: 42 | P328: 43 | Q328: 44 | R328: 45 | S328: 46 | T328: 47 | U328: 48 | V328: 49 | W328: 49 | X328: 50 | Y328: 51 | Z328: 52 | AA328: 53 | AB328: 54 | AC328: 54 | AD328: 55 | AE328: 56 | AF328: 57 | AG328: 58 | AH328: 59 | AI328: 59 | AJ328: 60 | AK328: 61 | AL328: 62 | AM328: 63 | AN328: 64 | AO328: 64 | AP328: 65 | AQ328: 66 | AR328: 67 | AS328: 68 | AT328: 69 | AU328: 69 | AV328: 70 | AW328: 71 | AX328: 72 | AY328: 73 | AZ328: 74 | BA328: 74 | BB328: 75 | BC328: 76 | BD328: 77 | BE328: 78 | BF328: 79 | BG328: 79 | BH328: 80 | BI328: 81 | BJ328: 82 | BK328: 83 | BL328: 84 | BM328: 84 | BN328: 85 | BO328: 86 | BP328: 87 | BQ328: 88 | BR328: 89 | BS328: 89 | BT328: 90 | BU328: 91 | BV328: 92 | BW328: 93 | BX328: 93 | BY328: 94 | BZ328: 95 | CA328: 96 | CB328: 97 | CC328: 97 | CD328: 98 | CE328: 99 | CF328: 100 | CG328: 100 | CH328: 101 | CI328: 102 | CJ328: 103 | CK328: 103 | CL328: 104 | CM328: 105 | CN328: 106 | CO328: 107 | CP328: 107 | CQ328: 108 | CR328: 109 | CS328: 110 | CT328: 111 | CU328: 111 | CV328: 112 | CW328: 113 | CX328: 114 | CY328: 115 | CZ328: 115 | DA328: 116 | DB328: 117 | DC328: 118 | DD328: 119 | DE328: 120 | DF328: 120 | DG328: 121 | DH328: 122 | DI328: 123 | DJ328: 123 | DK328: 124 | DL328: 125 | DM328: 126 | DN328: 127 | DO328: 127 | DP328: 128 | DQ328: 129 | DR328: 130 | DS328: 131 | DT328: 131 | DU328: 132 | DV328: 133 | DW328: 134 | DX328: 135 | DY328: 135 | DZ328: 136 | EA328: 137 | EB328: 138 | EC328: 139 | ED328: 139 | EE328: 140 | EF328: 141 | EG328: 142 | EH328: 143 | EI328: 143 | EJ328: 144 | EK328: 145 | EL328: 146 | EM328: 147 | EN328: 147 | EO328: 148 | EP328: 149 | EQ328: 150 | ER328: 151 | ES328: 151 | ET328: 152 | EU328: 153 | EV328: 154 | EW328: 155 | EX328: 156 | EY328: 157 | EZ328: 158 | FA328: 159 | FB328: 160 | FC328: 161 | FD328: 162 | FE328: 163 | FF328: 164 | FG328: 165 | FH328: 166
C329: Spts | D329: 20 | E329: =D329+1 -> 21 | F329: 22 | G329: 23 | H329: 24 | I329: 25 | J329: 26 | K329: 27 | L329: 28 | M329: 29 | N329: 30 | O329: 31 | P329: 32 | Q329: 33 | R329: 34 | S329: 35 | T329: 36 | U329: 37 | V329: 38 | W329: 39 | X329: 40 | Y329: 41 | Z329: 42 | AA329: 43 | AB329: 44 | AC329: 45 | AD329: 46 | AE329: 47 | AF329: 48 | AG329: 49 | AH329: 50 | AI329: 51 | AJ329: 52 | AK329: =AJ329+1 -> 53 | AL329: 54 | AM329: 55 | AN329: 56 | AO329: 57 | AP329: 58 | AQ329: 59 | AR329: 60 | AS329: 61 | AT329: 62 | AU329: 63 | AV329: 64 | AW329: 65 | AX329: 66 | AY329: 67 | AZ329: 68 | BA329: 69 | BB329: 70 | BC329: 71 | BD329: 72 | BE329: 73 | BF329: 74 | BG329: 75 | BH329: 76 | BI329: 77 | BJ329: 78 | BK329: 79 | BL329: 80 | BM329: 81 | BN329: 82 | BO329: 83 | BP329: 84 | BQ329: =BP329+1 -> 85 | BR329: 86 | BS329: 87 | BT329: 88 | BU329: 89 | BV329: 90 | BW329: 91 | BX329: 92 | BY329: 93 | BZ329: 94 | CA329: 95 | CB329: 96 | CC329: 97 | CD329: 98 | CE329: 99 | CF329: 100 | CG329: 101 | CH329: 102 | CI329: =CH329+1 -> 103 | CJ329: 104 | CK329: 105 | CL329: 106 | CM329: 107 | CN329: 108 | CO329: 109 | CP329: 110 | CQ329: 111 | CR329: 112 | CS329: 113 | CT329: 114 | CU329: 115 | CV329: 116 | CW329: 117 | CX329: 118 | CY329: 119 | CZ329: 120 | DA329: 121 | DB329: 122 | DC329: 123 | DD329: 124 | DE329: 125 | DF329: 126 | DG329: 127 | DH329: 128 | DI329: 129 | DJ329: 130 | DK329: 131 | DL329: 132 | DM329: 133 | DN329: 134 | DO329: =DN329+1 -> 135 | DP329: 136 | DQ329: 137 | DR329: 138 | DS329: 139 | DT329: 140 | DU329: 141 | DV329: 142 | DW329: 143 | DX329: 144 | DY329: 145 | DZ329: 146 | EA329: 147 | EB329: 148 | EC329: 149 | ED329: 150 | EE329: 151 | EF329: 152 | EG329: 153 | EH329: 154 | EI329: 155 | EJ329: 156 | EK329: 157 | EL329: 158 | EM329: 159 | EN329: 160 | EO329: 161 | EP329: 162 | EQ329: 163 | ER329: 164 | ES329: 165 | ET329: 166 | EU329: =ET329+1 -> 167 | EV329: 168 | EW329: 169 | EX329: 170 | EY329: 171 | EZ329: 172 | FA329: 173 | FB329: 174 | FC329: 175 | FD329: 176 | FE329: 177 | FF329: 178 | FG329: 179 | FH329: 180
C330: Spcls | D330: 32 | E330: 33 | F330: 34 | G330: 35 | H330: 36 | I330: 37 | J330: 38 | K330: 38 | L330: 39 | M330: 40 | N330: 41 | O330: 42 | P330: 43 | Q330: 43 | R330: 44 | S330: 45 | T330: 46 | U330: 47 | V330: 48 | W330: 48 | X330: 49 | Y330: 50 | Z330: 51 | AA330: 52 | AB330: 53 | AC330: 53 | AD330: 54 | AE330: 55 | AF330: 56 | AG330: 57 | AH330: 58 | AI330: 58 | AJ330: 59 | AK330: 60 | AL330: 61 | AM330: 62 | AN330: 63 | AO330: 63 | AP330: 64 | AQ330: 65 | AR330: 66 | AS330: 67 | AT330: 68 | AU330: 68 | AV330: 69 | AW330: 70 | AX330: 71 | AY330: 72 | AZ330: 73 | BA330: 73 | BB330: 74 | BC330: 75 | BD330: 76 | BE330: 77 | BF330: 78 | BG330: 78 | BH330: 79 | BI330: 80 | BJ330: 81 | BK330: 82 | BL330: 83 | BM330: 83 | BN330: 84 | BO330: 85 | BP330: 86 | BQ330: 87 | BR330: 88 | BS330: 88 | BT330: 89 | BU330: 90 | BV330: 91 | BW330: 92 | BX330: 93 | BY330: 94 | BZ330: 94 | CA330: 95 | CB330: 96 | CC330: 97 | CD330: 98 | CE330: 99 | CF330: 100 | CG330: 100 | CH330: 101 | CI330: 102 | CJ330: 103 | CK330: 104 | CL330: 105 | CM330: 106 | CN330: 107 | CO330: 107 | CP330: 108 | CQ330: 109 | CR330: 110 | CS330: 111 | CT330: 112 | CU330: 113 | CV330: 114 | CW330: 115 | CX330: 115 | CY330: 116 | CZ330: 117 | DA330: 118 | DB330: 119 | DC330: 120 | DD330: 120 | DE330: 121 | DF330: 122 | DG330: 123 | DH330: 124 | DI330: 125 | DJ330: 126 | DK330: 126 | DL330: 127 | DM330: 128 | DN330: 129 | DO330: 130 | DP330: 131 | DQ330: 132 | DR330: 132 | DS330: 133 | DT330: 134 | DU330: 135 | DV330: 136 | DW330: 137 | DX330: 138 | DY330: 139 | DZ330: 139 | EA330: 140 | EB330: 141 | EC330: 142 | ED330: 143 | EE330: 144 | EF330: 145 | EG330: 146 | EH330: 146 | EI330: 147 | EJ330: 148 | EK330: 149 | EL330: 150 | EM330: 151 | EN330: 152 | EO330: 153 | EP330: 154 | EQ330: 154 | ER330: 155 | ES330: 156 | ET330: 157 | EU330: 158 | EV330: 159 | EW330: 160 | EX330: 161 | EY330: 162 | EZ330: 163 | FA330: 164 | FB330: 165 | FC330: 166 | FD330: 167 | FE330: 168 | FF330: 169 | FG330: 170 | FH330: 170
C331: SumT | D331: 120 | E331: 123 | F331: 126 | G331: 130 | H331: 133 | I331: 137 | J331: 140 | K331: 144 | L331: 147 | M331: 150 | N331: 154 | O331: 157 | P331: 161 | Q331: 164 | R331: 168 | S331: 171 | T331: 174 | U331: 178 | V331: 181 | W331: 185 | X331: 188 | Y331: 192 | Z331: 195 | AA331: 199 | AB331: 202 | AC331: 206 | AD331: 209 | AE331: 213 | AF331: 217 | AG331: 220 | AH331: 224 | AI331: 227 | AJ331: 230 | AK331: 233 | AL331: 237 | AM331: 240 | AN331: 244 | AO331: 247 | AP331: 250 | AQ331: 253 | AR331: 256 | AS331: 259 | AT331: 262 | AU331: 265 | AV331: 268 | AW331: 271 | AX331: 274 | AY331: 277 | AZ331: 280 | BA331: 283 | BB331: 286 | BC331: 289 | BD331: 292 | BE331: 295 | BF331: 298 | BG331: 300 | BH331: 303 | BI331: 307 | BJ331: 310 | BK331: 313 | BL331: 316 | BM331: 320 | BN331: 323 | BO331: 326 | BP331: 329 | BQ331: 332 | BR331: 335 | BS331: 338 | BT331: 340 | BU331: 343 | BV331: 346 | BW331: 348 | BX331: 351 | BY331: 354 | BZ331: 356 | CA331: 359 | CB331: 362 | CC331: 365 | CD331: 368 | CE331: 371 | CF331: 374 | CG331: 377 | CH331: 379 | CI331: 382 | CJ331: 385 | CK331: 388 | CL331: 390 | CM331: 393 | CN331: 396 | CO331: 398 | CP331: 401 | CQ331: 404 | CR331: 406 | CS331: 409 | CT331: 412 | CU331: 415 | CV331: 417 | CW331: 420 | CX331: 423 | CY331: 425 | CZ331: 428 | DA331: 431 | DB331: 433 | DC331: 436 | DD331: 439 | DE331: 442 | DF331: 444 | DG331: 447 | DH331: 450 | DI331: 453 | DJ331: 455 | DK331: 458 | DL331: 461 | DM331: 463 | DN331: 466 | DO331: 469 | DP331: 471 | DQ331: 474 | DR331: 477 | DS331: 480
C332: GCA | D332: 45 | E332: 46 | F332: 47 | G332: 48 | H332: 49 | I332: 50 | J332: 51 | K332: 52 | L332: 53 | M332: 54 | N332: 55 | O332: 56 | P332: 57 | Q332: 58 | R332: 59 | S332: 60 | T332: 61 | U332: 62 | V332: 63 | W332: 64 | X332: 65 | Y332: 66 | Z332: 67 | AA332: 68 | AB332: 69 | AC332: 70 | AD332: 71 | AE332: 72 | AF332: 73 | AG332: 74 | AH332: 75 | AI332: 76 | AJ332: 77 | AK332: 78 | AL332: 79 | AM332: 80 | AN332: 81 | AO332: 82 | AP332: 83 | AQ332: 84 | AR332: 85 | AS332: 86 | AT332: 87 | AU332: 88 | AV332: 89 | AW332: 90 | AX332: 91 | AY332: 92 | AZ332: 93 | BA332: 94 | BB332: 95 | BC332: 96 | BD332: 97 | BE332: 98 | BF332: 99 | BG332: 100 | BH332: 101 | BI332: 102 | BJ332: 103 | BK332: 104 | BL332: 105 | BM332: 106 | BN332: 107 | BO332: 108 | BP332: 109 | BQ332: 110 | BR332: 111 | BS332: 112 | BT332: 113 | BU332: 114 | BV332: 115 | BW332: 116 | BX332: 117 | BY332: 118 | BZ332: 119 | CA332: 120 | CB332: 121 | CC332: 122 | CD332: 123 | CE332: 124 | CF332: 125 | CG332: 126 | CH332: 127 | CI332: 128 | CJ332: 129 | CK332: 130 | CL332: 131 | CM332: 132 | CN332: 133 | CO332: 134 | CP332: 135 | CQ332: 136 | CR332: 137 | CS332: 138 | CT332: 139 | CU332: 140 | CV332: 141 | CW332: 142 | CX332: 143 | CY332: 144 | CZ332: 145 | DA332: 146 | DB332: 147 | DC332: 148 | DD332: 149 | DE332: 150 | DF332: 151 | DG332: 152 | DH332: 153 | DI332: 154 | DJ332: 155 | DK332: 156 | DL332: 157 | DM332: 158 | DN332: 159 | DO332: 160 | DP332: 161 | DQ332: 162 | DR332: 163 | DS332: 164
C333: SS | D333: 40 | E333: 62 | F333: 68 | G333: 71 | H333: 73 | I333: 75 | J333: 77 | K333: 78 | L333: 79 | M333: 80 | N333: 81 | O333: 82 | P333: 83 | Q333: 84 | R333: 85 | S333: 86 | T333: 87 | U333: 88 | V333: 89 | W333: 90 | X333: 91 | Y333: 92 | Z333: 93 | AA333: 94 | AB333: 95 | AC333: 96 | AD333: 97 | AE333: 98 | AF333: 99 | AG333: 100 | AH333: 101 | AI333: 102 | AJ333: 103 | AK333: 104 | AL333: 105 | AM333: 106 | AN333: 107 | AO333: 108 | AP333: 109 | AQ333: 110 | AR333: 111 | AS333: 112 | AT333: 113 | AU333: 114 | AV333: 115 | AW333: 116 | AX333: 117 | AY333: 118 | AZ333: 119 | BA333: 120 | BB333: 121 | BC333: 122 | BD333: 123 | BE333: 124 | BF333: 126 | BG333: 129 | BH333: 131 | BI333: 133
C334: %ile | D334: 1 | E334: 1 | F334: 2 | G334: 3 | H334: 4 | I334: 5 | J334: 6 | K334: 7 | L334: 8 | M334: 9 | N334: 10 | O334: 12 | P334: 13 | Q334: 14 | R334: 16 | S334: 18 | T334: 19 | U334: 21 | V334: 23 | W334: 25 | X334: 27 | Y334: 30 | Z334: 32 | AA334: 34 | AB334: 37 | AC334: 39 | AD334: 42 | AE334: 45 | AF334: 47 | AG334: 50 | AH334: 53 | AI334: 55 | AJ334: 58 | AK334: 61 | AL334: 63 | AM334: 66 | AN334: 68 | AO334: 70 | AP334: 73 | AQ334: 75 | AR334: 77 | AS334: 79 | AT334: 81 | AU334: 82 | AV334: 84 | AW334: 86 | AX334: 87 | AY334: 88 | AZ334: 90 | BA334: 91 | BB334: 92 | BC334: 93 | BD334: 94 | BE334: 95 | BF334: 96 | BG334: 97 | BH334: 98 | BI334: 99
C335: verbal | D335: 51 | E335: 57 | F335: 65 | G335: 72 | H335: 81 | I335: 88 | J335: 97 | K335: 104 | L335: 113 | M335: 120 | N335: 129 | O335: 136 | P335: 144
C336: - | D336: 7 | E336: 8 | F336: 8 | G336: 9 | H336: 9 | I336: 10 | J336: 10 | K336: 11 | L336: 11 | M336: 12 | N336: 12 | O336: 13 | P336: 13
C337: + | D337: 13 | E337: 13 | F337: 12 | G337: 12 | H337: 11 | I337: 11 | J337: 10 | K337: 10 | L337: 9 | M337: 9 | N337: 8 | O337: 8 | P337: 7
C338: Nverbal | D338: 52 | E338: 58 | F338: 65 | G338: 77 | H338: 85 | I338: 97 | J338: 104 | K338: 116 | L338: 124 | M338: 136 | N338: 143
C339: - | D339: 7 | E339: 7 | F339: 8 | G339: 8 | H339: 9 | I339: 9 | J339: 10 | K339: 10 | L339: 11 | M339: 11 | N339: 12
C340: + | D340: 12 | E340: 11 | F340: 11 | G340: 10 | H340: 10 | I340: 9 | J340: 9 | K340: 8 | L340: 8 | M340: 7 | N340: 7
C341: Spatial | D341: 50 | E341: 53 | F341: 54 | G341: 76 | H341: 78 | I341: 100 | J341: 101 | K341: 123 | L341: 125 | M341: 147 | N341: 148
C342: - | D342: 6 | E342: 6 | F342: 7 | G342: 7 | H342: 8 | I342: 8 | J342: 9 | K342: 9 | L342: 10 | M342: 10 | N342: 11
C343: + | D343: 11 | E343: 10 | F343: 10 | G343: 9 | H343: 9 | I343: 8 | J343: 8 | K343: 7 | L343: 7 | M343: 6 | N343: 6
C344: GCA | D344: 44 | E344: 57 | F344: 62 | G344: 98 | H344: 103 | I344: 139 | J344: 144
C345: - | D345: 5 | E345: 5 | F345: 6 | G345: 6 | H345: 7 | I345: 7 | J345: 8
C346: + | D346: 8 | E346: 7 | F346: 7 | G346: 6 | H346: 6 | I346: 5 | J346: 5
D347: 1 | E347: 70 | F347: 80 | G347: 90 | H347: 110 | I347: 120 | J347: 130
D348: Very Low | E348: Low | F348: Below average | G348: Average | H348: Above average | I348: High | J348: Very High
C349: GCAV | D349: 0 | E349: 11 | F349: 13 | G349: 15 | H349: 18 | I349: 20 | J349: 23
C350: GCAnv | D350: 0 | E350: 9 | F350: 11 | G350: 13 | H350: 16 | I350: 19 | J350: 22
C351: GCAsp | D351: 0 | E351: 10 | F351: 13 | G351: 15 | H351: 17 | I351: 21 | J351: 23
C352: Vnv | D352: 0 | E352: 15 | F352: 19 | G352: 22 | H352: 26 | I352: 32 | J352: 26
C353: Vsp | D353: 0 | E353: 17 | F353: 21 | G353: 24 | H353: 28 | I353: 34 | J353: 37
C354: Nvsp | D354: 0 | E354: 14 | F354: 19 | G354: 21 | H354: 25 | I354: 30 | J354: 34
C355: WS | D355: 0 | E355: 9 | F355: 11 | G355: 13 | H355: 16 | I355: 19 | J355: 22
C356: MSEQ | D356: 0 | E356: 10 | F356: 13 | G356: 15 | H356: 18 | I356: 20 | J356: 23
C357: RDPC | D357: 0 | E357: 10 | F357: 13 | G357: 15 | H357: 18 | I357: 23 | J357: 25
C358: % | D358: 50 | E358: 25 | F358: 10 | G358: 10 | H358: 5 | I358: 2 | J358: 1
C359: SNvCompT | D359: 80 | E359: 82 | F359: 85 | G359: 87 | H359: 90 | I359: 92 | J359: 95 | K359: 97 | L359: 99 | M359: 102 | N359: 104 | O359: 107 | P359: 109
C360: SNvComp | D360: 48 | E360: =D360+1 -> 49 | F360: 50 | G360: 51 | H360: 52 | I360: 53 | J360: 54 | K360: 55 | L360: 56 | M360: 57 | N360: 58 | O360: 59 | P360: 60
C361: snvcomp | D361: 48 | E361: 49 | F361: 83 | G361: 84 | H361: 117 | I361: 118 | J361: 152 | K361: 153 | L361: 159 | M361: 160
C362: - | D362: 6 | E362: 6 | F362: 7 | G362: 7 | H362: 8 | I362: 8 | J362: 9 | K362: 9 | L362: 9 | M362: 11
C363: + | D363: 9 | E363: 8 | F363: 8 | G363: 7 | H363: 7 | I363: 6 | J363: 6 | K363: 5 | L363: 5 | M363: 5 | Q363: 111 | R363: 114 | S363: 116 | T363: 119 | U363: 121 | V363: 124 | W363: 126 | X363: 129 | Y363: 131 | Z363: 134 | AA363: 136 | AB363: 139 | AC363: 142 | AD363: 144 | AE363: 147 | AF363: 149 | AG363: 151 | AH363: 153 | AI363: 156 | AJ363: 158 | AK363: 160 | AL363: 162 | AM363: 165 | AN363: 167 | AO363: 169 | AP363: 171 | AQ363: 173 | AR363: 175 | AS363: 177 | AT363: 179 | AU363: 181 | AV363: 183 | AW363: 186 | AX363: 188 | AY363: 190 | AZ363: 192 | BA363: 194 | BB363: 196 | BC363: 198 | BD363: 200 | BE363: 203 | BF363: 205 | BG363: 207 | BH363: 209 | BI363: 212 | BJ363: 214 | BK363: 216 | BL363: 218 | BM363: 221 | BN363: 223 | BO363: 225 | BP363: 227 | BQ363: 229 | BR363: 231 | BS363: 233 | BT363: 235 | BU363: 237 | BV363: 239 | BW363: 241 | BX363: 243 | BY363: 245 | BZ363: 247 | CA363: 249 | CB363: 252 | CC363: 254 | CD363: 256 | CE363: 258 | CF363: 260 | CG363: 262 | CH363: 264 | CI363: 265 | CJ363: 267 | CK363: 269 | CL363: 271 | CM363: 272 | CN363: 274 | CO363: 276 | CP363: 278 | CQ363: 280 | CR363: 281 | CS363: 283 | CT363: 285 | CU363: 286 | CV363: 288 | CW363: 290 | CX363: 292 | CY363: 293 | CZ363: 295 | DA363: 297 | DB363: 299 | DC363: 300 | DD363: 302 | DE363: 304 | DF363: 306 | DG363: 307 | DH363: 309 | DI363: 311 | DJ363: 312 | DK363: 314 | DL363: 316 | DM363: 318 | DN363: 319
Q364: =P360+1 -> 61 | R364: =Q364+1 -> 62 | S364: 63 | T364: 64 | U364: 65 | V364: 66 | W364: 67 | X364: 68 | Y364: 69 | Z364: 70 | AA364: 71 | AB364: 72 | AC364: 73 | AD364: 74 | AE364: 75 | AF364: 76 | AG364: 77 | AH364: 78 | AI364: 79 | AJ364: 80 | AK364: 81 | AL364: 82 | AM364: 83 | AN364: 84 | AO364: 85 | AP364: 86 | AQ364: 87 | AR364: 88 | AS364: 89 | AT364: 90 | AU364: 91 | AV364: 92 | AW364: 93 | AX364: =AW364+1 -> 94 | AY364: 95 | AZ364: 96 | BA364: 97 | BB364: 98 | BC364: 99 | BD364: 100 | BE364: 101 | BF364: 102 | BG364: 103 | BH364: 104 | BI364: 105 | BJ364: 106 | BK364: 107 | BL364: 108 | BM364: 109 | BN364: 110 | BO364: 111 | BP364: 112 | BQ364: 113 | BR364: 114 | BS364: 115 | BT364: 116 | BU364: 117 | BV364: 118 | BW364: 119 | BX364: 120 | BY364: 121 | BZ364: 122 | CA364: 123 | CB364: 124 | CC364: 125 | CD364: =CC364+1 -> 126 | CE364: 127 | CF364: 128 | CG364: 129 | CH364: 130 | CI364: 131 | CJ364: 132 | CK364: 133 | CL364: 134 | CM364: 135 | CN364: 136 | CO364: 137 | CP364: 138 | CQ364: 139 | CR364: 140 | CS364: 141 | CT364: 142 | CU364: 143 | CV364: 144 | CW364: 145 | CX364: 146 | CY364: 147 | CZ364: 148 | DA364: 149 | DB364: 150 | DC364: 151 | DD364: 152 | DE364: 153 | DF364: 154 | DG364: 155 | DH364: 156 | DI364: 157 | DJ364: 158 | DK364: 159 | DL364: 160 | DM364: 161 | DN364: 162
C365: iq | D365: m | E365: mllf | F365: nvoc | G365: nvtable | H365: pc | I365: psim | J365: rd | K365: rdig | L365: ro | M365: rod | N365: rop | O365: s | P365: sip
C367: Recall Designs | D367: Word Def. | E367: Pattern Con. | F367: Matrices | G367: Simil. | H367: Seq. & Quant. | I367: Recall Digits | J367: Recall Objects | K367: Recall Objects delayed | L367: Speed of Info. Process. | M367: Verbal Cluster: | N367: Nonverbal Reasoning: | O367: Spatial Cluster: | P367: GCA:
C368: 42 | D368: 37 | E368: 50 | F368: 38 | G368: 49 | H368: 47 | I368: 42 | J368: 59 | K368: 52 | M368: =C25 -> 0 | N368: =C26 -> 0 | O368: =C27 -> 0 | P368: =C28 -> RObI
A369: gca | Q369: snvc | R369: Sptable | S369: sq | T369: vc | U369: vtable | V369: wd
A371: Age | Q371: v% | R371: NV% | S371: S% | T371: GCA% | U371: vi | V371: nvi | W371: si | X371: gcai
A372: =H4 -> 0 | Q372: =E25 -> 0 | R372: =E26 -> 0 | S372: =E27 -> 0 | T372: =E28 -> 0 | U372: =G25 -> 0 | V372: =G26 -> 0 | W372: =G27 -> 0 | X372: =G28 -> 0

Sheet Shared Abilities EY
A1: Note: Shared Ability Standard Scores (SS) are computed only when all the subtests in the shared ability are administered. The Shared Ability subtest designation of High, Low, +, - , and = are given only if there is an appropriate mean score available.
A3: Early Years Shared Ability | C3: Shared Ability Subtests (includes out-of-level subtests)
A6: Verbal Conceptualization | C6: VC | D6: NV | E6: ENC
A7: ="SS = "&AA114 -> SS = 108 | C7: =G155 -> - | D7: =G156 -> + | E7: =G166 -> -
A9: Formulation and Testing of Hypotheses | C9: VC | D9: PS | E9: PC | F9: Mat
A10: ="SS = "&AA115 -> SS = 110 | C10: =G155 -> - | D10: =G157 -> + | E10: =G159 -> Low | F10: =G158 -> High
A12: Use of Verbal Mediation to Solve Nonverbal Problems | C12: PS | D12: PC | E12: Mat
A13: ="SS = "&AA116 -> SS = 109 | C13: =G157 -> + | D13: =G159 -> Low | E13: =G158 -> High
A15: Verbal Comprehension: | C15: VC | D15: ENC | E15: RSO
A16: ="SS = "&AA117 -> SS = | C16: =G155 -> - | D16: =G166 -> - | E16: =G169 -> 
A18: Verbal Expression: | C18: NV | D18: ROi | E18: RDf | F18: RSO | G18: RDb | H18: PhP | I18: RN
A19: ="SS = "&AA118 -> SS = | C19: =G156 -> + | D19: =G162 -> - | E19: =G164 -> - | F19: =G169 ->  | G19: =G170 ->  | H19: =G168 ->  | I19: =G172 -> 
A21: Visual Analysis of Pictures: | C21: VC | D21: PS | E21: Mat | F21: ROi | G21: RPic
A22: ="SS = "&AA119 -> SS = 109 | C22: =G155 -> - | D22: =G157 -> + | E22: =G158 -> High | F22: =G162 -> - | G22: =G165 -> -
A24: Visual Analysis of Figures or Designs: | C24: PS | D24: PC | E24: Mat | F24: Copy | G24: MLLF
A25: ="SS = "&AA120 -> SS = 105 | C25: =G157 -> + | D25: =G159 -> Low | E25: =G158 -> High | F25: =G160 -> - | G25: =G167 -> -
A27: Spatial Visualization and Orientation: | C27: PC | D27: Copy | E27: MLLF
A28: ="SS = "&AA121 -> SS = 96 | C28: =G159 -> Low | D28: =G160 -> - | E28: =G167 -> -
A30: Visual Verbal Integration: | C30: PS | D30: Mat | E30: ROi | F30: RSO
A31: ="SS = "&AA122 -> SS = | C31: =G157 -> + | D31: =G158 -> High | E31: =G162 -> - | F31: =G169 -> 
A33: Short-term Memory: (general): | C33: ROi | D33: RDf | E33: RPic | F33: RSO | G33: RDb
A34: ="SS = "&AA123 -> SS = | C34: =G162 -> - | D34: =G164 -> - | E34: =G165 -> - | F34: =G169 ->  | G34: =G170 -> 
A36: Auditory Short-term Memory: | C36: RDf | D36: RSO | E36: RDb
A37: ="SS = "&AA124 -> SS = | C37: =G164 -> - | D37: =G169 ->  | E37: =G170 -> 
A39: Visual Short-term Memory: | C39: ROi | D39: RPic
A40: ="SS = "&AA125 -> SS = 99 | C40: =G162 -> - | D40: =G165 -> -
A42: Verbal Long-term Information Retrieval: | C42: NV | D42: ENC | E42: RN
A43: ="SS = "&AA126 -> SS = | C43: =G155 -> - | D43: =G166 -> - | E43: =G172 -> 
A45: Visual/holistic Information Processing: | C45: PS | D45: PC | E45: Mat | F45: Copy | G45: RPic | H45: MLLF
A46: ="SS = "&AA127 -> SS = 103 | C46: =G157 -> + | D46: =G159 -> Low | E46: =G158 -> High | F46: =G160 -> - | G46: =G165 -> - | H46: =G167 -> -
A48: Sequential Information Processing: | C48: VC | D48: ROi | E48: RDf | F48: RSO | G48: SIP | H48: RDb | I48: RN
A49: ="SS = "&AA128 -> SS = | C49: =G155 -> - | D49: =G162 -> - | E49: =G164 -> - | F49: =G169 ->  | G49: =G171 ->  | H49: =G170 ->  | I49: =G172 -> 
A114: =Q114 -> Verbal Conceptualization | C114: =Y114 -> 107.87 | O114: ='Record form Early Years'!U128 -> Verbal Comprehension (Gc) | Q114: Verbal Conceptualization | R114: =IF(C155="",0,1) -> 1 | S114: ='Record form Early Years'!Y128 -> VC, NV, ENC | T114: =C155+C156+C166 -> 163 | U114: =R114+R115+R125 -> 3 | V114: =IF(U114<3,"",T114) -> 163 | W114: ='Record form Early Years'!AA128 -> 0.6 | X114: ='Record form Early Years'!AB128 -> 10.07 | Y114: =IF(V114="","",W114*V114+X114) -> 107.87 | Z114: ='Record form Early Years'!AD128 -> 8.11 | AA114: =IF(Y114="","",ROUND(Y114,0)) -> 108
A115: Formulation and Testing of Hypotheses | C115: 110.16 | O115: ='Record form Early Years'!U129 -> Naming Vocabulary (Gc) | Q115: Formulation and Testing of Hypotheses | R115: 1 | S115: ='Record form Early Years'!Y129 -> VC, PS, PC, Mat | T115: =C155+C159+C158+C157 -> 218 | U115: =R114+R118+R117+R116 -> 4 | V115: =IF(U115<4,"",T115) -> 218 | W115: ='Record form Early Years'!AA129 -> 0.51 | X115: ='Record form Early Years'!AB129 -> -1.02 | Y115: 110.16 | Z115: ='Record form Early Years'!AD129 -> 7.53 | AA115: 110
A116: Use of Verbal Mediation to Solve Nonverbal Problems | C116: 109.13 | O116: ='Record form Early Years'!U130 -> Picture Similarities (Gf) | Q116: Use of Verbal Mediation to Solve Nonverbal Problems | R116: 1 | S116: ='Record form Early Years'!Y130 -> PS, PC, Mat | T116: =C157+C158+C159 -> 165 | U116: =R116+R117+R118 -> 3 | V116: =IF(U116<3,"",T116) -> 165 | W116: ='Record form Early Years'!AA130 -> 0.64 | X116: ='Record form Early Years'!AB130 -> 3.53 | Y116: 109.13 | Z116: ='Record form Early Years'!AD130 -> 8.19 | AA116: 109
A117: Verbal Comprehension: | O117: ='Record form Early Years'!U131 -> Matrices (Gf) | Q117: Verbal Comprehension: | R117: 1 | S117: ='Record form Early Years'!Y131 -> VC, ENC, RSO | T117: =C155+C166+C169 ->  | U117: =R114+R125+R128 -> 2 | V117: =IF(U117<3,"",T117) ->  | W117: ='Record form Early Years'!AA131 -> 0.64 | X117: ='Record form Early Years'!AB131 -> 4.23 | Z117: ='Record form Early Years'!AD131 -> 7.78
A118: Verbal Expression: | O118: ='Record form Early Years'!U132 -> Pattern Construction (Gv) | Q118: Verbal Expression: | R118: 1 | S118: ='Record form Early Years'!Y132 -> NV, ROi , RDf, RSO, RDb, PhP, RN | T118: =C156+C164+C169+C162+C170+C171+C172 ->  | U118: =R115+R123+R128+R121+R129+R130+R131 -> 3 | V118: =IF(U118<7,"",T118) ->  | W118: ='Record form Early Years'!AA132 -> 0.32 | X118: ='Record form Early Years'!AB132 -> -12.96 | Z118: ='Record form Early Years'!AD132 -> 6.2
A119: Visual Analysis of Pictures: | C119: 109.04 | O119: ='Record form Early Years'!U133 -> Copying (Gv) | Q119: Visual Analysis of Pictures: | R119: 1 | S119: ='Record form Early Years'!Y133 -> VC, PS, Mat, ROi, RPic | T119: =C155+C158+C162+C157+C165 -> 271 | U119: =R114+R117+R121+R116+R124 -> 5 | V119: =IF(U119<5,"",T119) -> 271 | W119: ='Record form Early Years'!AA133 -> 0.44 | X119: ='Record form Early Years'!AB133 -> -10.2 | Y119: 109.04 | Z119: ='Record form Early Years'!AD133 -> 8.48 | AA119: 109
A120: Visual Analysis of Figures or Designs: | C120: 104.85 | Q120: Visual Analysis of Figures or Designs: | R120: 0 | S120: ='Record form Early Years'!Y134 -> PSim, PC, Mat, Copy, MLLF | T120: =C157+C158+C160+C159+C167 -> 263 | U120: =R116+R117+R119+R118+R126 -> 5 | V120: =IF(U120<5,"",T120) -> 263 | W120: ='Record form Early Years'!AA134 -> 0.41 | X120: ='Record form Early Years'!AB134 -> -2.98 | Y120: 104.85 | Z120: ='Record form Early Years'!AD134 -> 6.68 | AA120: 105
A121: Spatial Visualization and Orientation: | C121: 96.49 | O121: ='Record form Early Years'!U135 -> Recall of Objects-Immediate (Glr) | Q121: Spatial Visualization and Orientation: | R121: 1 | S121: ='Record form Early Years'!Y135 -> PC, Copy, MLLF | T121: =C159+C160+C167 -> 144 | U121: =R118+R119+R126 -> 3 | V121: =IF(U121<3,"",T121) -> 144 | W121: ='Record form Early Years'!AA135 -> 0.62 | X121: ='Record form Early Years'!AB135 -> 7.21 | Y121: 96.49 | Z121: ='Record form Early Years'!AD135 -> 6.73 | AA121: 96
A122: Visual Verbal Integration: | O122: ='Record form Early Years'!U136 -> Recall of Objects-Delayed (Glr) | Q122: Visual Verbal Integration: | R122: 0 | S122: ='Record form Early Years'!Y136 -> PSim, Mat, ROi, RSO | T122: =C157+C162+C169+C158 ->  | U122: =R116+R121+R128+R117 -> 3 | V122: =IF(U122<4,"",T122) ->  | W122: ='Record form Early Years'!AA136 -> 0.58 | X122: ='Record form Early Years'!AB136 -> -16.42 | Z122: ='Record form Early Years'!AD136 -> 9.48
A123: Short-term Memory: (general): | O123: ='Record form Early Years'!U137 -> Recall of Digits Forward (Gsm) | Q123: Short-term Memory: (general): | R123: 1 | S123: ='Record form Early Years'!Y137 -> ROi, RDf, RPic, RSO, RDb | T123: =C162+C165+C169+C164+C170 ->  | U123: =R121+R124+R128+R123+R129 -> 3 | V123: =IF(U123<5,"",T123) ->  | W123: ='Record form Early Years'!AA137 -> 0.44 | X123: ='Record form Early Years'!AB137 -> -10.97 | Z123: ='Record form Early Years'!AD137 -> 7.5
A124: Auditory Short-term Memory: | O124: ='Record form Early Years'!U138 -> Recognition of Pictures (Gv) | Q124: Auditory Short-term Memory: | R124: 1 | S124: ='Record form Early Years'!Y138 -> RDf, RSO, RDb, | T124: =C164+C169+C170 ->  | U124: =R123+R128+R129 -> 1 | V124: =IF(U124<3,"",T124) ->  | W124: ='Record form Early Years'!AA138 -> 0.68 | X124: ='Record form Early Years'!AB138 -> -1.44 | Z124: ='Record form Early Years'!AD138 -> 7.4
A125: Visual Short-term Memory: | C125: 98.8 | O125: ='Record form Early Years'!U139 -> Early Number Concepts | Q125: Visual Short-term Memory: | R125: 1 | S125: ='Record form Early Years'!Y139 -> ROi, RPic | T125: =C162+C165 -> 99 | U125: =R121+R124 -> 2 | V125: =IF(U125<2,"",T125) -> 99 | W125: ='Record form Early Years'!AA139 -> 0.91 | X125: ='Record form Early Years'!AB139 -> 8.71 | Y125: 98.8 | Z125: ='Record form Early Years'!AD139 -> 11.76 | AA125: 99
A126: Verbal Long-term Information Retrieval: | O126: ='Record form Early Years'!U140 -> Matching Letter-like Forms | Q126: Verbal Long-term Information Retrieval: | R126: 1 | S126: ='Record form Early Years'!Y140 -> NV, ENC, RN | T126: =C156+C166+C172 ->  | U126: =R115+R125+R131 -> 2 | V126: =IF(U126<3,"",T126) ->  | W126: ='Record form Early Years'!AA140 -> 0.69 | X126: ='Record form Early Years'!AB140 -> -2.91 | Z126: ='Record form Early Years'!AD140 -> 9.56
A127: Visual/holistic Information Processing: | C127: 102.73 | O127: ='Record form Early Years'!U141 -> Phonological Processing (Ga) | Q127: Visual/holistic Information Processing: | R127: 0 | S127: ='Record form Early Years'!Y141 -> PSim, PC, Mat, Copy, RPic, MLLF | T127: =C157+C158+C160+C159+C165+C167 -> 310 | U127: =R116+R117+R119+R118+R124+R126 -> 6 | V127: =IF(U127<6,"",T127) -> 310 | W127: ='Record form Early Years'!AA141 -> 0.35 | X127: ='Record form Early Years'!AB141 -> -5.77 | Y127: 102.73 | Z127: ='Record form Early Years'!AD141 -> 6.54 | AA127: 103
A128: Sequential Information Processing: | O128: ='Record form Early Years'!U142 -> Recall of Sequential Order (Gsm) | Q128: Sequential Information Processing: | R128: 0 | S128: ='Record form Early Years'!Y142 -> VC, ROi, RDf, RSO, SIP, RDb, RN | T128: =C155+C164+C169+C162+C171+C170+C172 ->  | U128: =R114+R123+R128+R121+R130+R129+R131 -> 3 | V128: =IF(U128<7,"",T128) ->  | W128: ='Record form Early Years'!AA142 -> 0.33 | X128: ='Record form Early Years'!AB142 -> -16.35 | Z128: ='Record form Early Years'!AD142 -> 6.46
O129: ='Record form Early Years'!U143 -> Recall of Digits Backward (Gsm) | R129: 0
O130: ='Record form Early Years'!U144 -> Speed of Information Processing (Gs) | R130: 0 | T130: sum sub | W130: n to use
O131: ='Record form Early Years'!U145 -> Rapid Naming (Gs) | R131: 0 | W131: =IF(SUM(Q132+Q134+Q136+Q133)<4,"",T115) ->  | X131: =IF(W131="","",W131*AC131+AD131) ->  | Y131: =IF(T115="","",100+(AE131*(X131-100))) -> 
C153: =IF('Record form Early Years'!F79="","",'Record form Early Years'!F79) -> 55
G154: choice
A155: ='Record form Early Years'!E81 -> Verbal Comprehension (Gc) | C155: ='Record form Early Years'!V128 -> 53 | D155: ='Record form Early Years'!J81 -> -2 | E155: =IF(OR(mctyn="",D155=""),"",IF(D155<0,"-",IF(D155>0,"+","="))) -> - | F155: ='Record form Early Years'!L81 ->  | G155: =IF(F155="High",F155,IF(F155="Low",F155,E155)) -> -
A156: ='Record form Early Years'!E82 -> Naming Vocabulary (Gc) | C156: ='Record form Early Years'!V129 -> 62 | D156: ='Record form Early Years'!J82 -> 7 | E156: + | F156: ='Record form Early Years'!L82 ->  | G156: +
A157: ='Record form Early Years'!E83 -> Picture Similarities (Gf) | C157: ='Record form Early Years'!V130 -> 56 | D157: ='Record form Early Years'!J83 -> 1 | E157: + | F157: ='Record form Early Years'!L83 ->  | G157: +
A158: ='Record form Early Years'!E84 -> Matrices (Gf) | C158: ='Record form Early Years'!V131 -> 63 | D158: ='Record form Early Years'!J84 -> 8 | E158: + | F158: ='Record form Early Years'!L84 -> High | G158: High
A159: ='Record form Early Years'!E85 -> Pattern Construction (Gv) | C159: ='Record form Early Years'!V132 -> 46 | D159: ='Record form Early Years'!J85 -> -9 | E159: - | F159: ='Record form Early Years'!L85 -> Low | G159: Low
A160: ='Record form Early Years'!E86 -> Copying (Gv) | C160: ='Record form Early Years'!V133 -> 49 | D160: ='Record form Early Years'!J86 -> -6 | E160: - | F160: ='Record form Early Years'!L86 ->  | G160: -
A162: ='Record form Early Years'!E88 -> Recall of Objects-Immediate (Glr) | C162: ='Record form Early Years'!V135 -> 52 | D162: ='Record form Early Years'!J88 -> -3 | E162: - | F162: ='Record form Early Years'!L88 ->  | G162: =IF(F162="High",F162,IF(F162="Low",F162,E162)) -> -
A163: ='Record form Early Years'!E89 -> Recall of Objects-Delayed (Glr) | C163: ='Record form Early Years'!V136 ->  | D163: ='Record form Early Years'!J89 -> 0 | E163: = | F163: ='Record form Early Years'!L89 ->  | G163: =
A164: ='Record form Early Years'!E90 -> Recall of Digits Forward (Gsm) | C164: ='Record form Early Years'!V137 -> 50 | D164: ='Record form Early Years'!J90 -> -5 | E164: - | F164: ='Record form Early Years'!L90 ->  | G164: -
A165: ='Record form Early Years'!E91 -> Recognition of Pictures (Gv) | C165: ='Record form Early Years'!V138 -> 47 | D165: ='Record form Early Years'!J91 -> -6 | E165: - | F165: ='Record form Early Years'!L91 ->  | G165: -
A166: ='Record form Early Years'!E92 -> Early Number Concepts (Gc/Gf) | C166: ='Record form Early Years'!V139 -> 48 | D166: ='Record form Early Years'!J92 -> -7 | E166: - | F166: ='Record form Early Years'!L92 ->  | G166: -
A167: ='Record form Early Years'!E93 -> Matching Letter Like Forms (Gv) | C167: ='Record form Early Years'!V140 -> 49 | D167: ='Record form Early Years'!J93 -> -6 | E167: - | F167: ='Record form Early Years'!L93 ->  | G167: -
A168: ='Record form Early Years'!E94 -> Phonological Processing (Ga) | C168: ='Record form Early Years'!V141 ->  | D168: ='Record form Early Years'!J94 ->  | F168: ='Record form Early Years'!L94 -> 
A169: ='Record form Early Years'!E95 -> Recall of Sequential Order (Gsm) | C169: ='Record form Early Years'!V142 ->  | D169: ='Record form Early Years'!J95 ->  | F169: ='Record form Early Years'!L95 -> 
A170: ='Record form Early Years'!E96 -> Recall of Digits Backward (Gsm) | C170: ='Record form Early Years'!V143 ->  | D170: ='Record form Early Years'!J96 ->  | F170: ='Record form Early Years'!L96 -> 
A171: ='Record form Early Years'!E97 -> Speed of Information Processing (Gs) | C171: ='Record form Early Years'!V144 ->  | D171: ='Record form Early Years'!J97 ->  | F171: ='Record form Early Years'!L97 -> 
A172: ='Record form Early Years'!E98 -> Rapid Naming (Gs) | C172: ='Record form Early Years'!V145 ->  | D172: ='Record form Early Years'!J98 ->  | F172: ='Record form Early Years'!L98 -> 

Sheet DAS-II UEY Summary
A1: ='Record form School-age'!B2 -> Name: | B1: ='Input page Early Years'!D2 -> A D | C1: ='Record form School-age'!B3 -> Age: | D1: ='Input page Early Years'!J3 -> 4 years, 6 months, 0 days
B3: Composite/Cluster | C3: Score | D3: =CHOOSE(btwcl,"85% confidence","90% confidence", "95% confidence") -> 90% confidence | E3: PR | F3: Classification
B4: General Conceptual Ability (GCA): | C4: ='Record form Early Years'!gca -> 111 | D4: ='Record form Early Years'!L19 -> 104 to 117 | E4: =IF(C4="","",'Record form Early Years'!L18&" PR") -> 77 PR | F4: =IF(C4="","",LOOKUP(C4,ssname)) -> Above average
B5: Special Nonverbal Composite (SNC): | C5: ='Record form Early Years'!snc -> 107 | D5: ='Record form Early Years'!N19 -> 100 to 113 | E5: =IF(C5="","",'Record form Early Years'!N18&" PR") -> 68 PR | F5: =IF(C5="","",LOOKUP(C5,ssname)) -> Average
B6: Verbal (V): | C6: ='Record form Early Years'!verb -> 113 | D6: ='Record form Early Years'!F19 -> 103 to 121 | E6: =IF(C6="","",'Record form Early Years'!F18&" PR") -> 81 PR | F6: Above average
B7: Nonverbal Reasoning (NVR): | C7: ='Record form Early Years'!nverb -> 117 | D7: ='Record form Early Years'!H19 -> 106 to 124 | E7: =IF(C7="","",'Record form Early Years'!H18&" PR") -> 87 PR | F7: Above average
B8: Spatial (Sp): | C8: ='Record form Early Years'!sp -> 95 | D8: ='Record form Early Years'!J19 -> 89 to 102 | E8: =IF(C8="","",'Record form Early Years'!J18&" PR") -> 37 PR | F8: Average
B9: Working Memory (WM): | C9: ='Record form Early Years'!wm ->  | D9: ='Record form Early Years'!F44 ->  | E9: =IF(C9="","",'Record form Early Years'!F43&" PR") -> 
B10: Processing Speed (PS): | C10: ='Record form Early Years'!ps ->  | D10: ='Record form Early Years'!H44 ->  | E10: =IF(C10="","",'Record form Early Years'!H43&" PR") -> 
B11: School Readiness (SchR): | C11: ='Record form Early Years'!sr ->  | D11: ='Record form Early Years'!J44 ->  | E11: =IF(C11="","",'Record form Early Years'!J43&" PR") -> 
B12: Between Clusters | C12: Difference | D12: Significant | E12: Base rate
B13: =" V ( "&C6&" ) vs. NVR ( "&C7&" ): " -> V ( 113 ) vs. NVR ( 117 ): | C13: ='Record form Early Years'!H52 -> -4 | D13: ='Record form Early Years'!F20 ->  | E13: =IF(C13="","",'Record form Early Years'!L52) -> >15%
B14: =" V ( "&C6&" ) vs. Sp ( "&C8&" ): " -> V ( 113 ) vs. Sp ( 95 ): | C14: ='Record form Early Years'!H54 -> 18 | D14: ='Record form Early Years'!J20 -> V > Sp | E14: =IF(C14="","",'Record form Early Years'!L53) -> 10%
B15: =" NVR ( "&C7&" ) vs. Sp ( "&C8&" ): " -> NVR ( 117 ) vs. Sp ( 95 ): | C15: ='Record form Early Years'!H53 -> 22 | D15: ='Record form Early Years'!H20 -> NVR > Sp | E15: =IF(C15="","",'Record form Early Years'!L54) -> 15%
B16: =" GCA ( "&C4&" ) vs. WM ( "&C9&" ): " -> GCA ( 111 ) vs. WM ( ): | C16: =IF(OR(C4="",C9=""),"",C4-C9) ->  | D16: ='Record form Early Years'!F45 ->  | E16: =IF(C16="","",'Record form Early Years'!L55) -> 
B17: =" GCA ( "&C4&" ) vs. PS ( "&C10&" ): " -> GCA ( 111 ) vs. PS ( ): | C17: =IF(OR(C4="",C10=""),"",C4-C10) ->  | D17: ='Record form Early Years'!H45 ->  | E17: =IF(C17="","",'Record form Early Years'!L56) -> 
B18: =" GCA ( "&C4&" ) vs. SchR ( "&C11&" ): " -> GCA ( 111 ) vs. SchR ( ): | C18: =IF(OR(C4="",C11=""),"",C4-C11) ->  | D18: ='Record form Early Years'!J45 ->  | E18: =IF(C18="","",'Record form Early Years'!L57) -> 
B19: =" WM ( "&C9&" ) vs. PS( "&C10&" ): " -> WM ( ) vs. PS( ): | C19: ='Record form Early Years'!H58 ->  | D19: ='Record form Early Years'!F46 ->  | E19: =IF(C19="","",'Record form Early Years'!L58) -> 
B20: =" WM ( "&C9&" ) vs. SchR ( "&C11&" ): " -> WM ( ) vs. SchR ( ): | C20: ='Record form Early Years'!H59 ->  | D20: ='Record form Early Years'!AE44 ->  | E20: =IF(C20="","",'Record form Early Years'!L59) -> 
B21: =" PS ( "&C10&" ) vs. SchR ( "&C11&" ): " -> PS ( ) vs. SchR ( ): | C21: =IF(OR(C10="",C11=""),"",C10-C11) ->  | D21: ='Record form Early Years'!AH44 ->  | E21: =IF(C21="","",'Record form Early Years'!L60) -> 
A22: Cluster | B22: Within Clusters | C22: Difference | D22: Significant | E22: Base rate
A23: Verbal | B23: ="VC ( "&'Record form Early Years'!F8&" ) vs NV ( "&'Record form Early Years'!F10&" )" -> VC ( 53 ) vs NV ( 62 ) | C23: ='Record form Early Years'!H63 -> -9 | D23: ='Record form Early Years'!J63 -> No | E23: ='Record form Early Years'!L63 -> 15% | F23: ='Record form Early Years'!F62 -> 
A24: Nonverbal Reasoning | B24: =IF('Input page Early Years'!T9=1,"PSim ( "&'Record form Early Years'!H9&" ) vs PC ( "&'Record form Early Years'!H11&" )","PSim ( "&'Record form Early Years'!H9&" ) vs Mat ( "&'Record form Early Years'!H12&" )") -> PSim ( 56 ) vs Mat ( 63 ) | C24: ='Record form Early Years'!H65 -> -7 | D24: ='Record form Early Years'!J65 -> No | E24: ='Record form Early Years'!L65 -> >15% | F24: ='Record form Early Years'!F64 -> 
A25: Spatial | B25: =IF('Input page Early Years'!T9=1,"","PCon ( "&'Record form Early Years'!J11&" ) vs Copy ( "&'Record form Early Years'!J13&" )") -> PCon ( 46 ) vs Copy ( 49 ) | C25: ='Record form Early Years'!H67 -> -3 | D25: ='Record form Early Years'!J67 -> No | E25: ='Record form Early Years'!L67 -> >15% | F25: ='Record form Early Years'!F66 -> 
A26: Working Memory | B26: ="RSO ( "&'Record form Early Years'!F34&" ) vs RDb ( "&'Record form Early Years'!F36&" )" -> RSO ( ) vs RDb ( ) | C26: ='Record form Early Years'!H69 ->  | D26: ='Record form Early Years'!J69 ->  | E26: ='Record form Early Years'!L69 ->  | F26: ='Record form Early Years'!F68 -> 
A27: Processing Speed | B27: ="SIP ( "&'Record form Early Years'!H35&" ) vs RN ( "&'Record form Early Years'!H38&" )" -> SIP ( ) vs RN ( ) | C27: ='Record form Early Years'!H71 ->  | D27: ='Record form Early Years'!J71 ->  | E27: ='Record form Early Years'!L71 ->  | F27: ='Record form Early Years'!F70 -> 
A28: School Readiness | B28: ="ENC ( "&'Record form Early Years'!J32&" ) vs MLLF ( "&'Record form Early Years'!J33&" )" -> ENC ( 48 ) vs MLLF ( 49 ) | C28: ='Record form Early Years'!H73 -> -1 | D28: ='Record form Early Years'!J73 ->  | E28: ='Record form Early Years'!L73 -> >15% | F28: ='Record form Early Years'!F72 -> 
B29: ="ENC ( "&'Record form Early Years'!J32&" ) vs PhP ( "&'Record form Early Years'!J37&" )" -> ENC ( 48 ) vs PhP ( ) | C29: ='Record form Early Years'!H74 ->  | D29: ='Record form Early Years'!J74 ->  | E29: ='Record form Early Years'!L74 -> 
B30: ="ENC ( "&'Record form Early Years'!J33&" ) vs PhP ( "&'Record form Early Years'!J37&" )" -> ENC ( 49 ) vs PhP ( ) | C30: ='Record form Early Years'!H75 ->  | D30: ='Record form Early Years'!J75 ->  | E30: ='Record form Early Years'!L75 -> 
B31: ="Mean Core T = "&'Record form Early Years'!F79&" using "&'Record form Early Years'!V83 -> Mean Core T = 55 using GCA | C31: T score | D31: High/Low | E31: Frequency
B32: ='Record form Early Years'!E81 -> Verbal Comprehension (Gc) | C32: ='Record form Early Years'!F81 -> 53 | D32: ='Record form Early Years'!L81 ->  | E32: ='Record form Early Years'!N81 -> 
B33: ='Record form Early Years'!E82 -> Naming Vocabulary (Gc) | C33: ='Record form Early Years'!F82 -> 62 | D33: ='Record form Early Years'!L82 ->  | E33: ='Record form Early Years'!N82 -> 
B34: ='Record form Early Years'!E83 -> Picture Similarities (Gf) | C34: ='Record form Early Years'!F83 -> 56 | D34: ='Record form Early Years'!L83 ->  | E34: ='Record form Early Years'!N83 -> 
B35: ='Record form Early Years'!E84 -> Matrices (Gf) | C35: ='Record form Early Years'!F84 -> 63 | D35: ='Record form Early Years'!L84 -> High | E35: ='Record form Early Years'!N84 -> 15%
B36: ='Record form Early Years'!E85 -> Pattern Construction (Gv) | C36: ='Record form Early Years'!F85 -> 46 | D36: ='Record form Early Years'!L85 -> Low | E36: ='Record form Early Years'!N85 -> 15%
B37: ='Record form Early Years'!E86 -> Copying (Gv) | C37: ='Record form Early Years'!F86 -> 49 | D37: ='Record form Early Years'!L86 ->  | E37: ='Record form School-age'!N75 -> 15%
B39: ='Record form Early Years'!E88 -> Recall of Objects-Immediate (Glr) | C39: ='Record form Early Years'!F88 -> 52 | D39: ='Record form Early Years'!L88 ->  | E39: ='Record form Early Years'!N88 -> 
B40: ='Record form Early Years'!E89 -> Recall of Objects-Delayed (Glr) | C40: ='Record form Early Years'!F89 ->  | D40: ='Record form Early Years'!L89 -> 
B41: ='Record form Early Years'!E90 -> Recall of Digits Forward (Gsm) | C41: ='Record form Early Years'!F90 -> 50 | D41: ='Record form Early Years'!L90 ->  | E41: ='Record form Early Years'!N90 -> 
B42: ='Record form Early Years'!E91 -> Recognition of Pictures (Gv) | C42: ='Record form Early Years'!F91 -> 47 | D42: ='Record form Early Years'!L91 ->  | E42: ='Record form Early Years'!N91 -> 
B43: ='Record form Early Years'!E92 -> Early Number Concepts (Gc/Gf) | C43: ='Record form Early Years'!F92 -> 48 | D43: ='Record form Early Years'!L92 ->  | E43: ='Record form Early Years'!N92 -> 
B44: ='Record form Early Years'!E93 -> Matching Letter Like Forms (Gv) | C44: ='Record form Early Years'!F93 -> 49 | D44: ='Record form Early Years'!L93 ->  | E44: ='Record form Early Years'!N93 -> 
B45: ='Record form Early Years'!E94 -> Phonological Processing (Ga) | C45: ='Record form Early Years'!F94 ->  | D45: ='Record form Early Years'!L94 ->  | E45: ='Record form Early Years'!N94 -> 
B46: ='Record form Early Years'!E95 -> Recall of Sequential Order (Gsm) | C46: ='Record form Early Years'!F95 ->  | D46: ='Record form Early Years'!L95 ->  | E46: ='Record form Early Years'!N95 -> 
B47: ='Record form Early Years'!E96 -> Recall of Digits Backward (Gsm) | C47: ='Record form Early Years'!F96 ->  | D47: ='Record form Early Years'!L96 ->  | E47: ='Record form Early Years'!N96 -> 
B48: ='Record form Early Years'!E97 -> Speed of Information Processing (Gs) | C48: ='Record form Early Years'!F97 ->  | D48: ='Record form Early Years'!L97 ->  | E48: ='Record form Early Years'!N97 -> 
B49: ='Record form Early Years'!E98 -> Rapid Naming (Gs) | C49: ='Record form Early Years'!F98 ->  | D49: ='Record form Early Years'!L98 ->  | E49: ='Record form Early Years'!N98 -> 
B51: Early Years Shared Ability | C51: SS | D51: Subtests
A53: ='Shared Abilities EY'!A6 -> Verbal Conceptualization | C53: ='Shared Abilities EY'!AA114 -> 108 | D53: VC, NV, ENC
A54: ='Shared Abilities EY'!A9 -> Formulation and Testing of Hypotheses | C54: ='Shared Abilities EY'!AA115 -> 110 | D54: VC, PS, PC, Mat
A55: ='Shared Abilities EY'!A12 -> Use of Verbal Mediation to Solve Nonverbal Problems | C55: ='Shared Abilities EY'!AA116 -> 109 | D55: PS, PC, Mat
A56: ='Shared Abilities EY'!A15 -> Verbal Comprehension: | C56: ='Shared Abilities EY'!AA117 ->  | D56: VC, ENC, RSO
A57: ='Shared Abilities EY'!A18 -> Verbal Expression: | C57: ='Shared Abilities EY'!AA118 ->  | D57: NV, ROi , RDf, RSO, RDb, PhP, RN
A58: ='Shared Abilities EY'!A21 -> Visual Analysis of Pictures: | C58: ='Shared Abilities EY'!AA119 -> 109 | D58: VC, PS, Mat, ROi, RPic
A59: ='Shared Abilities EY'!A24 -> Visual Analysis of Figures or Designs: | C59: ='Shared Abilities EY'!AA120 -> 105 | D59: PS, PC, Mat, Copy, MLLF
A60: ='Shared Abilities EY'!A27 -> Spatial Visualization and Orientation: | C60: ='Shared Abilities EY'!AA121 -> 96 | D60: PC, Copy, MLLF
A61: ='Shared Abilities EY'!A30 -> Visual Verbal Integration: | C61: ='Shared Abilities EY'!AA122 ->  | D61: PS, Mat, ROi, RSO
A62: ='Shared Abilities EY'!A33 -> Short-term Memory: (general): | C62: ='Shared Abilities EY'!AA123 ->  | D62: ROi, RDf, RPic, RSO, RDb
A63: ='Shared Abilities EY'!A36 -> Auditory Short-term Memory: | C63: ='Shared Abilities EY'!AA124 ->  | D63: RDf, RSO, RDb,
A64: ='Shared Abilities EY'!A39 -> Visual Short-term Memory: | C64: ='Shared Abilities EY'!AA125 -> 99 | D64: ROi, RPic
A65: ='Shared Abilities EY'!A42 -> Verbal Long-term Information Retrieval: | C65: ='Shared Abilities EY'!AA126 ->  | D65: NV, ENC, RN
A66: ='Shared Abilities EY'!A45 -> Visual/holistic Information Processing: | C66: ='Shared Abilities EY'!AA127 -> 103 | D66: PS, PC, Mat, Copy, RPic, MLLF
A67: ='Shared Abilities EY'!A48 -> Sequential Information Processing: | C67: ='Shared Abilities EY'!AA128 ->  | D67: VC, ROi, RDf, RSO, SIP, RDb, RN
A69: Comparison | B69: Significance | C69: Possible implication
A71: ="RDf ("&C41&") vs. RDb ("&C47&")" -> RDf (50) vs. RDb () | B71: =W71 ->  | C71: Non-meaningful auditory memory span versus Non-meaningful auditory working memory | N71: =B32 -> Verbal Comprehension (Gc) | O71: 53 | Q71: =O79 -> 50 | R71: =O85 ->  | S71: =IF(OR(Q71="",R71=""),"",Q71-R71) ->  | T71: 9 | U71: =IF(OR(Q71="",R71=""),"",IF(Q71=R71,1,IF(S71<0,2,3))) ->  | V71: =IF(ABS(S71)>=T71,1,0) ->  | W71: =IF(OR(Q71="",R71=""),"",IF(V71=1,CHOOSE(U71,"NS",Y71,X71),"NS")) ->  | X71: RDf > RDb | Y71: RDf < RDb | AE71: RDf (55) vs. RDb (59)
N72: Naming Vocabulary (Gc) | O72: 62 | Q72: =O79 -> 50 | R72: =O84 ->  | T72: 9 | X72: RDf > RSO | Y72: RDf < RSO | AE72: RDf (55) vs. RSO (51)
A73: ="RDf ("&C41&") vs. RSO ("&C46&")" -> RDf (50) vs. RSO () | B73: =W72 ->  | C73: Non-meaningful auditory memory span versus Meaningful auditory/visual working memory | N73: Picture Similarities (Gf) | O73: 56 | Q73: =O79 -> 50 | R73: =O80 -> 47 | S73: 3 | T73: 11 | U73: 3 | V73: 0 | W73: NS | X73: RDf > RPic | Y73: RDf < RPic | AE73: RDf (55) vs. RPic (67)
N74: Matrices (Gf) | O74: 63 | Q74: =O85 ->  | R74: =O84 ->  | T74: 9 | X74: RDb > RSO | Y74: RDb < RSO | AE74: RDb (59) vs. RSO (51)
A75: ="RDf ("&C41&") vs. RPic ("&C42&")" -> RDf (50) vs. RPic (47) | B75: =W73 -> NS | C75: Non-meaningful auditory memory span versus Visual memory | N75: Pattern Construction (Gv) | O75: 46 | Q75: =O77 -> 52 | R75: =O78 ->  | T75: 11 | X75: ROi > ROd | Y75: RObi < ROd | AE75: ROi (38) vs. ROd (39)
N76: Copying (Gv) | O76: 49 | Q76: =O77 -> 52 | R76: =O79 -> 50 | S76: 2 | T76: 11 | U76: 3 | V76: 0 | W76: NS | X76: ROi > RDf | Y76: ROi < RDf | AE76: ROi (38) vs. RDf (55)
A77: ="RDb ("&C47&") vs. RSO ("&C46&")" -> RDb () vs. RSO () | B77: =W74 ->  | C77: Non-meaningful auditory working memory versus Meaningful auditory/visual working memory | N77: =B39 -> Recall of Objects-Immediate (Glr) | O77: =C39 -> 52 | Q77: =O77 -> 52 | R77: =O85 ->  | T77: 12 | X77: ROi > RDb | Y77: ROi < RDb | AE77: ROi (38) vs. RDb (59)
N78: Recall of Objects-Delayed (Glr) | Q78: =O86 ->  | R78: =O87 ->  | T78: 11 | X78: SIP > RN | Y78: SIP < RN | AE78: SIP (57) vs. RN (67)
A79: ="ROi ("&C39&") vs. ROd ("&C40&")" -> ROi (52) vs. ROd () | B79: =W75 ->  | C79: Meaningful visual memory immediate versus Meaningful visual memory delayed | N79: Recall of Digits Forward (Gsm) | O79: 50 | Q79: =O77 -> 52 | R79: =O87 ->  | T79: 13 | X79: ROi > RN | Y79: ROi < RN | AE79: ROi (38) vs. RN (67)
N80: Recognition of Pictures (Gv) | O80: 47
A81: ="ROi ("&C39&") vs. RDf ("&C41&")" -> ROi (52) vs. RDf (50) | B81: =W76 -> NS | C81: Meaningful visual memory immediate versus Non-meaningful auditory memory span | N81: Early Number Concepts (Gc/Gf) | O81: 48
N82: Matching Letter Like Forms (Gv) | O82: 49
A83: ="ROi ("&C39&") vs. RDb ("&C47&")" -> ROi (52) vs. RDb () | B83: =W77 ->  | C83: Meaningful visual memory versus Non-meaningful auditory working memory | N83: Phonological Processing (Ga)
N84: Recall of Sequential Order (Gsm)
A85: ="SIP ("&C48&") vs. RN ("&C49&")" -> SIP () vs. RN () | B85: =W78 ->  | C85: Processing Speed Cluster: If significant difference is evidenced, examine ROi vs. RN comparison | N85: Recall of Digits Backward (Gsm)
N86: Speed of Information Processing (Gs)
A87: ="ROi ("&C39&") vs. RN ("&C49&")" -> ROi (52) vs. RN () | B87: =W79 ->  | C87: * Make this comparison only if the SIP vs. RN is significant. RN could involve Glr | N87: Rapid Naming (Gs)

Sheet Input page School-age
B2: Name: | D2: C C | T2: =YEAR(D3) -> 2009 | U2: =MONTH(D3) -> 2 | V2: =DAY(D3) -> 26 | W2: =IF(X3>Y2,T2-1,T2) -> 2008 | X2: =IF(X3>Y2,Y2+12,Y2) -> 14 | Y2: =IF(Z3>V2,U2-1,U2) -> 2 | Z2: =IF(Z3>V2,V2+30,V2) -> 26
B3: Date of Test: | D3: 2009-02-26 | H3: Age: | J3: =AB4 -> 8 years, 6 months, 14 days | W3: =YEAR(D4) -> 2000 | X3: =MONTH(D4) -> 8 | Z3: =DAY(D4) -> 12
B4: Date of Birth: | D4: 2000-08-12 | H4: Date Analyzed: | J4: =NOW() -> 2014-02-11T13:44:26.090 | W4: =W2-W3 -> 8 | X4: =X2-X3 -> 6 | Z4: =Z2-Z3 -> 14 | AB4: =W4&" years, "&X4&X5&Z4&Z5 -> 8 years, 6 months, 14 days
X5: =IF(X4=1," month, "," months, ") -> months, | Z5: =IF(Z4=1," day"," days") -> days
D7: T Score
B8: Recall of Designs (Gv) | C8: RDes | D8: 80
B9: Word Definition (Gc) | C9: WDef | D9: 43
B10: Pattern Construction (Gv) | C10: PCon | D10: 39
B11: Matrices (Gf) | C11: Mat | D11: 27
B12: Verbal Similarities (Gc) | C12: VSim | D12: 40
B13: Sequential & Quantitative Reasoning (Gf) | C13: SQR | D13: 41
D14: Standard Score
B16: Verbal | D16: 100
B17: Nonverbal Reasoning | D17: 74
B18: Spatial | D18: 91
B19: GCA | D19: 80 | T19: 2
B20: SNV | D20: 58
D21: T Score
B22: Recall of Objects-Immediate (Glr) | C22: RObI | D22: 59
B23: Recall of Objects-Delayed (Glr) | C23: RObD | D23: 60
B24: Recall of Digits Forward (Gsm) | C24: DigF | D24: 40
B25: Recognition of Pictures (Gv) | C25: RPic | D25: 43
B26: Recall of Sequential Order (Gsm) | C26: SeqO | D26: 37
B27: Speed of Information Processing (Gs) | C27: SIP
B28: Recall of Digits Backward (Gsm) | C28: DigB | D28: 50
B29: Phonological Processing (Ga) | C29: PhP | D29: 53
B30: Rapid Naming (Gs) | C30: RNam | D30: 44
D31: Standard Score
B33: Working Memory | D33: 89
B34: Processing Speed
B35: School Readiness
B37: Phonological Processing (Ga) | D37: Ability | F37: SEm
C38: Task 1 (Rhyming)
D39: Ability | F39: SEm
C40: Task 2 (Blending)
D41: Ability | F41: SEm
C42: Task 3 (Deletion)
D43: Ability | F43: SEm
C44: Task 4 (Phoneme Identification and Segmentation)
B46: Rapid Naming (Gs) | D46: Ability | F46: SEm
C47: Simple Naming
D48: Ability | F48: Sem
C49: Complex Naming
D50: T Score
B52: Early Number Concepts (Gc/Gf) | C52: ENC
B53: Matching Letter Like Forms (Gv) | C53: MLLF
B54: Verbal Comprehension (Gc) | C54: VCom
B55: Picture Similarities (Gf) | C55: Psim
B56: Naming Vocabulary (Gc) | C56: Nvoc
B57: Copying (Gv) | C57: Copy

Sheet Record form School-age
B2: Name: | C2: =IF('Input page School-age'!D2="","",'Input page School-age'!D2) -> C C | J2: Date of Test: | K2: =IF('Input page School-age'!D3="","",'Input page School-age'!D3) -> 2009-02-26
B3: Age: | C3: =IF('Input page School-age'!J3="","",'Input page School-age'!J3) -> 8 years, 6 months, 14 days | J3: Date of Birth: | K3: =IF('Input page School-age'!D4="","",'Input page School-age'!D4) -> 2000-08-12
J4: Date Analyzed: | K4: =NOW() -> 2014-02-11T13:44:26.090
B6: Core Subtest T Scores | F6: Verbal | H6: Nonverbal Reasoning | J6: Spatial | L6: GCA | N6: SNV | T6: Standard Score
D7: T Score | F7: (Gc) | H7: (Gf) | J7: (Gv) | L7: (g) | N7: (g) | P7: Percentile
B8: Recall of Designs (Gv) | C8: RDes | D8: =IF('Input page School-age'!D8="","",'Input page School-age'!D8) -> 80 | J8: =IF(D8="","",D8) -> 80 | L8: =IF(D8="","",D8) -> 80 | N8: =IF(D8="","",D8) -> 80 | P8: =IF(D8="","",LOOKUP(D8,ttopr)) -> 99.9 | T8: =100+((D8-50)/10)*15 -> 145
B9: Word Definition (Gc) | C9: WDef | D9: =IF('Input page School-age'!D9="","",'Input page School-age'!D9) -> 43 | F9: =IF(D9="","",D9) -> 43 | L9: 43 | P9: 24 | T9: 89.5
B10: Pattern Construction (Gv) | C10: PCon | D10: =IF('Input page School-age'!D10="","",'Input page School-age'!D10) -> 39 | J10: =IF(D10="","",D10) -> 39 | L10: 39 | N10: =IF(D10="","",D10) -> 39 | P10: 14 | T10: 83.5
B11: Matrices (Gf) | C11: Mat | D11: =IF('Input page School-age'!D11="","",'Input page School-age'!D11) -> 27 | H11: =IF(D11="","",D11) -> 27 | L11: 27 | N11: =IF(D11="","",D11) -> 27 | P11: 1 | T11: 65.5 | W11: =COUNT(L8:L13) -> 6 | X11: =COUNT(N8:N13) -> 4
B12: Verbal Similarities (Gc) | C12: VSim | D12: =IF('Input page School-age'!D12="","",'Input page School-age'!D12) -> 40 | F12: =IF(D12="","",D12) -> 40 | L12: 40 | P12: 16 | T12: 85 | W12: =SUM(L8:L13) -> 270 | X12: =SUM(N8:N13) -> 187
B13: Sequential & Quantitative Reasoning (Gf) | C13: SQR | D13: =IF('Input page School-age'!D13="","",'Input page School-age'!D13) -> 41 | H13: =IF(D13="","",D13) -> 41 | L13: 41 | N13: =IF(D13="","",D13) -> 41 | P13: 18 | T13: 86.5 | W13: =IF(W11<6,"",ROUND((W12/6),0)) -> 45 | X13: =IF(X11<4,"",ROUND((X12/4),0)) -> 47
B14: Cluster/Composite Scores
V15: 2 | W15: =IF(V15=1,90,95) -> 95
D16: Sum of Core T scores | F16: ="("&SUM(F9:F15)&")" -> (83) | H16: ="("&SUM(H9:H15)&")" -> (68) | J16: ="("&SUM(J8:J15)&")" -> (119) | L16: ="("&SUM(L8:L15)&")" -> (270) | N16: ="("&SUM(N8:N15)&")" -> (187) | U16: v | V16: 0.89 | W16: =100+V16*(F17-100) -> 100 | X16: =15*SQRT((1-V16)*(V16)) -> 4.693346354 | Y16: =IF($W$15=90,X16*1.65,X16*1.96) -> 9.198958854 | Z16: =ROUND(W16-Y16,0) -> 91 | AA16: =ROUND(W16+Y16,0) -> 109 | AB16: =SUM(F8:F13) -> 83 | AC16: =SUM(H8:H13) -> 68 | AD16: =SUM(J8:J13) -> 119 | AE16: =SUM(L8:L13) -> 270 | AF16: =SUM(N8:N13) -> 187 | AG16: =SUM(F33:F38) -> 87 | AH16: =SUM(H33:H38) -> 44 | AI16: =SUM(J32:J37) -> 53
D17: Standard Score | F17: =IF('Input page School-age'!D16="","",'Input page School-age'!D16) -> 100 | H17: =IF('Input page School-age'!D17="","",'Input page School-age'!D17) -> 74 | J17: =IF('Input page School-age'!D18="","",'Input page School-age'!D18) -> 91 | L17: =IF('Input page School-age'!D19="","",'Input page School-age'!D19) -> 80 | N17: =IF('Input page School-age'!D20="","",'Input page School-age'!D20) -> 58 | U17: nv | V17: 0.92 | W17: =100+V17*(H17-100) -> 76.08 | X17: =15*SQRT((1-V17)*(V17)) -> 4.06939799 | Y17: =IF($W$15=90,X17*1.65,X17*1.96) -> 7.97602006 | Z17: =ROUND(W17-Y17,0) -> 68 | AA17: =ROUND(W17+Y17,0) -> 84 | AB17: =LOOKUP(AB16,Vts) -> 85 | AC17: =LOOKUP(AC16,NVts) -> 74 | AD17: =LOOKUP(AD16,Spts) -> 116 | AE17: =LOOKUP(AE16,gcasum) -> 89 | AF17: =LOOKUP(AF16,gcasum) -> 65 | AG17: =LOOKUP(AG16,wmss) -> 89 | AH17: =LOOKUP(AH16,psss) -> 49 | AI17: =LOOKUP(AI16,gcasum) -> 
D18: Percentile | F18: =IF(F17="","",LOOKUP(F17,sstopr)) -> 50 | H18: =IF(H17="","",LOOKUP(H17,sstopr)) -> 4 | J18: =IF(J17="","",LOOKUP(J17,sstopr)) -> 27 | L18: =IF(L17="","",LOOKUP(L17,sstopr)) -> 9 | N18: =IF(N17="","",LOOKUP(N17,sstopr)) -> 1 | U18: sp | V18: 0.95 | W18: =100+V18*(J17-100) -> 91.45 | X18: =15*SQRT((1-V18)*(V18)) -> 3.269174208 | Y18: =IF($W$15=90,X18*1.65,X18*1.96) -> 6.407581447 | Z18: =ROUND(W18-Y18,0) -> 85 | AA18: =ROUND(W18+Y18,0) -> 98 | AB18: v | AC18: nv | AD18: sp | AE18: gca | AF18: snc | AG18: wm | AH18: ps | AI18: sr
B19: Confidence Interval | F19: =IF(F18="","",Z16&" to "&AA16) -> 91 to 109 | H19: =IF(H18="","",Z17&" to "&AA17) -> 68 to 84 | J19: =IF(J18="","",Z18&" to "&AA18) -> 85 to 98 | L19: =IF(L18="","",Z24&" to "&AA24) -> 75 to 87 | N19: =IF(N18="","",Z25&" to "&AA25) -> 54 to 65 | U19: sr | V19: 0.9 | W19: =100+V19*(J42-100) ->  | X19: =15*SQRT((1-V19)*(V19)) -> 4.5 | Y19: =IF($W$15=90,X19*1.65,X19*1.96) -> 8.82 | Z19: =ROUND(W19-Y19,0) ->  | AA19: =ROUND(W19+Y19,0) -> 
D20: Between Cluster Difference | F20: =IF(F17="","",V56) -> V > NVR | H20: =IF(H17="","",V58) -> NVR < Sp | J20: =IF(J17="","",V57) -> No
D21: Within Cluster Differences | F21: =IF(F17="","",V65) -> No | H21: =IF(H17="","",V66) -> Mat < SQR | J21: =IF(J17="","",V67) -> RDes > PC
D22: Mean Core T Score | L22: =W13 -> 45 | N22: =X13 -> 47 | U22: wm | V22: 0.95 | W22: =100+V22*(F42-100) -> 89.55 | X22: =15*SQRT((1-V22)*(V22)) -> 3.269174208 | Y22: =IF($W$15=90,X22*1.65,X22*1.96) -> 6.407581447 | Z22: =ROUND(W22-Y22,0) -> 83 | AA22: =ROUND(W22+Y22,0) -> 96
F23: Verbal | H23: Nonverbal Reasoning | J23: Spatial | L23: GCA | N23: SNV | U23: ps | V23: 0.9 | W23: =100+V23*(H42-100) ->  | X23: =15*SQRT((1-V23)*(V23)) -> 4.5 | Y23: =IF($W$15=90,X23*1.65,X23*1.96) -> 8.82 | Z23: =ROUND(W23-Y23,0) ->  | AA23: =ROUND(W23+Y23,0) -> 
F24: (Gc) | H24: (Gf) | J24: (Gv) | L24: (g) | N24: (g) | U24: gca | V24: 0.96 | W24: =100+V24*(L17-100) -> 80.8 | X24: =15*SQRT((1-V24)*(V24)) -> 2.939387691 | Y24: =IF($W$15=90,X24*1.65,X24*1.96) -> 5.761199875 | Z24: =ROUND(W24-Y24,0) -> 75 | AA24: =ROUND(W24+Y24,0) -> 87
U25: snv | V25: 0.96 | W25: =100+V25*(N17-100) -> 59.68 | X25: =15*SQRT((1-V25)*(V25)) -> 2.939387691 | Y25: =IF($W$15=90,X25*1.65,X25*1.96) -> 5.761199875 | Z25: =ROUND(W25-Y25,0) -> 54 | AA25: =ROUND(W25+Y25,0) -> 65
B26: Core Subtest T Scores | F26: Working Memory | H26: Processing Speed | J26: School Readiness | S26: Standard Score
D27: T Score | F27: (Gsm) | H27: (Gs) | J27: (7:0-8:11) | L27: Percentile | U27: v v GCA | V27: =CHOOSE(btwcl, 9,13,17) -> 13 | W27: =IF(ABS(verb-gca)>=V27,1,0) -> 1 | X27: =verb-gca -> 20 | Y27: =IF(W27=0,"",IF(X27>0,"V > GCA","V < GCA")) -> V > GCA
B28: Recall of Objects-Immediate (Glr) | C28: RObI | D28: =IF('Input page School-age'!D22="","",'Input page School-age'!D22) -> 59 | L28: =IF(D28="","",LOOKUP(D28,ttopr)) -> 82 | S28: =100+((D28-50)/10)*15 -> 113.5 | U28: NV v GCA | V28: =CHOOSE(btwcl, 9,12,16) -> 12 | W28: =IF(ABS(nverb-gca)>=V28,1,0) -> 0 | X28: =nverb-gca -> -6 | Y28: =IF(W28=0,"",IF(X28>0,"NV > GCA","NV < GCA")) -> 
B29: Recall of Objects-Delayed (Glr) | C29: RObD | D29: =IF('Input page School-age'!D23="","",'Input page School-age'!D23) -> 60 | L29: 84 | S29: 115 | U29: SP v GCA | V29: =CHOOSE(btwcl, 8,10,14) -> 10 | W29: =IF(ABS(sp-gca)>=V29,1,0) -> 1 | X29: =sp-gca -> 11 | Y29: =IF(W29=0,"",IF(X29>0,"Sp > GCA","Sp < GCA")) -> Sp > GCA
B30: Recall of Digits Forward (Gsm) | C30: DigF | D30: =IF('Input page School-age'!D24="","",'Input page School-age'!D24) -> 40 | L30: 16 | S30: 85
B31: Recognition of Pictures (Gv) | C31: RPic | D31: =IF('Input page School-age'!D25="","",'Input page School-age'!D25) -> 43 | L31: 24 | S31: 89.5 | AD31: 0 | AE31: 11 | AF31: 14 | AG31: 15
B32: Early Number Concepts (Gc/Gf) | C32: ENC | D32: =IF('Input page School-age'!D52="","",'Input page School-age'!D52) ->  | J32: =IF(D32="","",D32) ->  | V32: enc | W32: =J32 ->  | X32: =W32-W33 ->  | Y32: =IF(X32=0,"",IF(X32>0,"ENC > MLLF","ENC < MLLF")) ->  | Z32: =IF(ABS(X32)>10,Y32,"") ->  | AD32: 0 | AE32: 12 | AF32: 15 | AG32: 16
B33: Matching Letter Like Forms (Gv) | C33: MLLF | D33: =IF('Input page School-age'!D53="","",'Input page School-age'!D53) ->  | J33: =IF(D33="","",D33) ->  | V33: mllf | W33: =J33 ->  | X33: =W33-W34 ->  | Y33: =IF(X33=0,"",IF(X33>0,"MLLF > PhP","MLLF < PhP")) ->  | Z33: =IF(ABS(X33)>9,Y33,"") ->  | AD33: 0 | AE33: 16 | AF33: 20 | AG33: 21
B34: Recall of Sequential Order (Gsm) | C34: SeqO | D34: =IF('Input page School-age'!D26="","",'Input page School-age'!D26) -> 37 | F34: =IF(D34="","",D34) -> 37 | L34: 10 | S34: 80.5 | V34: php | W34: =J37 -> 53 | X34: =W32-W34 ->  | Y34: =IF(X34=0,"",IF(X34>0,"ENC > PhP","ENC < PhP")) ->  | Z34: =IF(ABS(X34)>7,Y34,"") ->  | AA34: =Z32&" "&Z33&" "&Z34 ->  | AD34: >15 | AE34: 15 | AF34: 10 | AG34: <10
B35: Speed of Information Processing (Gs) | C35: SIP | D35: =IF('Input page School-age'!D27="","",'Input page School-age'!D27) ->  | H35: =IF(D35="","",D35) -> 
B36: Recall of Digits Backward (Gsm) | C36: DigB | D36: =IF('Input page School-age'!D28="","",'Input page School-age'!D28) -> 50 | F36: =IF(D36="","",D36) -> 50 | L36: 50 | S36: 100
B37: Phonological Processing (Ga) | C37: PhP | D37: =IF('Input page School-age'!D29="","",'Input page School-age'!D29) -> 53 | J37: =IF(D37="","",D37) -> 53 | L37: 62 | S37: 104.5
B38: Rapid Naming (Gs) | C38: RNam | D38: =IF('Input page School-age'!D30="","",'Input page School-age'!D30) -> 44 | H38: =IF(D38="","",D38) -> 44 | L38: 27 | S38: 91
B39: Diagnostic Cluster Scores
D41: Sum of Core T scores | F41: =IF(V42="","","("&V42&")") -> (87) | H41: =IF(V43="","","("&V43&")") ->  | J41: =IF(V44="","","("&V44&")") ->  | X41: =gca -> 80 | Y41: gca
D42: Standard Score | F42: =IF(F41="","",'Input page School-age'!D33) -> 89 | H42: =IF(H41="","",'Input page School-age'!D34) ->  | J42: =IF(J41="","",'Input page School-age'!D35) ->  | V42: =IF(COUNT(F34:F37)<2,"",F34+F36) -> 87 | X42: =wm -> 89 | Y42: wm | Z42: =X42-X41 -> 9 | AA42: =IF(Z42=0,"",IF(Z42>0,"WM > GCA","WM < GCA")) -> WM > GCA | AB42: =IF(ABS(Z42)>8,AA42,"No") -> WM > GCA | AC42: =LOOKUP(ABS(Z42),AD32:AG32,AD34:AG34) -> >15
D43: Percentile | F43: =IF(F41="","",LOOKUP(F42,sstopr)) -> 23 | H43: =IF(H41="","",LOOKUP(H42,sstopr)) ->  | J43: =IF(J41="","",LOOKUP(J42,sstopr)) ->  | V43: =IF(COUNT(H35:H38)<2,"",H35+H38) ->  | X43: =ps ->  | Y43: ps | Z43: =X43-X41 ->  | AA43: =IF(Z43=0,"",IF(Z43>0,"PS > GCA","PS < GCA")) ->  | AB43: =IF(ABS(Z43)>10,AA43,"No") ->  | AC43: =LOOKUP(ABS(Z43),AD33:AG33,AD34:AG34) -> 
D44: Confidence Interval | F44: =IF(F41="","",Z22&" to "&AA22) -> 83 to 96 | H44: =IF(H41="","",Z23&" to "&AA23) ->  | J44: =IF(J41="","",Z19&" to "&AA19) ->  | V44: =IF(COUNT(J32:J37)<3,"",J32+J33+J37) ->  | X44: =sr ->  | Y44: schr | Z44: =X44-X41 ->  | AA44: =IF(Z44=0,"",IF(Z44>0,"SR > GCA","SR < GCA")) ->  | AB44: =IF(ABS(Z44)>8,AA44,"") ->  | AC44: =X42-X44 ->  | AD44: =IF(AC44=0,"",IF(AC44>0,"SR < WM","SR > WM")) ->  | AE44: =IF(ABS(AC44)>9,AD44,"") ->  | AF44: =X43-X44 ->  | AG44: =IF(AF44=0,"",IF(AF44>0,"SR < PS","SR > PS")) ->  | AH44: =IF(ABS(AF44)>11,AG44,"") ->  | AI44: =AE44&" "&AH44 -> 
D45: Difference from GCA | F45: =IF(F41="","",AB42) -> WM > GCA | H45: =IF(H41="","",AB43) ->  | J45: =IF(J41="","",AB44) ->  | AC45: =LOOKUP(Z44,AD31:AG31,AD34:AG34) -> 
D46: Between Cluster Difference | F46: =IF(OR(F41="",H41=""),"",V59) ->  | J46: =IF(J41="","",AI44) -> 
D47: Within Cluster Differences | F47: =IF(F41="","",V68) -> RSO < DB | H47: =IF(H41="","",V69) ->  | J47: =IF(J41="","",AA34) -> 
F48: Working Memory | H48: Processing Speed | J48: School Readiness | AA48: 0 | AB48: 13 | AC48: 16 | AD48: 21 | AE48: 27 | AF48: 30 | AG48: 33
F49: (Gsm) | H49: (Gs) | J49: (7:0-8:11) | V49: 2 | W49: =CHOOSE(btwcl,".15",".05",".01") -> .05 | AA49: 0 | AB49: 13 | AC49: 16 | AD49: 21 | AE49: 27 | AF49: 31 | AG49: 34
AA50: 0 | AB50: 14 | AC50: 18 | AD50: 23 | AE50: 30 | AF50: 34 | AG50: 39
C51: ="Comparisons at "&W49&" level" -> Comparisons at .05 level | H51: Difference | J51: Significance | L51: Frequency | V51: Score 1 | W51: Score2 | Y51: <=> | AA51: 0 | AB51: 13 | AC51: 17 | AD51: 23 | AE51: 30 | AF51: 36 | AG51: 42
F52: =IF(V52=W52,"Verbal ("&F17&") = Nonverbal Reasoning ("&H17&")",IF(V52>W52,"Verbal ("&F17&") > Nonverbal Reasoning ("&H17&")","Verbal ("&F17&") < Nonverbal Reasoning ("&H17&")")) -> Verbal (100) > Nonverbal Reasoning (74) | H52: =IF(OR(V52="",W52=""),"",V52-W52) -> 26 | J52: =IF(OR(V52="",W52=""),"",IF(ABS(H52)>=X52,"Yes","No")) -> Yes | L52: =IF(OR(V52="",W52=""),"",Z52&"%") -> 5% | U52: v vs nv | V52: =verb -> 100 | W52: =nverb -> 74 | X52: =CHOOSE(btwcl,9,13,17) -> 13 | Y52: =IF(V52=W52,2,IF(V52>W52,1,3)) -> 1 | Z52: =IF(Y52=2,">15",IF(Y52=1,LOOKUP(ABS(H52),AA48:AG48,AA56:AG56),LOOKUP(ABS(H52),AA49:AG49,AA56:AG56))) -> 5 | AA52: 0 | AB52: 12 | AC52: 15 | AD52: 20 | AE52: 26 | AF52: 30 | AG52: 37
F53: =IF(V54=W54,"Nonverbal ("&H17&") = Spatial ("&J17&")",IF(V54>W54,"Nonverbal ("&H17&") > Spatial ("&J17&")","Nonverbal ("&H17&") < Spatial ("&J17&")")) -> Nonverbal (74) < Spatial (91) | H53: =IF(OR(V54="",W54=""),"",V54-W54) -> -17 | J53: =IF(OR(V54="",W54=""),"",IF(ABS(H53)>=X54,"Yes","No")) -> Yes | L53: =IF(OR(V54="",W54=""),"",Z54&"%") -> 10% | U53: v vs sp | V53: =verb -> 100 | W53: =sp -> 91 | X53: =CHOOSE(btwcl,9,12,16) -> 12 | Y53: =IF(V53=W53,2,IF(V53>W53,1,3)) -> 1 | Z53: =IF(Y53=2,">15",IF(Y53=1,LOOKUP(ABS(H54),AA50:AG50,AA56:AG56),LOOKUP(ABS(H54),AA51:AG51,AA56:AG56))) -> >15 | AA53: 0 | AB53: 12 | AC53: 15 | AD53: 19 | AE53: 25 | AF53: 31 | AG53: 34
F54: =IF(V53=W53,"Verbal ("&F17&")= Spatial ("&J17&")",IF(V53>W53,"Verbal ("&F17&") > Spatial ("&J17&")","Verbal ("&F17&") < Spatial ("&J17&")")) -> Verbal (100) > Spatial (91) | H54: =IF(OR(V53="",W53=""),"",V53-W53) -> 9 | J54: =IF(OR(V53="",W53=""),"",IF(ABS(H54)>=X53,"Yes","No")) -> No | L54: =IF(OR(V53="",W53=""),"",Z53&"%") -> >15% | U54: nv vs sp | V54: =nverb -> 74 | W54: =sp -> 91 | X54: =CHOOSE(btwcl,8,10,14) -> 10 | Y54: =IF(V54=W54,2,IF(V54>W54,1,3)) -> 3 | Z54: =IF(Y54=2,">15",IF(Y54=1,LOOKUP(ABS(H53),AA52:AG52,AA56:AG56),LOOKUP(ABS(H53),AA53:AG53,AA56:AG56))) -> 10 | AA54: 0 | AB54: 16 | AC54: 20 | AD54: 26 | AE54: 35 | AF54: 41 | AG54: 49
F55: =IF(V55=W55,"Working Memory ("&F42&") = Processing Speed ("&H42&") ",IF(V55>W55,"Working Memory ("&F42&") > Processing Speed ("&H42&")","Working Memory ("&F42&") < Processing Speed ("&H42&")")) -> Working Memory (89) < Processing Speed () | H55: =IF(OR(V55="",W55=""),"",V55-W55) ->  | J55: =IF(OR(V55="",W55=""),"",IF(ABS(H55)>=X55,"Yes","No")) ->  | L55: =IF(OR(V55="",W55=""),"",Z55&"%") ->  | V55: =F42 -> 89 | W55: =H42 ->  | X55: =CHOOSE(btwcl,9,12,15) -> 12 | Y55: =IF(V55=W55,2,IF(V55>W55,1,3)) -> 3 | Z55: =IF(Y55=2,"",IF(Y55=1,LOOKUP(ABS(H55),AA54:AG54,AA56:AG56),LOOKUP(ABS(H55),AA55:AG55,AA56:AG56))) ->  | AA55: 0 | AB55: 18 | AC55: 22 | AD55: 29 | AE55: 37 | AF55: 42 | AG55: 48
D56: ="Verbal ("&verb&") " -> Verbal (100) | F56: =IF(OR(V60="",W60=""),"",X66) ->  | V56: =IF(J52="No","No",IF(V52=W52,"No",IF(V52>W52,"V > NVR","V< NVR"))) -> V > NVR | AA56: >15 | AB56: 15 | AC56: 10 | AD56: 5 | AE56: 2 | AF56: 1 | AG56: 0.5
F57: =IF(V49=X49,"Word Definition ("&F9&") = Verbal Similarities ("&F12&") ",IF(V49>X49,"Word Definition ("&F9&") > Verbal Similarities ("&F12&")","Word Definition ("&F9&") < Verbal Similarities ("&F12&")")) -> Word Definition (43) > Verbal Similarities (40) | H57: =IF(OR(V60="",W60=""),"",V60-W60) -> 3 | J57: =IF(OR(V60="",W60=""),"",IF(ABS(H57)>=X60,"Yes","No")) -> No | L57: =IF(OR(V60="",W60=""),"",Z60&"%") -> >15% | V57: =IF(J54="No","No",IF(V53=W53,"No",IF(V53>W53,"V > Sp","V< Sp"))) -> No
D58: ="Nonverbal Reasoning ("&nverb&") " -> Nonverbal Reasoning (74) | F58: =IF(OR(V61="",W61=""),"",X67) -> Interpret With Caution | V58: =IF(J53="No","No",IF(V54=W54,"No",IF(V54>W54,"NVR > Sp","NVR < Sp"))) -> NVR < Sp
F59: =IF(V61=W61,"Matrices ("&H11&") = Sequential & Quantitative Reasoning ("&H13&") ",IF(V61>W61,"Matrices ("&H11&") > Sequential & Quantitative Reasoning ("&H13&")","Matrices ("&H11&") < Sequential & Quantitative Reasoning ("&H13&")")) -> Matrices (27) < Sequential & Quantitative Reasoning (41) | H59: =IF(OR(V61="",W61=""),"",V61-W61) -> -14 | J59: =IF(OR(V61="",W61=""),"",IF(ABS(H59)>=X61,"Yes","No")) -> Yes | L59: =IF(OR(V61="",W61=""),"",Z61&"%") -> 5% | V59: =IF(J55="No","No",IF(V55=W55,"No",IF(V55>W55,"WM > PS","WM < PS"))) -> WM < PS
D60: ="Spatial ("&sp&") " -> Spatial (91) | F60: =IF(OR(V62="",W62=""),"",X68) -> Interpret With Caution | V60: =F9 -> 43 | W60: =F12 -> 40 | X60: =CHOOSE(btwcl,9,12,16) -> 12 | Y60: =IF(V60=W60,2,IF(V60>W60,1,3)) -> 1 | Z60: =IF(Y60=2,">15",IF(Y60=1,LOOKUP(ABS(H57),AA60:AE60,AA70:AE70),LOOKUP(ABS(H57),AA61:AE61,AA70:AE70))) -> >15 | AA60: 0 | AB60: 8 | AC60: 10 | AD60: 14 | AE60: 19 | AF60: wd>S
F61: =IF(V62=W62,"Recall of Designs ("&J8&") = Pattern Construction ("&J10&") ",IF(V62>W62,"Recall of Designs ("&J8&") > Pattern Construction ("&J10&")","Recall of Designs ("&J8&") < Pattern Construction ("&J10&")")) -> Recall of Designs (80) > Pattern Construction (39) | H61: =IF(OR(V62="",W62=""),"",V62-W62) -> 41 | J61: =IF(OR(V62="",W62=""),"",IF(ABS(H61)>=X62,"Yes","No")) -> Yes | L61: =IF(OR(V62="",W62=""),"",Z62&"%") -> <5% | V61: =H11 -> 27 | W61: =H13 -> 41 | X61: =CHOOSE(btwcl,7,9,12) -> 9 | Y61: =IF(V61=W61,2,IF(V61>W61,1,3)) -> 3 | Z61: =IF(Y61=2,">15",IF(Y61=1,LOOKUP(ABS(H59),AA62:AE62,AA70:AE70),LOOKUP(ABS(H59),AA63:AE63,AA70:AE70))) -> 5 | AA61: 0 | AB61: 8 | AC61: 10 | AD61: 13 | AE61: 16 | AF61: Wd<s
D62: ="Working Memory ("&V55&") " -> Working Memory (89) | F62: =IF(OR(V63="",W63=""),"",X69) -> Interpret With Caution | V62: =J8 -> 80 | W62: =J10 -> 39 | X62: =CHOOSE(btwcl,6,8,11) -> 8 | Y62: =IF(V62=W62,2,IF(V62>W62,1,3)) -> 1 | Z62: =IF(Y62=2,">15",IF(Y62=1,LOOKUP(ABS(H61),AA64:AE64,AA70:AE70),LOOKUP(ABS(H61),AA65:AE65,AA70:AE70))) -> <5 | AA62: 0 | AB62: 9 | AC62: 11 | AD62: 14 | AE62: 17 | AF62: m>sq
F63: =IF(V63=W63,"Recall of Sequential Order ("&F34&") = Recall of Digits Backward ("&F36&") ",IF(V63>W63,"Recall of Sequential Order ("&F34&") > Recall of Digits Backward ("&F36&")","Recall of Sequential Order ("&F34&") < Recall of Digits Backward ("&F36&")")) -> Recall of Sequential Order (37) < Recall of Digits Backward (50) | H63: =IF(OR(V63="",W63=""),"",V63-W63) -> -13 | J63: =IF(OR(V63="",W63=""),"",IF(ABS(H63)>=X63,"Yes","No")) -> Yes | L63: =IF(OR(V63="",W63=""),"",Z63&"%") -> 10% | V63: =F34 -> 37 | W63: =F36 -> 50 | X63: =CHOOSE(btwcl,6,8,10) -> 8 | Y63: =IF(V63=W63,2,IF(V63>W63,1,3)) -> 3 | Z63: =IF(Y63=2,">15",IF(Y63=1,LOOKUP(ABS(H63),AA66:AE66,AA70:AE70),LOOKUP(ABS(H63),AA67:AE67,AA70:AE70))) -> 10 | AA63: 0 | AB63: 9 | AC63: 11 | AD63: 14 | AE63: 20 | AF63: M<sq
D64: ="Processing Speed ("&W55&") " -> Processing Speed () | F64: =IF(OR(V64="",W64=""),"",X70) ->  | V64: =H35 ->  | W64: =H38 -> 44 | X64: =CHOOSE(btwcl,8,10,14) -> 10 | Y64: =IF(V64=W64,2,IF(V64>W64,1,3)) -> 1 | Z64: =IF(Y64=2,">15",IF(Y64=1,LOOKUP(ABS(I65),AA68:AE68,AA70:AE70),LOOKUP(ABS(I65),AA69:AE69,AA70:AE70))) ->  | AA64: 0 | AB64: 9 | AC64: 12 | AD64: 15 | AE64: 19 | AF64: rdes>pc
F65: =IF(V64=W64,"Speed of Information Processing ("&H35&") = Rapid Naming ("&H38&") ",IF(V64>W64,"Speed of Information Processing ("&H35&") > Rapid Naming ("&H38&")","Speed of Information Processing ("&H35&") < Rapid Naming ("&H38&")")) -> Speed of Information Processing () > Rapid Naming (44) | H65: =IF(OR(V64="",W64=""),"",V64-W64) ->  | I65: =V64-W64 ->  | J65: =IF(OR(V64="",W64=""),"",IF(ABS(I65)>=X64,"Yes","No")) ->  | L65: =IF(OR(V64="",W64=""),"",Z64&"%") ->  | V65: =IF(J57="No","No",IF(V60=W60,"No",IF(V60>W60,"WD > VSim","WD < VSim"))) -> No | AA65: 0 | AB65: 9 | AC65: 11 | AD65: 15 | AE65: 20 | AF65: Rdes<pc
V66: =IF(J59="No","No",IF(V61=W61,"No",IF(V61>W61,"Mat > SQR","Mat < SQR"))) -> Mat < SQR | X66: =IF(J57="No","","Interpret With Caution") ->  | AA66: 0 | AB66: 9 | AC66: 11 | AD66: 15 | AE66: 21 | AF66: rso>db
V67: =IF(J61="No","No",IF(J61="No","No",IF(V62=W62,"",IF(V62>W62,"RDes > PC","RDes < PC")))) -> RDes > PC | X67: =IF(J59="No","","Interpret With Caution") -> Interpret With Caution | AA67: 0 | AB67: 9 | AC67: 11 | AD67: 14 | AE67: 19 | AF67: rso<db
F68: =V74 -> 45 | H68: Difference required | V68: =IF(J63="No","No",IF(J63="No","No",IF(V63=W63,"No",IF(V63>W63,"RSO > DB","RSO < DB")))) -> RSO < DB | X68: =IF(J61="No","","Interpret With Caution") -> Interpret With Caution | AA68: 0 | AB68: 11 | AC68: 14 | AD68: 18 | AE68: 24 | AF68: sip>rn
F69: T Score | J69: Difference | L69: Significance | N69: Frequency | V69: =IF(J65="No","No",IF(J65="No","No",IF(V64=W64,"No",IF(V64>W64,"SIP > RN","SIP < RN")))) -> SIP > RN | X69: =IF(J63="No","","Interpret With Caution") -> Interpret With Caution | AA69: 0 | AB69: 11 | AC69: 14 | AD69: 18 | AE69: 22 | AF69: sip<rn
E70: =B9 -> Word Definition (Gc) | F70: =D9 -> 43 | H70: =IF(F70="","",X75) -> 7 | J70: =IF(OR(F68="",F70=""),"",U75-V75) -> -2 | L70: =IF(J70="","",Z75) ->  | N70: =IF(L70="","",IF(meant=1,AB75&"%",AC75&"%")) ->  | X70: =IF(J65="No","","Interpret With Caution") -> Interpret With Caution | AA70: >15 | AB70: 15 | AC70: 10 | AD70: 5 | AE70: <5
E71: =B12 -> Verbal Similarities (Gc) | F71: =D12 -> 40 | H71: =IF(F71="","",X78) -> 8 | J71: =IF(OR(F68="",F71=""),"",U78-V78) -> -5 | L71: =IF(J71="","",Z78) ->  | N71: =IF(L71="","",IF(meant=1,AB78&"%",AC78&"%")) -> 
E72: =B11 -> Matrices (Gf) | F72: =D11 -> 27 | H72: =IF(F72="","",X77) -> 7 | J72: =IF(OR(F68="",F72=""),"",U77-V77) -> -18 | L72: =IF(J72="","",Z77) -> Low | N72: =IF(L72="","",IF(meant=1,AB77&"%",AC77&"%")) -> <10% | V72: =IF(meant=1,"GCA","SNC") -> GCA
E73: =B13 -> Sequential & Quantitative Reasoning (Gf) | F73: =D13 -> 41 | H73: =IF(F73="","",X79) -> 6 | J73: =IF(OR(F68="",F73=""),"",U79-V79) -> -4 | L73: =IF(J73="","",Z79) ->  | N73: =IF(L73="","",IF(meant=1,AB79&"%",AC79&"%")) ->  | U73: 1 | V73: m t | W73: diff | X73: cv | Y73: <=> | Z73: sig | AA73: <=> | AB73: gca | AC73: snc
E74: =B8 -> Recall of Designs (Gv) | F74: =D8 -> 80 | H74: =IF(F74="","",X74) -> 7 | J74: =IF(OR(F68="",F74=""),"",U74-V74) -> 35 | L74: =IF(J74="","",Z74) -> High | N74: =IF(L74="","",IF(meant=1,AB74&"%",AC74&"%")) -> <10% | U74: =F74 -> 80 | V74: =IF(meant=1,$L$22,$N$22) -> 45 | W74: =ABS(U74-V74) -> 35 | X74: =IF(AND(btwcl=1,meant=1),5,IF(AND(btwcl=2,meant=1),7,IF(AND(btwcl=3,meant=1),9,IF(AND(btwcl=1,meant=2),4,IF(AND(btwcl=2,meant=2),6,IF(AND(btwcl=3,meant=2),8)))))) -> 7 | Y74: =IF(U74=V74,"",IF(U74>V74,"High","Low")) -> High | Z74: =IF(W74>=X74,Y74,"") -> High | AA74: =IF(U74<V74,3,IF(U74>V74,1,2)) -> 1 | AB74: =IF(AA74=1,LOOKUP(W74,AD74:AG74,$AD$102:$AG$102),LOOKUP(W74,AD75:AG75,$AD$102:$AG$102)) -> <10 | AC74: =IF(AB74=3,LOOKUP(W74,AH74:AK74,$AD$102:$AG$102),LOOKUP(W74,AH75:AK75,$AD$102:$AG$102)) -> <10 | AD74: 0 | AE74: 7 | AF74: 8 | AG74: 9 | AH74: 0 | AI74: 6 | AJ74: 8 | AK74: 9 | AL74: =E74 -> Recall of Designs (Gv)
E75: =B10 -> Pattern Construction (Gv) | F75: =D10 -> 39 | H75: =IF(F75="","",X76) -> 5 | J75: =IF(OR(F68="",F75=""),"",U76-V76) -> -6 | L75: =IF(J75="","",Z76) -> Low | N75: =IF(L75="","",IF(meant=1,AB76&"%",AC76&"%")) -> 15% | U75: =F70 -> 43 | V75: 45 | W75: 2 | X75: =IF(AND(btwcl=1,meant=1),5,IF(AND(btwcl=2,meant=1),7,IF(AND(btwcl=3,meant=1),9,IF(AND(btwcl=1,meant=2),7,IF(AND(btwcl=2,meant=2),9,IF(AND(btwcl=3,meant=2),12)))))) -> 7 | Y75: Low | AA75: 3 | AB75: =IF(AA75=1,LOOKUP(W75,AD76:AG76,$AD$102:$AG$102),LOOKUP(W75,AD77:AG77,$AD$102:$AG$102)) -> >15 | AC75: =IF(AB75=3,LOOKUP(W75,AH76:AK76,$AD$102:$AG$102),LOOKUP(W75,AH77:AK77,$AD$102:$AG$102)) -> >15 | AD75: 0 | AE75: 7 | AF75: 9 | AG75: 10 | AH75: 0 | AI75: 6 | AJ75: 8 | AK75: 9
U76: =F75 -> 39 | V76: 45 | W76: 6 | X76: =IF(AND(btwcl=1,meant=1),4,IF(AND(btwcl=2,meant=1),5,IF(AND(btwcl=3,meant=1),7,IF(AND(btwcl=1,meant=2),4,IF(AND(btwcl=2,meant=2),5,IF(AND(btwcl=3,meant=2),7)))))) -> 5 | Y76: Low | Z76: Low | AA76: 3 | AB76: =IF(AA76=1,LOOKUP(W76,AD78:AG78,$AD$102:$AG$102),LOOKUP(W76,AD79:AG79,$AD$102:$AG$102)) -> 15 | AC76: =IF(AB76=3,LOOKUP(W76,AH78:AK78,$AD$102:$AG$102),LOOKUP(W76,AH79:AK79,$AD$102:$AG$102)) -> 15 | AD76: 0 | AE76: 6 | AF76: 8 | AG76: 9 | AH76: 0 | AI76: 8 | AJ76: 10 | AK76: 11 | AL76: =E70 -> Word Definition (Gc)
E77: =B28 -> Recall of Objects-Immediate (Glr) | F77: =D28 -> 59 | H77: =IF(F77="","",X81) -> 9 | J77: =IF(OR(F68="",F77=""),"",U81-V81) -> 14 | L77: =IF(J77="","",Z81) -> High | N77: =IF(L77="","",IF(meant=1,AB81&"%",AC81&"%")) -> <10% | U77: =F72 -> 27 | V77: 45 | W77: 18 | X77: =IF(AND(btwcl=1,meant=1),5,IF(AND(btwcl=2,meant=1),7,IF(AND(btwcl=3,meant=1),9,IF(AND(btwcl=1,meant=2),4,IF(AND(btwcl=2,meant=2),6,IF(AND(btwcl=3,meant=2),8)))))) -> 7 | Y77: Low | Z77: Low | AA77: 3 | AB77: =IF(AA77=1,LOOKUP(W77,AD80:AG80,$AD$102:$AG$102),LOOKUP(W77,AD81:AG81,$AD$102:$AG$102)) -> <10 | AC77: =IF(AB77=13,LOOKUP(W77,AH80:AK80,$AD$102:$AG$102),LOOKUP(W77,AH81:AK81,$AD$102:$AG$102)) -> <10 | AD77: 0 | AE77: 6 | AF77: 8 | AG77: 9 | AH77: 0 | AI77: 8 | AJ77: 10 | AK77: 11
E78: =B29 -> Recall of Objects-Delayed (Glr) | F78: =D29 -> 60 | L78: =IF(F78="","",Z82) ->  | U78: =F71 -> 40 | V78: 45 | W78: 5 | X78: =IF(AND(btwcl=1,meant=1),6,IF(AND(btwcl=2,meant=1),8,IF(AND(btwcl=3,meant=1),10,IF(AND(btwcl=1,meant=2),7,IF(AND(btwcl=2,meant=2),10,IF(AND(btwcl=3,meant=2),13)))))) -> 8 | Y78: Low | AA78: 3 | AB78: =IF(AA78=1,LOOKUP(W78,AD82:AG82,$AD$102:$AG$102),LOOKUP(W78,AD83:AG83,$AD$102:$AG$102)) -> >15 | AC78: =IF(AB78=3,LOOKUP(W78,AH82:AK82,$AD$102:$AG$102),LOOKUP(W78,AH83:AK83,$AD$102:$AG$102)) -> >15 | AD78: 0 | AE78: 6 | AF78: 7 | AG78: 8 | AH78: 0 | AI78: 5 | AJ78: 7 | AK78: 8 | AL78: =E75 -> Pattern Construction (Gv)
E79: =B30 -> Recall of Digits Forward (Gsm) | F79: =D30 -> 40 | H79: =IF(F79="","",X83) -> 7 | J79: =IF(OR(F68="",F79=""),"",U83-V83) -> -5 | L79: =IF(J79="","",Z83) ->  | N79: =IF(L79="","",IF(meant=1,AB83&"%",AC83&"%")) ->  | U79: =F73 -> 41 | V79: 45 | W79: 4 | X79: =IF(AND(btwcl=1,meant=1),4,IF(AND(btwcl=2,meant=1),6,IF(AND(btwcl=3,meant=1),8,IF(AND(btwcl=1,meant=2),4,IF(AND(btwcl=2,meant=2),5,IF(AND(btwcl=3,meant=2),7)))))) -> 6 | Y79: Low | AA79: 3 | AB79: =IF(AA79=1,LOOKUP(W79,AD84:AG84,$AD$102:$AG$102),LOOKUP(W79,AD85:AG85,$AD$102:$AG$102)) -> >15 | AC79: =IF(AB79=3,LOOKUP(W79,AH84:AK84,$AD$102:$AG$102),LOOKUP(W79,AH85:AK85,$AD$102:$AG$102)) -> >15 | AD79: 0 | AE79: 6 | AF79: 8 | AG79: 9 | AH79: 0 | AI79: 6 | AJ79: 7 | AK79: 8
E80: =B31 -> Recognition of Pictures (Gv) | F80: =D31 -> 43 | H80: 13 | J80: =IF(OR(F68="",F80=""),"",U84-V84) -> -2 | AD80: 0 | AE80: 6 | AF80: 8 | AG80: 9 | AH80: 0 | AI80: 6 | AJ80: 8 | AK80: 9 | AL80: =E72 -> Matrices (Gf)
E81: =B34 -> Recall of Sequential Order (Gsm) | F81: =D34 -> 37 | H81: 7 | J81: =IF(OR(F68="",F81=""),"",U85-V85) -> -8 | L81: Low | N81: 15% | U81: =F77 -> 59 | V81: =IF(meant=1,$L$22,$N$22) -> 45 | W81: =ABS(U81-V81) -> 14 | X81: =IF(AND(btwcl=1,meant=1),7,IF(AND(btwcl=2,meant=1),9,IF(AND(btwcl=3,meant=1),12,IF(AND(btwcl=1,meant=2),7,IF(AND(btwcl=2,meant=2),9,IF(AND(btwcl=3,meant=2),12)))))) -> 9 | Y81: =IF(U81=V81,"",IF(U81>V81,"High","Low")) -> High | Z81: =IF(W81>=X81,Y81,"") -> High | AA81: =IF(U81<V81,3,IF(U81>V81,1,2)) -> 1 | AB81: =IF(AA81=1,LOOKUP(W81,AD86:AG86,$AD$102:$AG$102),LOOKUP(W81,AD87:AG87,$AD$102:$AG$102)) -> <10 | AC81: =IF(AB81=3,LOOKUP(W81,AH86:AK86,$AD$102:$AG$102),LOOKUP(W81,AH87:AK87,$AD$102:$AG$102)) -> 15 | AD81: 0 | AE81: 6 | AF81: 8 | AG81: 9 | AH81: 0 | AI81: 6 | AJ81: 7 | AK81: 8
E82: =B35 -> Speed of Information Processing (Gs) | F82: =D35 ->  | J82: =IF(OR(F68="",F82=""),"",U86-V86) ->  | U82: 60 | V82: =F77 -> 59 | W82: 1 | X82: 11 | Y82: =IF(U82=V82,"",IF(U82>V82,"RObI < RObD","RObI > RObD")) -> RObI < RObD | AA82: 1 | AB82: =IF(AA82=1,LOOKUP(W82,AD82:AG82,$AD$102:$AG$102),LOOKUP(W82,AD83:AG83,$AD$102:$AG$102)) -> >15 | AC82: =IF(AA82=1,LOOKUP(W82,AH82:AK82,$AD$102:$AG$102),LOOKUP(W82,AH83:AK83,$AD$102:$AG$102)) -> >15 | AD82: 0 | AE82: 7 | AF82: 8 | AG82: 9 | AH82: 0 | AI82: 9 | AJ82: 10 | AK82: 11 | AL82: =E71 -> Verbal Similarities (Gc)
E83: =B36 -> Recall of Digits Backward (Gsm) | F83: =D36 -> 50 | H83: 7 | J83: =IF(OR(F68="",F83=""),"",U87-V87) -> 5 | U83: 40 | V83: =IF(meant=1,$L$22,$N$22) -> 45 | W83: 5 | X83: =IF(AND(btwcl=1,meant=1),5,IF(AND(btwcl=2,meant=1),7,IF(AND(btwcl=3,meant=1),10,IF(AND(btwcl=1,meant=2),5,IF(AND(btwcl=2,meant=2),7,IF(AND(btwcl=3,meant=2),10)))))) -> 7 | Y83: =IF(U83=V83,"",IF(U83>V83,"High","Low")) -> Low | AA83: 3 | AB83: =IF(AA83=1,LOOKUP(W83,AD88:AG88,$AD$102:$AG$102),LOOKUP(W83,AD89:AG89,$AD$102:$AG$102)) -> >15 | AC83: =IF(AB83=3,LOOKUP(W83,AH88:AK88,$AD$102:$AG$102),LOOKUP(W83,AH89:AK89,$AD$102:$AG$102)) -> >15 | AD83: 0 | AE83: 6 | AF83: 8 | AG83: 9 | AH83: 0 | AI83: 8 | AJ83: 10 | AK83: 11
E84: =B37 -> Phonological Processing (Ga) | F84: =D37 -> 53 | H84: 9 | J84: =IF(OR(F68="",F84=""),"",U88-V88) -> 8 | U84: 43 | V84: 45 | W84: 2 | X84: =IF(AND(btwcl=1,meant=1),9,IF(AND(btwcl=2,meant=1),13,IF(AND(btwcl=3,meant=1),17,IF(AND(btwcl=1,meant=2),9,IF(AND(btwcl=2,meant=2),13,IF(AND(btwcl=3,meant=2),17)))))) -> 13 | Y84: Low | AA84: 3 | AB84: =IF(AA84=1,LOOKUP(W84,AD90:AG90,$AD$102:$AG$102),LOOKUP(W84,AD91:AG91,$AD$102:$AG$102)) -> >15 | AC84: =IF(AB84=3,LOOKUP(W84,AH90:AK90,$AD$102:$AG$102),LOOKUP(W84,AH91:AK91,$AD$102:$AG$102)) -> >15 | AD84: 0 | AE84: 6 | AF84: 7 | AG84: 8 | AH84: 0 | AI84: 5 | AJ84: 7 | AK84: 8 | AL84: =E73 -> Sequential & Quantitative Reasoning (Gf)
E85: =B38 -> Rapid Naming (Gs) | F85: =D38 -> 44 | H85: 10 | J85: =IF(OR(F68="",F85=""),"",U89-V89) -> -1 | U85: 37 | V85: 45 | W85: 8 | X85: =IF(AND(btwcl=1,meant=1),5,IF(AND(btwcl=2,meant=1),7,IF(AND(btwcl=3,meant=1),9,IF(AND(btwcl=1,meant=2),5,IF(AND(btwcl=2,meant=2),7,IF(AND(btwcl=3,meant=2),9)))))) -> 7 | Y85: Low | Z85: Low | AA85: 3 | AB85: =IF(AA85=1,LOOKUP(W85,AD92:AG92,$AD$102:$AG$102),LOOKUP(W85,AD93:AG93,$AD$102:$AG$102)) -> 15 | AC85: =IF(AB85=3,LOOKUP(W85,AH92:AK92,$AD$102:$AG$102),LOOKUP(W85,AH93:AK93,$AD$102:$AG$102)) -> >15 | AD85: 0 | AE85: 6 | AF85: 7 | AG85: 8 | AH85: 0 | AI85: 5 | AJ85: 7 | AK85: 8
V86: 45 | X86: =IF(AND(btwcl=1,meant=1),5,IF(AND(btwcl=2,meant=1),7,IF(AND(btwcl=3,meant=1),10,IF(AND(btwcl=1,meant=2),5,IF(AND(btwcl=2,meant=2),7,IF(AND(btwcl=3,meant=2),10)))))) -> 7 | Y86: High | AA86: 1 | AB86: =IF(AA86=1,LOOKUP(W86,AD94:AG94,$AD$102:$AG$102),LOOKUP(W86,AD95:AG95,$AD$102:$AG$102)) ->  | AC86: =IF(AB86=3,LOOKUP(W86,AH94:AK94,$AD$102:$AG$102),LOOKUP(W86,AH95:AK95,$AD$102:$AG$102)) ->  | AD86: 0 | AE86: 9 | AF86: 12 | AG86: 13 | AH86: 0 | AI86: 10 | AJ86: 13 | AK86: 14 | AL86: =E77 -> Recall of Objects-Immediate (Glr)
U87: 50 | V87: 45 | W87: 5 | X87: =IF(AND(btwcl=1,meant=1),5,IF(AND(btwcl=2,meant=1),7,IF(AND(btwcl=3,meant=1),10,IF(AND(btwcl=1,meant=2),5,IF(AND(btwcl=2,meant=2),7,IF(AND(btwcl=3,meant=2),10)))))) -> 7 | Y87: High | AA87: 1 | AB87: =IF(AA87=1,LOOKUP(W87,AD96:AG96,$AD$102:$AG$102),LOOKUP(W87,AD97:AG97,$AD$102:$AG$102)) -> >15 | AC87: =IF(AB87=3,LOOKUP(W87,AH96:AK96,$AD$102:$AG$102),LOOKUP(W87,AH97:AK97,$AD$102:$AG$102)) -> >15 | AD87: 0 | AE87: 12 | AF87: 14 | AG87: 15 | AH87: 0 | AI87: 12 | AJ87: 15 | AK87: 16
J88: Ability Score | U88: 53 | V88: 45 | W88: 8 | X88: =IF(AND(btwcl=1,meant=1),6,IF(AND(btwcl=2,meant=1),9,IF(AND(btwcl=3,meant=1),11,IF(AND(btwcl=1,meant=2),6,IF(AND(btwcl=2,meant=2),9,IF(AND(btwcl=3,meant=2),11)))))) -> 9 | Y88: High | AA88: =IF(U88<V88,3,IF(U88>V88,1,IF(U88=V88,2))) -> 1 | AB88: =IF(AA88=1,LOOKUP(W88,AD98:AG98,$AD$102:$AG$102),LOOKUP(W88,AD99:AG99,$AD$102:$AG$102)) -> 15 | AC88: =IF(AB88=3,LOOKUP(W88,AH98:AK98,$AD$102:$AG$102),LOOKUP(W88,AH99:AK99,$AD$102:$AG$102)) -> 15 | AD88: 0 | AE88: 9 | AF88: 12 | AG88: 13 | AH88: 0 | AI88: 10 | AJ88: 13 | AK88: 14 | AL88: =E79 -> Recall of Digits Forward (Gsm)
C89: Phonological Processing (Ability Score Comparisons) | J89: Difference | L89: Critical Value | N89: Significance | U89: 44 | V89: 45 | W89: 1 | X89: =IF(AND(btwcl=1,meant=1),7,IF(AND(btwcl=2,meant=1),10,IF(AND(btwcl=3,meant=1),13,IF(AND(btwcl=1,meant=2),7,IF(AND(btwcl=2,meant=2),10,IF(AND(btwcl=3,meant=2),13)))))) -> 10 | Y89: Low | AA89: =IF(U89<V89,3,IF(U89>V89,1,2)) -> 3 | AB89: =IF(AA89=1,LOOKUP(W89,AD100:AG100,$AD$102:$AG$102),LOOKUP(W89,AD101:AG101,$AD$102:$AG$102)) -> >15 | AC89: =IF(AB89=3,LOOKUP(W89,AH100:AK100,$AD$102:$AG$102),LOOKUP(W89,AH101:AK101,$AD$102:$AG$102)) -> >15 | AD89: 0 | AE89: 10 | AF89: 13 | AG89: 14 | AH89: 0 | AI89: 11 | AJ89: 13 | AK89: 14
H90: ='Input page School-age'!C38&" versus "&'Input page School-age'!C40 -> Task 1 (Rhyming) versus Task 2 (Blending) | J90: =IF(AA92=1,"",W92) ->  | L90: =IF(J90="","",Z92) ->  | N90: =IF(AA92=1,"",IF(J90="","",IF(J90>=L90,"Yes","No"))) ->  | AD90: 0 | AE90: 9 | AF90: 12 | AG90: 13 | AH90: 0 | AI90: 9 | AJ90: 12 | AK90: 13 | AL90: =E80 -> Recognition of Pictures (Gv)
H91: ='Input page School-age'!C38&" versus "&'Input page School-age'!C42 -> Task 1 (Rhyming) versus Task 3 (Deletion) | U91: ab | V91: ab | W91: diff | X91: sem | Y91: sem2 | Z91: cv | AD91: 0 | AE91: 10 | AF91: 12 | AG91: 13 | AH91: 0 | AI91: 10 | AJ91: 12 | AK91: 13
H92: ='Input page School-age'!C38&" versus "&'Input page School-age'!C44 -> Task 1 (Rhyming) versus Task 4 (Phoneme Identification and Segmentation) | T92: 12 | U92: =IF('Input page School-age'!D38="","",'Input page School-age'!D38) ->  | V92: =IF('Input page School-age'!D40="","",'Input page School-age'!D40) ->  | W92: =IF(OR('Input page School-age'!D38="",'Input page School-age'!D40=""),"",ABS(U92-V92)) ->  | X92: =IF('Input page School-age'!F38="","",'Input page School-age'!F38) ->  | Y92: =IF('Input page School-age'!F40="","",'Input page School-age'!F40) ->  | Z92: =IF(OR(X92="",Y92=""),"",1.65*SQRT(X92^2+Y92^2)) ->  | AA92: =IF(U92="",1,IF(V92="",1, IF(Y92="",1,IF(Z92="",1,0)))) -> 1 | AD92: 0 | AE92: 8 | AF92: 10 | AG92: 11 | AH92: 0 | AI92: 8 | AJ92: 10 | AK92: 11 | AL92: =E81 -> Recall of Sequential Order (Gsm)
H93: ='Input page School-age'!C40&" versus "&'Input page School-age'!C42 -> Task 2 (Blending) versus Task 3 (Deletion) | T93: 13 | U93: =IF('Input page School-age'!D38="","",'Input page School-age'!D38) ->  | V93: =IF('Input page School-age'!D42="","",'Input page School-age'!D42) ->  | W93: =IF(OR('Input page School-age'!D38="",'Input page School-age'!D42=""),"",ABS(U93-V93)) ->  | X93: =IF('Input page School-age'!F38="","",'Input page School-age'!F38) ->  | Y93: =IF('Input page School-age'!F42="","",'Input page School-age'!F42) ->  | AA93: 1 | AD93: 0 | AE93: 8 | AF93: 10 | AG93: 11 | AH93: 0 | AI93: 9 | AJ93: 11 | AK93: 12
H94: ='Input page School-age'!C40&" versus "&'Input page School-age'!C44 -> Task 2 (Blending) versus Task 4 (Phoneme Identification and Segmentation) | T94: 14 | U94: =IF('Input page School-age'!D38="","",'Input page School-age'!D38) ->  | V94: =IF('Input page School-age'!D44="","",'Input page School-age'!D44) ->  | W94: =IF(OR('Input page School-age'!D38="",'Input page School-age'!D44=""),"",ABS(U94-V94)) ->  | X94: =IF('Input page School-age'!F38="","",'Input page School-age'!F38) ->  | Y94: =IF('Input page School-age'!F44="","",'Input page School-age'!F44) ->  | AA94: 1 | AD94: 0 | AE94: 11 | AF94: 14 | AG94: 15 | AH94: 0 | AI94: 11 | AJ94: 14 | AK94: 15 | AL94: =E82 -> Speed of Information Processing (Gs)
H95: ='Input page School-age'!C42&" versus "&'Input page School-age'!C44 -> Task 3 (Deletion) versus Task 4 (Phoneme Identification and Segmentation) | T95: 23 | U95: =IF('Input page School-age'!D40="","",'Input page School-age'!D40) ->  | V95: =IF('Input page School-age'!D42="","",'Input page School-age'!D42) ->  | W95: =IF(OR('Input page School-age'!D42="",'Input page School-age'!D40=""),"",ABS(U95-V95)) ->  | X95: =IF('Input page School-age'!F40="","",'Input page School-age'!F40) ->  | Y95: =IF('Input page School-age'!F42="","",'Input page School-age'!F42) ->  | AA95: 1 | AD95: 0 | AE95: 11 | AF95: 13 | AG95: 14 | AH95: 0 | AI95: 10 | AJ95: 13 | AK95: 14
T96: 24 | U96: =IF('Input page School-age'!D40="","",'Input page School-age'!D40) ->  | V96: =IF('Input page School-age'!D44="","",'Input page School-age'!D44) ->  | W96: =IF(OR('Input page School-age'!D44="",'Input page School-age'!D40=""),"",ABS(U96-V96)) ->  | X96: =IF('Input page School-age'!F40="","",'Input page School-age'!F40) ->  | Y96: =IF('Input page School-age'!F44="","",'Input page School-age'!F44) ->  | AA96: 1 | AD96: 0 | AE96: 7 | AF96: 9 | AG96: 10 | AH96: 0 | AI96: 7 | AJ96: 10 | AK96: 11 | AL96: =E83 -> Recall of Digits Backward (Gsm)
T97: 34 | U97: =IF('Input page School-age'!D42="","",'Input page School-age'!D42) ->  | V97: =IF('Input page School-age'!D44="","",'Input page School-age'!D44) ->  | W97: =IF(OR('Input page School-age'!D44="",'Input page School-age'!D42=""),"",ABS(U97-V97)) ->  | X97: =IF('Input page School-age'!F42="","",'Input page School-age'!F42) ->  | Y97: =IF('Input page School-age'!F44="","",'Input page School-age'!F44) ->  | AA97: 1 | AD97: 0 | AE97: 9 | AF97: 11 | AG97: 12 | AH97: 0 | AI97: 9 | AJ97: 12 | AK97: 13
C98: Rapid Naming (Ability Score Comparisons) | AD98: 0 | AE98: 8 | AF98: 10 | AG98: 11 | AH98: 0 | AI98: 9 | AJ98: 11 | AK98: 12 | AL98: =E84 -> Phonological Processing (Ga)
H99: ='Input page School-age'!C47&" versus "&'Input page School-age'!C49 -> Simple Naming versus Complex Naming | J99: =IF(AA101=1,"",W101) ->  | L99: =IF(J99="","",Z101) ->  | N99: =IF(AA101=1,"",IF(J99="","",IF(J99>=L99,"Yes","No"))) ->  | AD99: 0 | AE99: 7 | AF99: 9 | AG99: 10 | AH99: 0 | AI99: 8 | AJ99: 9 | AK99: 10
AD100: 0 | AE100: 10 | AF100: 12 | AG100: 13 | AH100: 0 | AI100: 10 | AJ100: 13 | AK100: 14 | AL100: =E85 -> Rapid Naming (Gs)
U101: =IF('Input page School-age'!D47="","",'Input page School-age'!D47) ->  | V101: =IF('Input page School-age'!D49="","",'Input page School-age'!D49) ->  | W101: =IF(OR('Input page School-age'!D47="",'Input page School-age'!D49=""),"",ABS(U101-V101)) ->  | X101: =IF('Input page School-age'!F47="","",'Input page School-age'!F47) ->  | Y101: =IF('Input page School-age'!F49="","",'Input page School-age'!F49) ->  | Z101: =IF(OR(X101="",Y101=""),"",1.65*SQRT(X101^2+Y101^2)) ->  | AA101: =IF(U101="",1,IF(V101="",1, IF(Y101="",1,IF(Z101="",1,0)))) -> 1 | AD101: 0 | AE101: 10 | AF101: 12 | AG101: 13 | AH101: 0 | AI101: 10 | AJ101: 13 | AK101: 14
AD102: >15 | AE102: 15 | AF102: 10 | AG102: <10 | AH102: >15 | AI102: 15 | AJ102: 10 | AK102: <10
U105: GCA | V105: =gca -> 80
U106: SNC | V106: =snc -> 58
U108: Verbal | V108: =verb -> 100
U109: Nonverbal Reasoning | V109: =nverb -> 74
U110: Spatial | V110: =sp -> 91
U111: Working Memory | V111: =wm -> 89
U112: Processing Speed | V112: =ps -> 
Z113: sum sub | AA113: n to use | AD113: sum r | AE113: sumc | AF113: n | AG113: mult | AH113: add | AI113: rel | AJ113: Sem | AK113: .05 Sem | AL113: See | AM113: .05 SEe
U114: =E70 -> Word Definition (Gc) | V114: 43 | W114: =IF(V114="",0,1) -> 1 | X114: f&thypotheses | Z114: =V115+V117+V119+V116 -> 147 | AA114: =IF(SUM(W115+W117+W119+W116)<4,"",Z114) -> 147 | AB114: =IF(AA114="","",AA114*AG114+AH114) -> 75.60477263 | AC114: =IF(Z114="","",100+(AI114*(AB114-100))) -> 76.68441075 | AD114: 3.53 | AE114: 3.31 | AF114: 4 | AG114: 0.4602873089 | AH114: 7.94253821 | AI114: 0.9557438795 | AJ114: 3.155570807 | AK114: 6.184918782 | AL114: 3.015917485 | AM114: 5.911198271
U115: Verbal Similarities (Gc) | V115: 40 | W115: 1 | X115: u of verb med | Z115: =V116+V119+V117 -> 107 | AA115: =IF(SUM(W116+W119+W117)<3,"",Z115) -> 107 | AB115: =IF(AA115="","",AA115*AG115+AH115) -> 74.8169809 | AC115: =IF(AA115="","",100+(AI115*(AB115-100))) -> 75.85347711 | AD115: 2.73 | AE115: 1.78 | AF115: 3 | AG115: 0.5856516071 | AH115: 12.15225894 | AI115: 0.9588414634 | AJ115: 3.043135017 | AK115: 5.964544633 | AL115: 2.917884033 | AM115: 5.719052705
U116: Matrices (Gf) | V116: 27 | W116: 1 | X116: Verbal comp | Z116: =V114+V125 -> 80 | AA116: =IF(SUM(W114+W125)<2,"",Z116) -> 80 | AB116: =IF(AA116="","",AA116*AG116+AH116) -> 82.62146661 | AC116: =IF(AA116="","",100+(AI116*(AB116-100))) -> 84.02108004 | AD116: 1.76 | AE116: 0.49 | AF116: 2 | AG116: 0.8689266695 | AH116: 13.10733305 | AI116: 0.9194630872 | AJ116: 4.256853929 | AK116: 8.3434337 | AL116: 3.914020055 | AM116: 7.671479308
U117: Sequential & Quantitative Reasoning (Gf) | V117: 41 | W117: 1 | X117: Verbal expression | Z117: =V114+V121+V123+V115+V125+V127+V128+V129 -> 366 | AA117: =IF(SUM(W114+W121+W123+W115+W125+W127+W128+W129)<8,"",Z117) -> 366 | AB117: =IF(AA117="","",AA117*AG117+AH117) -> 90.85486793 | AC117: =IF(AA117="","",100+(AI117*(AB117-100))) -> 91.16950753 | AD117: 6.93 | AE117: 11.55 | AF117: 8 | AG117: 0.2689744725 | AH117: -7.589789018 | AI117: 0.9655948553 | AJ117: 2.782293578 | AK117: 5.453295414 | AL117: 2.686568365 | AM117: 5.265673996
U118: Recall of Designs (Gv) | V118: 80 | W118: 1 | AD118: 2.43 | AE118: 1.12 | AF118: 3 | AG118: 0.6552780425 | AH118: 1.708293626 | AI118: 0.891221374 | AJ118: 4.94724073 | AK118: 9.696591831 | AL118: 4.409086681 | AM118: 8.641809895
U119: Pattern Construction (Gv) | V119: 39 | W119: 1 | X119: vis anal fig and des | Z119: =V119+V116+V118 -> 146 | AA119: =IF(SUM(W119+W116+W118)<3,"",Z119) -> 146 | AB119: =IF(AA119="","",AA119*AG119+AH119) -> 97.59034201 | AC119: =IF(AA119="","",100+(AI119*(AB119-100))) -> 97.71471146 | AD119: 2.68 | AE119: 1.6 | AF119: 3 | AG119: 0.6024144967 | AH119: 9.637825498 | AI119: 0.9483870968 | AJ119: 3.407771005 | AK119: 6.679231171 | AL119: 3.23188605 | AM119: 6.334496659
AD120: 1.83 | AE120: 0.55 | AF120: 2 | AG120: 0.8519427514 | AH120: 14.80572486 | AI120: 0.9451612903 | AJ120: 3.512649951 | AK120: 6.884793904 | AL120: 3.32002076 | AM120: 6.50724069
U121: =E77 -> Recall of Objects-Immediate (Glr) | V121: =F77 -> 59 | W121: =IF(V121="",0,1) -> 1 | X121: vis verb int | Z121: =V117+V121+V125+V116+V129 -> 208 | AA121: =IF(SUM(W117+W121+W125+W116+W129)<5,"",Z121) -> 208 | AB121: =IF(AA121="","",AA121*AG121+AH121) -> 82.47293115 | AC121: =IF(AA121="","",100+(AI121*(AB121-100))) -> 83.35471093 | AD121: 4.35 | AE121: 3.96 | AF121: 5 | AG121: 0.4173111631 | AH121: -4.327790764 | AI121: 0.9496904025 | AJ121: 3.364470158 | AK121: 6.594361509 | AL121: 3.195205018 | AM121: 6.262601836
U122: Recall of Objects-Delayed (Glr) | V122: 60 | W122: 1 | X122: stme gen | Z122: =V118+V123+V124+V121+V125+V127 -> 309 | AA122: =IF(SUM(W118+W123+W124+W121+W125+W127)<6,"",Z122) -> 309 | AB122: 103.1766904 | AC122: =IF(AA122="","",100+(AL122*(AB122-100))) -> 109.5300553 | AD122: 5.21 | AE122: 6.03 | AF122: 6 | AG122: 0.352965604 | AH122: -5.8896812 | AI122: 0.9562569214 | AJ122: 3.137226911 | AK122: 6.148964746 | AL122: 2.999994948 | AM122: 5.879990097
U123: Recall of Digits Forward (Gsm) | V123: 40 | W123: 1 | X123: aud stm | Z123: =V123+V125+V127 -> 127 | AA123: =IF(SUM(W123+W125+W127)<3,"",Z123) -> 127 | AB123: 86.3413192 | AC123: =IF(AA123="","",100+(AI123*(AB123-100))) -> 86.85512538 | AD123: 2.76 | AE123: 1.69 | AF123: 3 | AG123: 0.5938556868 | AH123: 10.92164697 | AI123: 0.9623824451 | AJ123: 2.909286827 | AK123: 5.702202181 | AL123: 2.79984657 | AM123: 5.487699278
U124: Recognition of Pictures (Gv) | V124: 43 | W124: 1 | X124: vis stm | Z124: =V121+V124 -> 102 | AA124: =IF(SUM(W121+W124)<2,"",Z124) -> 102 | AB124: 101.8123663 | AC124: 101.5345583 | AD124: 1.58 | AE124: 0.37 | AF124: 2 | AG124: 0.90618314 | AH124: 9.381686 | AI124: 0.8467153285 | AJ124: 5.872737956 | AK124: 11.51056639 | AL124: 4.972537247 | AM124: 9.746173004
U125: Recall of Sequential Order (Gsm) | V125: 37 | W125: 1 | X125: ver ltr | Z125: =V115+V114+V129 -> 127 | AA125: =IF(SUM(W114+W115+W129)<3,"",Z125) -> 127 | AB125: 85.1809811 | AC125: 86.71209745 | AD125: 2.44 | AE125: 1.21 | AF125: 3 | AG125: 0.6443051694 | AH125: 3.354224593 | AI125: 0.8966789668 | AJ125: 4.821538393 | AK125: 9.45021525 | AL125: 4.323372064 | AM125: 8.473809246
U126: Speed of Information Processing (Gs) | W126: 0 | X126: k q con | Z126: =V117+V126 ->  | AA126: =IF(SUM(W117+W126)<2,"",Z126) ->  | AD126: 1.83 | AE126: 0.3 | AF126: 2 | AG126: 0.9302605094 | AH126: 6.973949058 | AI126: 0.9346153846 | AJ126: 3.83556234 | AK126: 7.517702186 | AL126: 3.584775571 | AM126: 7.02616012
U127: Recall of Digits Backward (Gsm) | V127: 50 | W127: 1 | X127: hol inf proc | Z127: =V118+V119+V124 -> 162 | AA127: =IF(SUM(W118+W119+W124)<3,"",Z127) -> 162 | AB127: 107.5130548 | AC127: 106.9502302 | AD127: 2.57 | AE127: 1.37 | AF127: 3 | AG127: 0.6260879033 | AH127: 6.086814498 | AI127: 0.925087108 | AJ127: 4.105532937 | AK127: 8.046844557 | AL127: 3.797975592 | AM127: 7.444032159
U128: Phonological Processing (Ga) | V128: 53 | W128: 1 | X128: seq info proc | Z128: =V121+V125+V126+V123+V127+V129 ->  | AA128: =IF(SUM(W121+W125+W126+W123+W127+W129)<6,"",Z128) ->  | AD128: 5.4 | AE128: 5.69 | AF128: 6 | AG128: 0.3598043197 | AH128: -7.941295898 | AI128: 0.9654775604 | AJ128: 2.787032276 | AK128: 5.462583261 | AL128: 2.690817123 | AM128: 5.27400156
U129: Rapid Naming (Gs) | V129: 44 | W129: 1
C242: sum | D242: 20 | E242: =D242+1 -> 21 | F242: 22 | G242: 23 | H242: 24 | I242: 25 | J242: 26 | K242: 27 | L242: 28 | M242: 29 | N242: 30 | O242: 31 | P242: 32 | Q242: 33 | R242: 34 | S242: 35 | T242: 36 | U242: 37 | V242: 38 | W242: 39 | X242: 40 | Y242: 41 | Z242: 42 | AA242: 43 | AB242: 44 | AC242: 45 | AD242: 46 | AE242: 47 | AF242: 48 | AG242: 49 | AH242: 50 | AI242: 51 | AJ242: 52 | AK242: =AJ242+1 -> 53 | AL242: 54 | AM242: 55 | AN242: 56 | AO242: 57 | AP242: 58 | AQ242: 59 | AR242: 60 | AS242: 61 | AT242: 62 | AU242: 63 | AV242: 64 | AW242: 65 | AX242: 66 | AY242: 67 | AZ242: 68 | BA242: 69 | BB242: 70 | BC242: 71 | BD242: 72 | BE242: 73 | BF242: 74 | BG242: 75 | BH242: 76 | BI242: 77 | BJ242: 78 | BK242: 79 | BL242: 80 | BM242: 81 | BN242: 82 | BO242: 83 | BP242: 84 | BQ242: =BP242+1 -> 85 | BR242: 86 | BS242: 87 | BT242: 88 | BU242: 89 | BV242: 90 | BW242: 91 | BX242: 92 | BY242: 93 | BZ242: 94 | CA242: 95 | CB242: 96 | CC242: 97 | CD242: 98 | CE242: 99 | CF242: 100 | CG242: 101 | CH242: 102 | CI242: 103 | CJ242: 104 | CK242: 105 | CL242: 106 | CM242: 107 | CN242: 108 | CO242: 109 | CP242: 110 | CQ242: 111 | CR242: 112 | CS242: 113 | CT242: 114 | CU242: 115 | CV242: 116 | CW242: =CV242+1 -> 117 | CX242: 118 | CY242: 119 | CZ242: 120 | DA242: 121 | DB242: 122 | DC242: 123 | DD242: 124 | DE242: 125 | DF242: 126 | DG242: 127 | DH242: 128 | DI242: 129 | DJ242: 130 | DK242: 131 | DL242: 132 | DM242: 133 | DN242: 134 | DO242: 135 | DP242: 136 | DQ242: 137 | DR242: 138 | DS242: 139 | DT242: 140 | DU242: 141 | DV242: 142 | DW242: 143 | DX242: 144 | DY242: 145 | DZ242: 146 | EA242: 147 | EB242: 148 | EC242: =EB242+1 -> 149 | ED242: 150 | EE242: 151 | EF242: 152 | EG242: 153 | EH242: 154 | EI242: 155 | EJ242: 156 | EK242: 157 | EL242: 158 | EM242: 159 | EN242: 160 | EO242: 161 | EP242: 162 | EQ242: 163 | ER242: 164 | ES242: 165 | ET242: 166 | EU242: 167 | EV242: 168 | EW242: 169 | EX242: 170 | EY242: 171 | EZ242: 172 | FA242: 173 | FB242: 174 | FC242: 175 | FD242: 176 | FE242: 177 | FF242: 178 | FG242: 179 | FH242: 180
C243: wm | D243: 33 | E243: 34 | F243: 35 | G243: 36 | H243: 37 | I243: 38 | J243: 39 | K243: 40 | L243: 41 | M243: 42 | N243: 42 | O243: 43 . | P243: 44 | Q243: 45 | R243: 46 | S243: 47 | T243: 48 | U243: 49 | V243: 50 | W243: 50 | X243: 51 | Y243: 52 | Z243: 53 | AA243: 54 | AB243: 55 | AC243: 56 | AD243: 57 | AE243: 58 | AF243: 59 | AG243: 59 | AH243: 60 | AI243: 61 | AJ243: 62 | AK243: 63 | AL243: 64 | AM243: 65 | AN243: 66 | AO243: 66 | AP243: 67 | AQ243: 68 | AR243: 69 | AS243: 70 | AT243: 70 | AU243: 71 | AV243: 72 | AW243: 72 | AX243: 73 | AY243: 74 | AZ243: 74 | BA243: 75 | BB243: 76 | BC243: 76 | BD243: 77 | BE243: 78 | BF243: 78 | BG243: 79 | BH243: 80 | BI243: 81 | BJ243: 81 | BK243: 82 | BL243: 83 | BM243: 84 | BN243: 85 | BO243: 85 | BP243: 86 | BQ243: 87 | BR243: 88 | BS243: 89 | BT243: 89 | BU243: 90 | BV243: 91 | BW243: 92 | BX243: 93 | BY243: 94 | BZ243: 95 | CA243: 96 | CB243: 96 | CC243: 97 | CD243: 98 | CE243: 99 | CF243: 100 | CG243: 101 | CH243: 102 | CI243: 103 | CJ243: 104 | CK243: 105 | CL243: 105 | CM243: 106 | CN243: 107 | CO243: 108 | CP243: 109 | CQ243: 110 | CR243: 111 | CS243: 112 | CT243: 113 | CU243: 113 | CV243: 114 | CW243: 115 | CX243: 116 | CY243: 117 | CZ243: 118 | DA243: 119 | DB243: 119 | DC243: 120 | DD243: 121 | DE243: 122 | DF243: 123 | DG243: 124 | DH243: 124 | DI243: 125 | DJ243: 126 | DK243: 127 | DL243: 128 | DM243: 129 | DN243: 129 | DO243: 130 | DP243: 131 | DQ243: 132 | DR243: 133 | DS243: 134 | DT243: 134 | DU243: 135 | DV243: 136 | DW243: 137 | DX243: 138 | DY243: 139 | DZ243: 139 | EA243: 140 | EB243: 141 | EC243: 142 | ED243: 143 | EE243: 144 | EF243: 144 | EG243: 145 | EH243: 146 | EI243: 147 | EJ243: 149 | EK243: 148 | EL243: 149 | EM243: 150 | EN243: 151 | EO243: 152 | EP243: 152 | EQ243: 153 | ER243: 154 | ES243: 155 | ET243: 156 | EU243: 157 | EV243: 157 | EW243: 158 | EX243: 159 | EY243: 160 | EZ243: 161 | FA243: 162 | FB243: 163 | FC243: 164 | FD243: 165 | FE243: 166 | FF243: 167 | FG243: 168 | FH243: 169
C244: pr | D244: <0.1 | E244: <0.1 | F244: <0.1 | G244: <0.1 | H244: <0.1 | I244: <0.1 | J244: <0.1 | K244: <0.1 | L244: <0.1 | M244: <0.1 | N244: <0.1 | O244: <0.1 | P244: <0.1 | Q244: <0.1 | R244: <0.1 | S244: <0.1 | T244: <0.1 | U244: <0.1 | V244: <0.1 | W244: <0.1 | X244: 0.1 | Y244: 0.1 | Z244: 0.1 | AA244: 0.1 | AB244: 0.1 | AC244: 0.2 | AD244: 0.2 | AE244: 0.3 | AF244: 0.3 | AG244: 0.3 | AH244: 0.4 | AI244: 0.5 | AJ244: 1 | AK244: 1 | AL244: 1 | AM244: 1 | AN244: 1 | AO244: 1 | AP244: 1 | AQ244: 2 | AR244: 2 | AS244: 2 | AT244: 2 | AU244: 3 | AV244: 3 | AW244: 3 | AX244: 4 | AY244: 4 | AZ244: 4 | BA244: 5 | BB244: 5 | BC244: 5 | BD244: 6 | BE244: 7 | BF244: 7 | BG244: 8 | BH244: 9 | BI244: 10 | BJ244: 10 | BK244: 12 | BL244: 13 | BM244: 14 | BN244: 16 | BO244: 16 | BP244: 18 | BQ244: 19 | BR244: 21 | BS244: 23 | BT244: 23 | BU244: 25 | BV244: 27 | BW244: 30 | BX244: 32 | BY244: 34 | BZ244: 37 | CA244: 39 | CB244: 39 | CC244: 42 | CD244: 45 | CE244: 47 | CF244: 50 | CG244: 53 | CH244: 55 | CI244: 58 | CJ244: 61 | CK244: 63 | CL244: 63 | CM244: 66 | CN244: 68 | CO244: 70 | CP244: 73 | CQ244: 75 | CR244: 77 | CS244: 79 | CT244: 81 | CU244: 81 | CV244: 82 | CW244: 84 | CX244: 86 | CY244: 87 | CZ244: 88 | DA244: 90 | DB244: 90 | DC244: 91 | DD244: 92 | DE244: 93 | DF244: 94 | DG244: 95 | DH244: 95 | DI244: 95 | DJ244: 96 | DK244: 96 | DL244: 97 | DM244: 97 | DN244: 97 | DO244: 98 | DP244: 98 | DQ244: 98 | DR244: 99 | DS244: 99 | DT244: 99 | DU244: 99 | DV244: 99 | DW244: 99 | DX244: 99 | DY244: 99.5 | DZ244: 99.5 | EA244: 99.6 | EB244: 99.7 | EC244: 99.7 | ED244: 99.8 | EE244: 99.8 | EF244: 99.8 | EG244: 99.9 | EH244: 99.9 | EI244: 99.9 | EJ244: 99.9 | EK244: 99.9 | EL244: 99.9 | EM244: >99.9 | EN244: >99.9 | EO244: >99.9 | EP244: >99.9 | EQ244: >99.9 | ER244: >99.9 | ES244: >99.9 | ET244: >99.9 | EU244: >99.9 | EV244: >99.9 | EW244: >99.9 | EX244: >99.9 | EY244: >99.9 | EZ244: >99.9 | FA244: >99.9 | FB244: >99.9 | FC244: >99.9 | FD244: >99.9 | FE244: >99.9 | FF244: >99.9 | FG244: >99.9 | FH244: >99.9
C245: 90p | D245: 31-42 | E245: 32-43 | F245: 33-43 | G245: 34-44 | H245: 35-45 | I245: 36-46 | J245: 37-47 | K245: 38-48 | L245: 39-49 | M245: 40-50 | N245: 40-50 | O245: 41-51 | P245: 42-52 | Q245: 43-53 | R245: 43-54 | S245: 44-55 | T245: 45-56 | U245: 46-57 | V245: 47-58 | W245: 47-58 | X245: 48-59 | Y245: 49-60 | Z245: 50-61 | AA245: 51-62 | AB245: 52-62 | AC245: 53-63 | AD245: 54-64 | AE245: 55-65 | AF245: 56-66 | AG245: 56-66 | AH245: 57-67 | AI245: 58-68 | AJ245: 59-69 | AK245: 60-70 | AL245: 61-71 | AM245: 62-72 | AN245: 62-73 | AO245: 62-73 | AP245: 63-74 | AQ245: 64-75 | AR245: 65-76 | AS245: 66-77 | AT245: 66-77 | AU245: 67-78 | AV245: 68-79 | AW245: 68-79 | AX245: 69-80 | AY245: 70-81 | AZ245: 70-81 | BA245: 71-81 | BB245: 72-82 | BC245: 72-82 | BD245: 73-83 | BE245: 74-84 | BF245: 74-84 | BG245: 75-85 | BH245: 76-86 | BI245: 77-87 | BJ245: 77-87 | BK245: 78-88 | BL245: 79-89 | BM245: 80-90 | BN245: 81-91 | BO245: 81-91 | BP245: 81-92 | BQ245: 82-93 | BR245: 83-94 | BS245: 84-95 | BT245: 84-95 | BU245: 85-96 | BV245: 86-97 | BW245: 87-98 | BX245: 88-99 | BY245: 89-100 | BZ245: 90-100 | CA245: 91-101 | CB245: 91-101 | CC245: 92-102 | CD245: 93-103 | CE245: 94-104 | CF245: 95-105 | CG245: 96-106 | CH245: 97-107 | CI245: 98-108 | CJ245: 99-109 | CK245: 100-110 | CL245: 100-110 | CM245: 100-111 | CN245: 101-112 | CO245: 102-113 | CP245: 103-114 | CQ245: 104-115 | CR245: 105-116 | CS245: 106-117 | CT245: 107-118 | CU245: 107-118 | CV245: 108-119 | CW245: 109-119 | CX245: 110-120 | CY245: 111-121 | CZ245: 112-122 | DA245: 113-123 | DB245: 113-123 | DC245: 114-124 | DD245: 115-125 | DE245: 116-126 | DF245: 117-127 | DG245: 118-128 | DH245: 118-128 | DI245: 119-129 | DJ245: 119-130 | DK245: 120-131 | DL245: 121-132 | DM245: 122-133 | DN245: 122-133 | DO245: 123-134 | DP245: 124-135 | DQ245: 125-136 | DR245: 126-137 | DS245: 127-138 | DT245: 127-138 | DU245: 128-138 | DV245: 129-139 | DW245: 130-140 | DX245: 131-141 | DY245: 132-142 | DZ245: 132-142 | EA245: 133-143 | EB245: 134-144 | EC245: 135-145 | ED245: 136-146 | EE245: 137-147 | EF245: 137-147 | EG245: 138-148 | EH245: 138-149 | EI245: 139-150 | EJ245: 140-151 | EK245: 140-151 | EL245: 141-152 | EM245: 142-153 | EN245: 143-154 | EO245: 144-155 | EP245: 144-155 | EQ245: 145-156 | ER245: 146-157 | ES245: 147-157 | ET245: 148-158 | EU245: 149-159 | EV245: 149-159 | EW245: 150-160 | EX245: 151-161 | EY245: 152-162 | EZ245: 153-163 | FA245: 154-164 | FB245: 155-165 | FC245: 156-166 | FD245: 157-167 | FE245: 157-168 | FF245: 158-169 | FG245: 159-170 | FH245: 160-171
C246: 95p | D246: 30-43 | E246: 31-44 | F246: 32-44 | G246: 33-45 | H246: 34-46 | I246: 35-47 | J246: 36-48 | K246: 37-49 | L246: 38-50 | M246: 39-51 | N246: 39-51 | O246: 40-52 | P246: 41-53 | Q246: 42-54 | R246: 42-55 | S246: 43-56 | T246: 44-57 | U246: 45-58 | V246: 46-59 | W246: 46-59 | X246: 47-60 | Y246: 48-61 | Z246: 49-62 | AA246: 50-63 | AB246: 51-63 | AC246: 52-64 | AD246: 53-65 | AE246: 54-66 | AF246: 55-67 | AG246: 55-67 | AH246: 56-68 | AI246: 57-69 | AJ246: 58-70 | AK246: 59-71 | AL246: 60-72 | AM246: 61-73 | AN246: 61-74 | AO246: 61-74 | AP246: 62-75 | AQ246: 63-76 | AR246: 64-77 | AS246: 65-78 | AT246: 65-78 | AU246: 66-79 | AV246: 67-80 | AW246: 67-80 | AX246: 68-81 | AY246: 69-82 | AZ246: 69-82 | BA246: 70-82 | BB246: 71-83 | BC246: 71-83 | BD246: 72-84 | BE246: 73-85 | BF246: 73-85 | BG246: 74-86 | BH246: 75-87 | BI246: 76-88 | BJ246: 76-88 | BK246: 77-89 | BL246: 78-90 | BM246: 79-91 | BN246: 80-92 | BO246: 80-92 | BP246: 80-93 | BQ246: 81-94 | BR246: 82-95 | BS246: 83-96 | BT246: 83-96 | BU246: 84-97 | BV246: 85-98 | BW246: 86-99 | BX246: 87-100 | BY246: 88-101 | BZ246: 89-101 | CA246: 90-102 | CB246: 90-102 | CC246: 91-103 | CD246: 92-104 | CE246: 93-105 | CF246: 94-106 | CG246: 95-107 | CH246: 96-108 | CI246: 97-109 | CJ246: 98-110 | CK246: 99-111 | CL246: 99-111 | CM246: 99-112 | CN246: 100-113 | CO246: 101-114 | CP246: 102-115 | CQ246: 103-116 | CR246: 104-117 | CS246: 105-118 | CT246: 106-119 | CU246: 106-119 | CV246: 107-120 | CW246: 108-120 | CX246: 109-121 | CY246: 110-122 | CZ246: 111-123 | DA246: 112-124 | DB246: 112-124 | DC246: 113-125 | DD246: 114-126 | DE246: 115-127 | DF246: 116-128 | DG246: 117-129 | DH246: 117-129 | DI246: 118-130 | DJ246: 118-131 | DK246: 119-132 | DL246: 120-133 | DM246: 121-134 | DN246: 121-134 | DO246: 122-135 | DP246: 123-136 | DQ246: 124-137 | DR246: 125-138 | DS246: 126-139 | DT246: 126-139 | DU246: 127-139 | DV246: 128-140 | DW246: 129-141 | DX246: 130-142 | DY246: 131-143 | DZ246: 131-143 | EA246: 132-144 | EB246: 133-145 | EC246: 134-146 | ED246: 135-147 | EE246: 136-148 | EF246: 136-148 | EG246: 137-149 | EH246: 137-150 | EI246: 138-151 | EJ246: 139-152 | EK246: 139-152 | EL246: 140-153 | EM246: 141-154 | EN246: 142-155 | EO246: 143-156 | EP246: 143-156 | EQ246: 144-157 | ER246: 145-158 | ES246: 146-158 | ET246: 147-159 | EU246: 148-160 | EV246: 148-160 | EW246: 149-161 | EX246: 150-162 | EY246: 151-163 | EZ246: 152-164 | FA246: 153-165 | FB246: 154-166 | FC246: 155-167 | FD246: 156-168 | FE246: 156-169 | FF246: 157-170 | FG246: 158-171 | FH246: 159-172
C254: psss | D254: 20 | E254: =D254+1 -> 21 | F254: 22 | G254: 23 | H254: 24 | I254: 25 | J254: 26 | K254: 27 | L254: 28 | M254: 29 | N254: 30 | O254: 31 | P254: 32 | Q254: 33 | R254: 34 | S254: 35 | T254: 36 | U254: 37 | V254: 38 | W254: 39 | X254: 40 | Y254: 41 | Z254: 42 | AA254: 43 | AB254: 44 | AC254: 45 | AD254: 46 | AE254: 47 | AF254: 48 | AG254: 49 | AH254: 50 | AI254: 51 | AJ254: 52 | AK254: =AJ254+1 -> 53 | AL254: 54 | AM254: 55 | AN254: 56 | AO254: 57 | AP254: 58 | AQ254: 59 | AR254: 60 | AS254: 61 | AT254: 62 | AU254: 63 | AV254: 64 | AW254: 65 | AX254: 66 | AY254: 67 | AZ254: 68 | BA254: 69 | BB254: 70 | BC254: 71 | BD254: 72 | BE254: 73 | BF254: 74 | BG254: 75 | BH254: 76 | BI254: 77 | BJ254: 78 | BK254: 79 | BL254: 80 | BM254: 81 | BN254: 82 | BO254: 83 | BP254: 84 | BQ254: =BP254+1 -> 85 | BR254: 86 | BS254: 87 | BT254: 88 | BU254: 89 | BV254: 90 | BW254: 91 | BX254: 92 | BY254: 93 | BZ254: 94 | CA254: 95 | CB254: 96 | CC254: 97 | CD254: 98 | CE254: 99 | CF254: 100 | CG254: 101 | CH254: 102 | CI254: 103 | CJ254: 104 | CK254: 105 | CL254: 106 | CM254: 107 | CN254: 108 | CO254: 109 | CP254: 110 | CQ254: 111 | CR254: 112 | CS254: 113 | CT254: 114 | CU254: 115 | CV254: 116 | CW254: =CV254+1 -> 117 | CX254: 118 | CY254: 119 | CZ254: 120 | DA254: 121 | DB254: 122 | DC254: 123 | DD254: 124 | DE254: 125 | DF254: 126 | DG254: 127 | DH254: 128 | DI254: 129 | DJ254: 130 | DK254: 131 | DL254: 132 | DM254: 133 | DN254: 134 | DO254: 135 | DP254: 136 | DQ254: 137 | DR254: 138 | DS254: 139 | DT254: 140 | DU254: 141 | DV254: 142 | DW254: 143 | DX254: 144 | DY254: 145 | DZ254: 146 | EA254: 147 | EB254: 148 | EC254: =EB254+1 -> 149 | ED254: 150 | EE254: 151 | EF254: 152 | EG254: 153 | EH254: 154 | EI254: 155 | EJ254: 156 | EK254: 157 | EL254: 158 | EM254: 159 | EN254: 160 | EO254: 161 | EP254: 162 | EQ254: 163 | ER254: 164 | ES254: 165 | ET254: 166 | EU254: 167 | EV254: 168 | EW254: 169 | EX254: 170 | EY254: 171 | EZ254: 172 | FA254: 173 | FB254: 174 | FC254: 175
D255: 30 | E255: 30 | F255: 30 | G255: 30 | H255: 30 | I255: 31 | J255: 32 | K255: 33 | L255: 34 | M255: 35 | N255: 36 | O255: 37 | P255: 38 | Q255: 39 | R255: 39 | S255: 40 | T255: 41 | U255: 42 | V255: 43 | W255: 44 | X255: 45 | Y255: 46 | Z255: 47 | AA255: 48 | AB255: 49 | AC255: 49 | AD255: 50 | AE255: 51 | AF255: 52 | AG255: 53 | AH255: 54 | AI255: 55 | AJ255: 56 | AK255: 57 | AL255: 58 | AM255: 59 | AN255: 59 | AO255: 60 | AP255: 61 | AQ255: 62 | AR255: 63 | AS255: 64 | AT255: 65 | AU255: 66 | AV255: 67 | AW255: 68 | AX255: 69 | AY255: 69 | AZ255: 70 | BA255: 71 | BB255: 72 | BC255: 73 | BD255: 74 | BE255: 75 | BF255: 76 | BG255: 77 | BH255: 78 | BI255: 79 | BJ255: 79 | BK255: 80 | BL255: 81 | BM255: 82 | BN255: 83 | BO255: 84 | BP255: 85 | BQ255: 86 | BR255: 87 | BS255: 88 | BT255: 89 | BU255: 89 | BV255: 90 | BW255: 91 | BX255: 92 | BY255: 93 | BZ255: 94 | CA255: 95 | CB255: 96 | CC255: 97 | CD255: 98 | CE255: 99 | CF255: 100 | CG255: 101 | CH255: 102 | CI255: 103 | CJ255: 104 | CK255: 105 | CL255: 106 | CM255: 107 | CN255: 108 | CO255: 109 | CP255: 109 | CQ255: 110 | CR255: 111 | CS255: 112 | CT255: 113 | CU255: 114 | CV255: 115 | CW255: 116 | CX255: 117 | CY255: 118 | CZ255: 119 | DA255: 119 | DB255: 120 | DC255: 121 | DD255: 122 | DE255: 123 | DF255: 124 | DG255: 125 | DH255: 126 | DI255: 127 | DJ255: 128 | DK255: 129 | DL255: 129 | DM255: 130 | DN255: 131 | DO255: 132 | DP255: 133 | DQ255: 134 | DR255: 135 | DS255: 136 | DT255: 137 | DU255: 138 | DV255: 139 | DW255: 139 | DX255: 140 | DY255: 141 | DZ255: 142 | EA255: 143 | EB255: 144 | EC255: 145 | ED255: 146 | EE255: 147 | EF255: 148 | EG255: 149 | EH255: 149 | EI255: 150 | EJ255: 151 | EK255: 152 | EL255: 153 | EM255: 154 | EN255: 155 | EO255: 156 | EP255: 157 | EQ255: 158 | ER255: 159 | ES255: 160 | ET255: 161 | EU255: 162 | EV255: 163 | EW255: 164 | EX255: 165 | EY255: 166 | EZ255: 167 | FA255: 168 | FB255: 169 | FC255: 170
C257: gcasum | D257: 60 | E257: 63 | F257: 64 | G257: 67 | H257: 69 | I257: 70 | J257: 73 | K257: 75 | L257: 77 | M257: 80 | N257: 81 | O257: 83 | P257: 86 | Q257: 87 | R257: 90 | S257: 93 | T257: 94 | U257: 98 | V257: 99 | W257: 101 | X257: 105 | Y257: 108 | Z257: 111 | AA257: 112 | AB257: 115 | AC257: 117 | AD257: 119 | AE257: 123 | AF257: 127 | AG257: 129 | AH257: 131 | AI257: 134 | AJ257: 135 | AK257: 138 | AL257: 141 | AM257: 145 | AN257: 147 | AO257: 148 | AP257: 152 | AQ257: 153 | AR257: 155 | AS257: 158 | AT257: 159 | AU257: 161 | AV257: 165 | AW257: 169 | AX257: 171 | AY257: 174 | AZ257: 177 | BA257: 181 | BB257: 183 | BC257: 184 | BD257: 188 | BE257: 189 | BF257: 191 | BG257: 195 | BH257: 199 | BI257: 201 | BJ257: 202 | BK257: 206 | BL257: 207 | BM257: 210 | BN257: 213 | BO257: 214 | BP257: 218 | BQ257: 219 | BR257: 222 | BS257: 225 | BT257: 228 | BU257: 231 | BV257: 232 | BW257: 236 | BX257: 237 | BY257: 240 | BZ257: 243 | CA257: 244 | CB257: 246 | CC257: 249 | CD257: 252 | CE257: 255 | CF257: 258 | CG257: 261 | CH257: 265 | CI257: 267 | CJ257: 268 | CK257: 272 | CL257: 273 | CM257: 274 | CN257: 277 | CO257: 279 | CP257: 280 | CQ257: 283 | CR257: 285 | CS257: 286 | CT257: 289 | CU257: 291 | CV257: 294 | CW257: 297 | CX257: 300 | CY257: 303 | CZ257: 307 | DA257: 309 | DB257: 310 | DC257: 313 | DD257: 315 | DE257: 317 | DF257: 320 | DG257: 321 | DH257: 323 | DI257: 326 | DJ257: 327 | DK257: 328 | DL257: 331 | DM257: 333 | DN257: 334 | DO257: 337 | DP257: 339 | DQ257: 340 | DR257: 343 | DS257: 345 | DT257: 346 | DU257: 349 | DV257: 351 | DW257: 352 | DX257: 355 | DY257: 357 | DZ257: 358 | EA257: 361 | EB257: 363 | EC257: 366 | ED257: 369 | EE257: 371 | EF257: 373 | EG257: 375 | EH257: 376 | EI257: 378 | EJ257: 381 | EK257: 384 | EL257: 386 | EM257: 387 | EN257: 389 | EO257: 392 | EP257: 393 | EQ257: 395 | ER257: 398 | ES257: 399 | ET257: 401 | EU257: 404 | EV257: 405 | EW257: 408 | EX257: 411 | EY257: 414 | EZ257: 417 | FA257: 420 | FB257: 423 | FC257: 426 | FD257: 429 | FE257: 432 | FF257: 435 | FG257: 437 | FH257: 440 | FI257: 441 | FJ257: 443 | FK257: 446 | FL257: 447 | FM257: 448 | FN257: 451 | FO257: 453 | FP257: 454 | FQ257: 457 | FR257: 459 | FS257: 460 | FT257: 463 | FU257: 465 | FV257: 466 | FW257: 469 | FX257: 471 | FY257: 472 | FZ257: 475 | GA257: 477 | GB257: 478 | GC257: 481 | GD257: 483 | GE257: 484 | GF257: 487 | GG257: 489 | GH257: 490 | GI257: 493 | GJ257: 495 | GK257: 496 | GL257: 499 | GM257: 501 | GN257: 502 | GO257: 505 | GP257: 507 | GQ257: 513 | GR257: 519 | GS257: 525 | GT257: 531 | GU257: 537
D258: 30 | E258: 30 | F258: 31 | G258: 32 | H258: 32 | I258: 33 | J258: 34 | K258: 34 | L258: 35 | M258: 36 | N258: 36 | O258: 37 | P258: 38 | Q258: 38 | R258: 39 | S258: 39 | T258: 40 | U258: 41 | V258: 41 | W258: 42 | X258: 43 | Y258: 44 | Z258: 44 | AA258: 45 | AB258: 46 | AC258: 46 | AD258: 47 | AE258: 48 | AF258: 49 | AG258: 49 | AH258: 50 | AI258: 51 | AJ258: 51 | AK258: 52 | AL258: 53 | AM258: 54 | AN258: 54 | AO258: 55 | AP258: 56 | AQ258: 56 | AR258: 57 | AS258: 58 | AT258: 58 | AU258: 59 | AV258: 60 | AW258: 61 | AX258: 61 | AY258: 62 | AZ258: 63 | BA258: 64 | BB258: 64 | BC258: 65 | BD258: 66 | BE258: 66 | BF258: 67 | BG258: 68 | BH258: 69 | BI258: 69 | BJ258: 70 | BK258: 71 | BL258: 71 | BM258: 72 | BN258: 72 | BO258: 73 | BP258: 74 | BQ258: 74 | BR258: 75 | BS258: 76 | BT258: 77 | BU258: 77 | BV258: 78 | BW258: 79 | BX258: 79 | BY258: 80 | BZ258: 80 | CA258: 81 | CB258: 82 | CC258: 83 | CD258: 84 | CE258: 85 | CF258: 86 | CG258: 87 | CH258: 88 | CI258: 88 | CJ258: 89 | CK258: 90 | CL258: 90 | CM258: 91 | CN258: 92 | CO258: 92 | CP258: 93 | CQ258: 94 | CR258: 94 | CS258: 95 | CT258: 96 | CU258: 97 | CV258: 98 | CW258: 99 | CX258: 100 | CY258: 101 | CZ258: 102 | DA258: 102 | DB258: 103 | DC258: 104 | DD258: 104 | DE258: 105 | DF258: 106 | DG258: 106 | DH258: 107 | DI258: 108 | DJ258: 108 | DK258: 109 | DL258: 110 | DM258: 110 | DN258: 111 | DO258: 112 | DP258: 112 | DQ258: 113 | DR258: 114 | DS258: 114 | DT258: 115 | DU258: 116 | DV258: 116 | DW258: 117 | DX258: 118 | DY258: 118 | DZ258: 119 | EA258: 120 | EB258: 121 | EC258: 122 | ED258: 123 | EE258: 124 | EF258: 125 | EG258: 125 | EH258: 126 | EI258: 127 | EJ258: 128 | EK258: 129 | EL258: 130 | EM258: 130 | EN258: 131 | EO258: 132 | EP258: 132 | EQ258: 133 | ER258: 134 | ES258: 134 | ET258: 135 | EU258: 136 | EV258: 136 | EW258: 137 | EX258: 138 | EY258: 139 | EZ258: 140 | FA258: 141 | FB258: 142 | FC258: 143 | FD258: 144 | FE258: 145 | FF258: 146 | FG258: 147 | FH258: 148 | FI258: 148 | FJ258: 149 | FK258: 150 | FL258: 150 | FM258: 151 | FN258: 152 | FO258: 152 | FP258: 153 | FQ258: 154 | FR258: 154 | FS258: 155 | FT258: 156 | FU258: 156 | FV258: 157 | FW258: 158 | FX258: 158 | FY258: 159 | FZ258: 160 | GA258: 160 | GB258: 161 | GC258: 162 | GD258: 162 | GE258: 163 | GF258: 164 | GG258: 164 | GH258: 165 | GI258: 166 | GJ258: 166 | GK258: 167 | GL258: 168 | GM258: 168 | GN258: 169 | GO258: 170 | GP258: 170 | GQ258: 170 | GR258: 170 | GS258: 170 | GT258: 170 | GU258: 170
C260: t | D260: 10 | E260: =D260+1 -> 11 | F260: 12 | G260: 13 | H260: 14 | I260: 15 | J260: 16 | K260: 17 | L260: 18 | M260: 19 | N260: 20 | O260: 21 | P260: 22 | Q260: 23 | R260: 24 | S260: 25 | T260: 26 | U260: 27 | V260: 28 | W260: 29 | X260: 30 | Y260: 31 | Z260: 32 | AA260: 33 | AB260: 34 | AC260: 35 | AD260: 36 | AE260: 37 | AF260: 38 | AG260: 39 | AH260: 40 | AI260: 41 | AJ260: 42 | AK260: =AJ260+1 -> 43 | AL260: 44 | AM260: 45 | AN260: 46 | AO260: 47 | AP260: 48 | AQ260: 49 | AR260: 50 | AS260: 51 | AT260: 52 | AU260: 53 | AV260: 54 | AW260: 55 | AX260: 56 | AY260: 57 | AZ260: 58 | BA260: 59 | BB260: 60 | BC260: 61 | BD260: 62 | BE260: 63 | BF260: 64 | BG260: 65 | BH260: 66 | BI260: 67 | BJ260: 68 | BK260: 69 | BL260: 70 | BM260: 71 | BN260: 72 | BO260: 73 | BP260: 74 | BQ260: =BP260+1 -> 75 | BR260: 76 | BS260: 77 | BT260: 78 | BU260: 79 | BV260: 80 | BW260: 81 | BX260: 82 | BY260: 83 | BZ260: 84 | CA260: 85 | CB260: 86 | CC260: 87 | CD260: 88 | CE260: 89 | CF260: 90
C261: PR | D261: <.1 | E261: <.1 | F261: <.1 | G261: <.1 | H261: <.1 | I261: <.1 | J261: <.1 | K261: <.1 | L261: <.1 | M261: 0.1 | N261: 0.1 | O261: 0.2 | P261: 0.3 | Q261: 0.4 | R261: 0.5 | S261: 1 | T261: 1 | U261: 1 | V261: 1 | W261: 2 | X261: 2 | Y261: 3 | Z261: 4 | AA261: 4 | AB261: 5 | AC261: 7 | AD261: 8 | AE261: 10 | AF261: 12 | AG261: 14 | AH261: 16 | AI261: 18 | AJ261: 21 | AK261: 24 | AL261: 27 | AM261: 31 | AN261: 34 | AO261: 38 | AP261: 42 | AQ261: 46 | AR261: 50 | AS261: 54 | AT261: 58 | AU261: 62 | AV261: 66 | AW261: 69 | AX261: 73 | AY261: 76 | AZ261: 79 | BA261: 82 | BB261: 84 | BC261: 86 | BD261: 88 | BE261: 90 | BF261: 92 | BG261: 93 | BH261: 95 | BI261: 96 | BJ261: 96 | BK261: 97 | BL261: 98 | BM261: 98 | BN261: 99 | BO261: 99 | BP261: 99 | BQ261: 99 | BR261: 99.5 | BS261: 99.7 | BT261: 99.7 | BU261: 99.8 | BV261: 99.9 | BW261: 99.9 | BX261: 99.9 | BY261: >99.9 | BZ261: >99.9 | CA261: >99.9 | CB261: >99.9 | CC261: >99.9 | CD261: >99.9 | CE261: >99.9 | CF261: >99.9
C263: Vts | D263: 20 | E263: =D263+1 -> 21 | F263: 22 | G263: 23 | H263: 24 | I263: 25 | J263: 26 | K263: 27 | L263: 28 | M263: 29 | N263: 30 | O263: 31 | P263: 32 | Q263: 33 | R263: 34 | S263: 35 | T263: 36 | U263: 37 | V263: 38 | W263: 39 | X263: 40 | Y263: 41 | Z263: 42 | AA263: 43 | AB263: 44 | AC263: 45 | AD263: 46 | AE263: 47 | AF263: 48 | AG263: 49 | AH263: 50 | AI263: 51 | AJ263: 52 | AK263: =AJ263+1 -> 53 | AL263: 54 | AM263: 55 | AN263: 56 | AO263: 57 | AP263: 58 | AQ263: 59 | AR263: 60 | AS263: 61 | AT263: 62 | AU263: 63 | AV263: 64 | AW263: 65 | AX263: 66 | AY263: 67 | AZ263: 68 | BA263: 69 | BB263: 70 | BC263: 71 | BD263: 72 | BE263: 73 | BF263: 74 | BG263: 75 | BH263: 76 | BI263: 77 | BJ263: 78 | BK263: 79 | BL263: 80 | BM263: 81 | BN263: 82 | BO263: 83 | BP263: 84 | BQ263: =BP263+1 -> 85 | BR263: 86 | BS263: 87 | BT263: 88 | BU263: 89 | BV263: 90 | BW263: 91 | BX263: 92 | BY263: 93 | BZ263: 94 | CA263: 95 | CB263: 96 | CC263: 97 | CD263: 98 | CE263: 99 | CF263: 100 | CG263: 101 | CH263: =CG263+1 -> 102 | CI263: 103 | CJ263: 104 | CK263: 105 | CL263: 106 | CM263: 107 | CN263: 108 | CO263: 109 | CP263: 110 | CQ263: 111 | CR263: 112 | CS263: 113 | CT263: 114 | CU263: 115 | CV263: 116 | CW263: 117 | CX263: 118 | CY263: 119 | CZ263: 120 | DA263: 121 | DB263: 122 | DC263: 123 | DD263: 124 | DE263: 125 | DF263: 126 | DG263: 127 | DH263: 128 | DI263: 129 | DJ263: 130 | DK263: 131 | DL263: 132 | DM263: 133 | DN263: =DM263+1 -> 134 | DO263: 135 | DP263: 136 | DQ263: 137 | DR263: 138 | DS263: 139 | DT263: 140 | DU263: 141 | DV263: 142 | DW263: 143 | DX263: 144 | DY263: 145 | DZ263: 146 | EA263: 147 | EB263: 148 | EC263: 149 | ED263: 150 | EE263: 151 | EF263: 152 | EG263: 153 | EH263: 154 | EI263: 155 | EJ263: 156 | EK263: 157 | EL263: 158 | EM263: 159 | EN263: 160 | EO263: 161 | EP263: 162 | EQ263: 163 | ER263: 164 | ES263: 165 | ET263: =ES263+1 -> 166 | EU263: 167 | EV263: 168 | EW263: 169 | EX263: 170 | EY263: 171 | EZ263: 172 | FA263: 173 | FB263: 174 | FC263: 175 | FD263: 176 | FE263: 177 | FF263: 178 | FG263: 179 | FH263: 180
C264: Vcls | D264: 31 | E264: 32 | F264: 33 | G264: 34 | H264: 35 | I264: 36 | J264: 37 | K264: 38 | L264: 39 | M264: 40 | N264: 41 | O264: 42 | P264: 43 | Q264: 44 | R264: 45 | S264: 45 | T264: 46 | U264: 47 | V264: 48 | W264: 49 | X264: 50 | Y264: 51 | Z264: 51 | AA264: 52 | AB264: 53 | AC264: 54 | AD264: 55 | AE264: 56 | AF264: 57 | AG264: 57 | AH264: 58 | AI264: 59 | AJ264: 60 | AK264: 61 | AL264: 62 | AM264: 63 | AN264: 63 | AO264: 64 | AP264: 65 | AQ264: 66 | AR264: 67 | AS264: 68 | AT264: 69 | AU264: 70 | AV264: 70 | AW264: 71 | AX264: 72 | AY264: 73 | AZ264: 73 | BA264: 74 | BB264: 75 | BC264: 76 | BD264: 77 | BE264: 77 | BF264: 78 | BG264: 79 | BH264: 80 | BI264: 80 | BJ264: 81 | BK264: 82 | BL264: 83 | BM264: 83 | BN264: 84 | BO264: 85 | BP264: 86 | BQ264: 86 | BR264: 87 | BS264: 88 | BT264: 89 | BU264: 89 | BV264: 90 | BW264: 91 | BX264: 92 | BY264: 93 | BZ264: 94 | CA264: 95 | CB264: 96 | CC264: 97 | CD264: 98 | CE264: 99 | CF264: 100 | CG264: 101 | CH264: 102 | CI264: 103 | CJ264: 103 | CK264: 104 | CL264: 105 | CM264: 106 | CN264: 106 | CO264: 107 | CP264: 108 | CQ264: 109 | CR264: 109 | CS264: 110 | CT264: 111 | CU264: 112 | CV264: 113 | CW264: 114 | CX264: 115 | CY264: 116 | CZ264: 117 | DA264: 118 | DB264: 119 | DC264: 102 | DD264: 120 | DE264: 121 | DF264: 122 | DG264: 123 | DH264: 123 | DI264: 124 | DJ264: 125 | DK264: 126 | DL264: 127 | DM264: 128 | DN264: 128 | DO264: 129 | DP264: 130 | DQ264: 131 | DR264: 132 | DS264: 133 | DT264: 133 | DU264: 134 | DV264: 135 | DW264: 136 | DX264: 137 | DY264: 138 | DZ264: 138 | EA264: 139 | EB264: 140 | EC264: 141 | ED264: 142 | EE264: 143 | EF264: 143 | EG264: 144 | EH264: 145 | EI264: 146 | EJ264: 147 | EK264: 148 | EL264: 148 | EM264: 149 | EN264: 150 | EO264: 151 | EP264: 152 | EQ264: 153 | ER264: 153 | ES264: 154 | ET264: 155 | EU264: 156 | EV264: 157 | EW264: 158 | EX264: 159 | EY264: 160 | EZ264: 161 | FA264: 162 | FB264: 163 | FC264: 164 | FD264: 165 | FE264: 166 | FF264: 167 | FG264: 168 | FH264: 169
C265: NVts | D265: 20 | E265: =D265+1 -> 21 | F265: 22 | G265: 23 | H265: 24 | I265: 25 | J265: 26 | K265: 27 | L265: 28 | M265: 29 | N265: 30 | O265: 31 | P265: 32 | Q265: 33 | R265: 34 | S265: 35 | T265: 36 | U265: 37 | V265: 38 | W265: 39 | X265: 40 | Y265: 41 | Z265: 42 | AA265: 43 | AB265: 44 | AC265: 45 | AD265: 46 | AE265: 47 | AF265: 48 | AG265: 49 | AH265: 50 | AI265: 51 | AJ265: 52 | AK265: =AJ265+1 -> 53 | AL265: 54 | AM265: 55 | AN265: 56 | AO265: 57 | AP265: 58 | AQ265: 59 | AR265: 60 | AS265: 61 | AT265: 62 | AU265: 63 | AV265: 64 | AW265: 65 | AX265: 66 | AY265: 67 | AZ265: 68 | BA265: 69 | BB265: 70 | BC265: 71 | BD265: 72 | BE265: 73 | BF265: 74 | BG265: 75 | BH265: 76 | BI265: 77 | BJ265: 78 | BK265: 79 | BL265: 80 | BM265: 81 | BN265: 82 | BO265: 83 | BP265: 84 | BQ265: =BP265+1 -> 85 | BR265: 86 | BS265: 87 | BT265: 88 | BU265: 89 | BV265: 90 | BW265: 91 | BX265: 92 | BY265: 93 | BZ265: 94 | CA265: 95 | CB265: 96 | CC265: 97 | CD265: 98 | CE265: 99 | CF265: =CE265+1 -> 100 | CG265: 101 | CH265: 102 | CI265: 103 | CJ265: 104 | CK265: 105 | CL265: 106 | CM265: 107 | CN265: 108 | CO265: 109 | CP265: 110 | CQ265: 111 | CR265: 112 | CS265: 113 | CT265: 114 | CU265: 115 | CV265: 116 | CW265: 117 | CX265: 118 | CY265: 119 | CZ265: 120 | DA265: 121 | DB265: 122 | DC265: 123 | DD265: 124 | DE265: 125 | DF265: 126 | DG265: 127 | DH265: 128 | DI265: 129 | DJ265: 130 | DK265: 131 | DL265: =DK265+1 -> 132 | DM265: 133 | DN265: 134 | DO265: 135 | DP265: 136 | DQ265: 137 | DR265: 138 | DS265: 139 | DT265: 140 | DU265: 141 | DV265: 142 | DW265: 143 | DX265: 144 | DY265: 145 | DZ265: 146 | EA265: 147 | EB265: 148 | EC265: 149 | ED265: 150 | EE265: 151 | EF265: 152 | EG265: 153 | EH265: 154 | EI265: 155 | EJ265: 156 | EK265: 157 | EL265: 158 | EM265: 159 | EN265: 160 | EO265: 161 | EP265: 162 | EQ265: 163 | ER265: =EQ265+1 -> 164 | ES265: 165 | ET265: 166 | EU265: 167 | EV265: 168 | EW265: 169 | EX265: 170 | EY265: 171 | EZ265: 172 | FA265: 173 | FB265: 174 | FC265: 175 | FD265: 176 | FE265: 177 | FF265: 178 | FG265: 179 | FH265: 180
C266: NVcls | D266: 31 | E266: 32 | F266: 33 | G266: 34 | H266: 35 | I266: 36 | J266: 37 | K266: 38 | L266: 39 | M266: 40 | N266: 41 | O266: 42 | P266: 43 | Q266: 44 | R266: 45 | S266: 46 | T266: 47 | U266: 48 | V266: 49 | W266: 49 | X266: 50 | Y266: 51 | Z266: 52 | AA266: 53 | AB266: 54 | AC266: 54 | AD266: 55 | AE266: 56 | AF266: 57 | AG266: 58 | AH266: 59 | AI266: 59 | AJ266: 60 | AK266: 61 | AL266: 62 | AM266: 63 | AN266: 64 | AO266: 64 | AP266: 65 | AQ266: 66 | AR266: 67 | AS266: 68 | AT266: 69 | AU266: 69 | AV266: 70 | AW266: 71 | AX266: 72 | AY266: 73 | AZ266: 74 | BA266: 74 | BB266: 75 | BC266: 76 | BD266: 77 | BE266: 78 | BF266: 79 | BG266: 79 | BH266: 80 | BI266: 81 | BJ266: 82 | BK266: 83 | BL266: 84 | BM266: 84 | BN266: 85 | BO266: 86 | BP266: 87 | BQ266: 88 | BR266: 89 | BS266: 89 | BT266: 90 | BU266: 91 | BV266: 92 | BW266: 93 | BX266: 93 | BY266: 94 | BZ266: 95 | CA266: 96 | CB266: 97 | CC266: 97 | CD266: 98 | CE266: 99 | CF266: 100 | CG266: 100 | CH266: 101 | CI266: 102 | CJ266: 103 | CK266: 103 | CL266: 104 | CM266: 105 | CN266: 106 | CO266: 107 | CP266: 107 | CQ266: 108 | CR266: 109 | CS266: 110 | CT266: 111 | CU266: 111 | CV266: 112 | CW266: 113 | CX266: 114 | CY266: 115 | CZ266: 115 | DA266: 116 | DB266: 117 | DC266: 118 | DD266: 119 | DE266: 120 | DF266: 120 | DG266: 121 | DH266: 122 | DI266: 123 | DJ266: 123 | DK266: 124 | DL266: 125 | DM266: 126 | DN266: 127 | DO266: 127 | DP266: 128 | DQ266: 129 | DR266: 130 | DS266: 131 | DT266: 131 | DU266: 132 | DV266: 133 | DW266: 134 | DX266: 135 | DY266: 135 | DZ266: 136 | EA266: 137 | EB266: 138 | EC266: 139 | ED266: 139 | EE266: 140 | EF266: 141 | EG266: 142 | EH266: 143 | EI266: 143 | EJ266: 144 | EK266: 145 | EL266: 146 | EM266: 147 | EN266: 147 | EO266: 148 | EP266: 149 | EQ266: 150 | ER266: 151 | ES266: 151 | ET266: 152 | EU266: 153 | EV266: 154 | EW266: 155 | EX266: 156 | EY266: 157 | EZ266: 158 | FA266: 159 | FB266: 160 | FC266: 161 | FD266: 162 | FE266: 163 | FF266: 164 | FG266: 165 | FH266: 166
C267: Spts | D267: 20 | E267: =D267+1 -> 21 | F267: 22 | G267: 23 | H267: 24 | I267: 25 | J267: 26 | K267: 27 | L267: 28 | M267: 29 | N267: 30 | O267: 31 | P267: 32 | Q267: 33 | R267: 34 | S267: 35 | T267: 36 | U267: 37 | V267: 38 | W267: 39 | X267: 40 | Y267: 41 | Z267: 42 | AA267: 43 | AB267: 44 | AC267: 45 | AD267: 46 | AE267: 47 | AF267: 48 | AG267: 49 | AH267: 50 | AI267: 51 | AJ267: 52 | AK267: =AJ267+1 -> 53 | AL267: 54 | AM267: 55 | AN267: 56 | AO267: 57 | AP267: 58 | AQ267: 59 | AR267: 60 | AS267: 61 | AT267: 62 | AU267: 63 | AV267: 64 | AW267: 65 | AX267: 66 | AY267: 67 | AZ267: 68 | BA267: 69 | BB267: 70 | BC267: 71 | BD267: 72 | BE267: 73 | BF267: 74 | BG267: 75 | BH267: 76 | BI267: 77 | BJ267: 78 | BK267: 79 | BL267: 80 | BM267: 81 | BN267: 82 | BO267: 83 | BP267: 84 | BQ267: =BP267+1 -> 85 | BR267: 86 | BS267: 87 | BT267: 88 | BU267: 89 | BV267: 90 | BW267: 91 | BX267: 92 | BY267: 93 | BZ267: 94 | CA267: 95 | CB267: 96 | CC267: 97 | CD267: 98 | CE267: 99 | CF267: 100 | CG267: 101 | CH267: 102 | CI267: =CH267+1 -> 103 | CJ267: 104 | CK267: 105 | CL267: 106 | CM267: 107 | CN267: 108 | CO267: 109 | CP267: 110 | CQ267: 111 | CR267: 112 | CS267: 113 | CT267: 114 | CU267: 115 | CV267: 116 | CW267: 117 | CX267: 118 | CY267: 119 | CZ267: 120 | DA267: 121 | DB267: 122 | DC267: 123 | DD267: 124 | DE267: 125 | DF267: 126 | DG267: 127 | DH267: 128 | DI267: 129 | DJ267: 130 | DK267: 131 | DL267: 132 | DM267: 133 | DN267: 134 | DO267: =DN267+1 -> 135 | DP267: 136 | DQ267: 137 | DR267: 138 | DS267: 139 | DT267: 140 | DU267: 141 | DV267: 142 | DW267: 143 | DX267: 144 | DY267: 145 | DZ267: 146 | EA267: 147 | EB267: 148 | EC267: 149 | ED267: 150 | EE267: 151 | EF267: 152 | EG267: 153 | EH267: 154 | EI267: 155 | EJ267: 156 | EK267: 157 | EL267: 158 | EM267: 159 | EN267: 160 | EO267: 161 | EP267: 162 | EQ267: 163 | ER267: 164 | ES267: 165 | ET267: 166 | EU267: =ET267+1 -> 167 | EV267: 168 | EW267: 169 | EX267: 170 | EY267: 171 | EZ267: 172 | FA267: 173 | FB267: 174 | FC267: 175 | FD267: 176 | FE267: 177 | FF267: 178 | FG267: 179 | FH267: 180
C268: Spcls | D268: 32 | E268: 33 | F268: 34 | G268: 35 | H268: 36 | I268: 37 | J268: 38 | K268: 38 | L268: 39 | M268: 40 | N268: 41 | O268: 42 | P268: 43 | Q268: 43 | R268: 44 | S268: 45 | T268: 46 | U268: 47 | V268: 48 | W268: 48 | X268: 49 | Y268: 50 | Z268: 51 | AA268: 52 | AB268: 53 | AC268: 53 | AD268: 54 | AE268: 55 | AF268: 56 | AG268: 57 | AH268: 58 | AI268: 58 | AJ268: 59 | AK268: 60 | AL268: 61 | AM268: 62 | AN268: 63 | AO268: 63 | AP268: 64 | AQ268: 65 | AR268: 66 | AS268: 67 | AT268: 68 | AU268: 68 | AV268: 69 | AW268: 70 | AX268: 71 | AY268: 72 | AZ268: 73 | BA268: 73 | BB268: 74 | BC268: 75 | BD268: 76 | BE268: 77 | BF268: 78 | BG268: 78 | BH268: 79 | BI268: 80 | BJ268: 81 | BK268: 82 | BL268: 83 | BM268: 83 | BN268: 84 | BO268: 85 | BP268: 86 | BQ268: 87 | BR268: 88 | BS268: 88 | BT268: 89 | BU268: 90 | BV268: 91 | BW268: 92 | BX268: 93 | BY268: 94 | BZ268: 94 | CA268: 95 | CB268: 96 | CC268: 97 | CD268: 98 | CE268: 99 | CF268: 100 | CG268: 100 | CH268: 101 | CI268: 102 | CJ268: 103 | CK268: 104 | CL268: 105 | CM268: 106 | CN268: 107 | CO268: 107 | CP268: 108 | CQ268: 109 | CR268: 110 | CS268: 111 | CT268: 112 | CU268: 113 | CV268: 114 | CW268: 115 | CX268: 115 | CY268: 116 | CZ268: 117 | DA268: 118 | DB268: 119 | DC268: 120 | DD268: 120 | DE268: 121 | DF268: 122 | DG268: 123 | DH268: 124 | DI268: 125 | DJ268: 126 | DK268: 126 | DL268: 127 | DM268: 128 | DN268: 129 | DO268: 130 | DP268: 131 | DQ268: 132 | DR268: 132 | DS268: 133 | DT268: 134 | DU268: 135 | DV268: 136 | DW268: 137 | DX268: 138 | DY268: 139 | DZ268: 139 | EA268: 140 | EB268: 141 | EC268: 142 | ED268: 143 | EE268: 144 | EF268: 145 | EG268: 146 | EH268: 146 | EI268: 147 | EJ268: 148 | EK268: 149 | EL268: 150 | EM268: 151 | EN268: 152 | EO268: 153 | EP268: 154 | EQ268: 154 | ER268: 155 | ES268: 156 | ET268: 157 | EU268: 158 | EV268: 159 | EW268: 160 | EX268: 161 | EY268: 162 | EZ268: 163 | FA268: 164 | FB268: 165 | FC268: 166 | FD268: 167 | FE268: 168 | FF268: 169 | FG268: 170 | FH268: 170
C269: SumT | D269: 120 | E269: 123 | F269: 126 | G269: 130 | H269: 133 | I269: 137 | J269: 140 | K269: 144 | L269: 147 | M269: 150 | N269: 154 | O269: 157 | P269: 161 | Q269: 164 | R269: 168 | S269: 171 | T269: 174 | U269: 178 | V269: 181 | W269: 185 | X269: 188 | Y269: 192 | Z269: 195 | AA269: 199 | AB269: 202 | AC269: 206 | AD269: 209 | AE269: 213 | AF269: 217 | AG269: 220 | AH269: 224 | AI269: 227 | AJ269: 230 | AK269: 233 | AL269: 237 | AM269: 240 | AN269: 244 | AO269: 247 | AP269: 250 | AQ269: 253 | AR269: 256 | AS269: 259 | AT269: 262 | AU269: 265 | AV269: 268 | AW269: 271 | AX269: 274 | AY269: 277 | AZ269: 280 | BA269: 283 | BB269: 286 | BC269: 289 | BD269: 292 | BE269: 295 | BF269: 298 | BG269: 300 | BH269: 303 | BI269: 307 | BJ269: 310 | BK269: 313 | BL269: 316 | BM269: 320 | BN269: 323 | BO269: 326 | BP269: 329 | BQ269: 332 | BR269: 335 | BS269: 338 | BT269: 340 | BU269: 343 | BV269: 346 | BW269: 348 | BX269: 351 | BY269: 354 | BZ269: 356 | CA269: 359 | CB269: 362 | CC269: 365 | CD269: 368 | CE269: 371 | CF269: 374 | CG269: 377 | CH269: 379 | CI269: 382 | CJ269: 385 | CK269: 388 | CL269: 390 | CM269: 393 | CN269: 396 | CO269: 398 | CP269: 401 | CQ269: 404 | CR269: 406 | CS269: 409 | CT269: 412 | CU269: 415 | CV269: 417 | CW269: 420 | CX269: 423 | CY269: 425 | CZ269: 428 | DA269: 431 | DB269: 433 | DC269: 436 | DD269: 439 | DE269: 442 | DF269: 444 | DG269: 447 | DH269: 450 | DI269: 453 | DJ269: 455 | DK269: 458 | DL269: 461 | DM269: 463 | DN269: 466 | DO269: 469 | DP269: 471 | DQ269: 474 | DR269: 477 | DS269: 480
C270: GCA | D270: 45 | E270: 46 | F270: 47 | G270: 48 | H270: 49 | I270: 50 | J270: 51 | K270: 52 | L270: 53 | M270: 54 | N270: 55 | O270: 56 | P270: 57 | Q270: 58 | R270: 59 | S270: 60 | T270: 61 | U270: 62 | V270: 63 | W270: 64 | X270: 65 | Y270: 66 | Z270: 67 | AA270: 68 | AB270: 69 | AC270: 70 | AD270: 71 | AE270: 72 | AF270: 73 | AG270: 74 | AH270: 75 | AI270: 76 | AJ270: 77 | AK270: 78 | AL270: 79 | AM270: 80 | AN270: 81 | AO270: 82 | AP270: 83 | AQ270: 84 | AR270: 85 | AS270: 86 | AT270: 87 | AU270: 88 | AV270: 89 | AW270: 90 | AX270: 91 | AY270: 92 | AZ270: 93 | BA270: 94 | BB270: 95 | BC270: 96 | BD270: 97 | BE270: 98 | BF270: 99 | BG270: 100 | BH270: 101 | BI270: 102 | BJ270: 103 | BK270: 104 | BL270: 105 | BM270: 106 | BN270: 107 | BO270: 108 | BP270: 109 | BQ270: 110 | BR270: 111 | BS270: 112 | BT270: 113 | BU270: 114 | BV270: 115 | BW270: 116 | BX270: 117 | BY270: 118 | BZ270: 119 | CA270: 120 | CB270: 121 | CC270: 122 | CD270: 123 | CE270: 124 | CF270: 125 | CG270: 126 | CH270: 127 | CI270: 128 | CJ270: 129 | CK270: 130 | CL270: 131 | CM270: 132 | CN270: 133 | CO270: 134 | CP270: 135 | CQ270: 136 | CR270: 137 | CS270: 138 | CT270: 139 | CU270: 140 | CV270: 141 | CW270: 142 | CX270: 143 | CY270: 144 | CZ270: 145 | DA270: 146 | DB270: 147 | DC270: 148 | DD270: 149 | DE270: 150 | DF270: 151 | DG270: 152 | DH270: 153 | DI270: 154 | DJ270: 155 | DK270: 156 | DL270: 157 | DM270: 158 | DN270: 159 | DO270: 160 | DP270: 161 | DQ270: 162 | DR270: 163 | DS270: 164
C271: SS | D271: 40 | E271: 62 | F271: 68 | G271: 71 | H271: 73 | I271: 75 | J271: 77 | K271: 78 | L271: 79 | M271: 80 | N271: 81 | O271: 82 | P271: 83 | Q271: 84 | R271: 85 | S271: 86 | T271: 87 | U271: 88 | V271: 89 | W271: 90 | X271: 91 | Y271: 92 | Z271: 93 | AA271: 94 | AB271: 95 | AC271: 96 | AD271: 97 | AE271: 98 | AF271: 99 | AG271: 100 | AH271: 101 | AI271: 102 | AJ271: 103 | AK271: 104 | AL271: 105 | AM271: 106 | AN271: 107 | AO271: 108 | AP271: 109 | AQ271: 110 | AR271: 111 | AS271: 112 | AT271: 113 | AU271: 114 | AV271: 115 | AW271: 116 | AX271: 117 | AY271: 118 | AZ271: 119 | BA271: 120 | BB271: 121 | BC271: 122 | BD271: 123 | BE271: 124 | BF271: 126 | BG271: 129 | BH271: 131 | BI271: 133
C272: %ile | D272: 1 | E272: 1 | F272: 2 | G272: 3 | H272: 4 | I272: 5 | J272: 6 | K272: 7 | L272: 8 | M272: 9 | N272: 10 | O272: 12 | P272: 13 | Q272: 14 | R272: 16 | S272: 18 | T272: 19 | U272: 21 | V272: 23 | W272: 25 | X272: 27 | Y272: 30 | Z272: 32 | AA272: 34 | AB272: 37 | AC272: 39 | AD272: 42 | AE272: 45 | AF272: 47 | AG272: 50 | AH272: 53 | AI272: 55 | AJ272: 58 | AK272: 61 | AL272: 63 | AM272: 66 | AN272: 68 | AO272: 70 | AP272: 73 | AQ272: 75 | AR272: 77 | AS272: 79 | AT272: 81 | AU272: 82 | AV272: 84 | AW272: 86 | AX272: 87 | AY272: 88 | AZ272: 90 | BA272: 91 | BB272: 92 | BC272: 93 | BD272: 94 | BE272: 95 | BF272: 96 | BG272: 97 | BH272: 98 | BI272: 99
C273: verbal | D273: 51 | E273: 57 | F273: 65 | G273: 72 | H273: 81 | I273: 88 | J273: 97 | K273: 104 | L273: 113 | M273: 120 | N273: 129 | O273: 136 | P273: 144
C274: - | D274: 7 | E274: 8 | F274: 8 | G274: 9 | H274: 9 | I274: 10 | J274: 10 | K274: 11 | L274: 11 | M274: 12 | N274: 12 | O274: 13 | P274: 13
C275: + | D275: 13 | E275: 13 | F275: 12 | G275: 12 | H275: 11 | I275: 11 | J275: 10 | K275: 10 | L275: 9 | M275: 9 | N275: 8 | O275: 8 | P275: 7
C276: Nverbal | D276: 52 | E276: 58 | F276: 65 | G276: 77 | H276: 85 | I276: 97 | J276: 104 | K276: 116 | L276: 124 | M276: 136 | N276: 143
C277: - | D277: 7 | E277: 7 | F277: 8 | G277: 8 | H277: 9 | I277: 9 | J277: 10 | K277: 10 | L277: 11 | M277: 11 | N277: 12
C278: + | D278: 12 | E278: 11 | F278: 11 | G278: 10 | H278: 10 | I278: 9 | J278: 9 | K278: 8 | L278: 8 | M278: 7 | N278: 7
C279: Spatial | D279: 50 | E279: 53 | F279: 54 | G279: 76 | H279: 78 | I279: 100 | J279: 101 | K279: 123 | L279: 125 | M279: 147 | N279: 148
C280: - | D280: 6 | E280: 6 | F280: 7 | G280: 7 | H280: 8 | I280: 8 | J280: 9 | K280: 9 | L280: 10 | M280: 10 | N280: 11
C281: + | D281: 11 | E281: 10 | F281: 10 | G281: 9 | H281: 9 | I281: 8 | J281: 8 | K281: 7 | L281: 7 | M281: 6 | N281: 6
C282: GCA | D282: 44 | E282: 57 | F282: 62 | G282: 98 | H282: 103 | I282: 139 | J282: 144
C283: - | D283: 5 | E283: 5 | F283: 6 | G283: 6 | H283: 7 | I283: 7 | J283: 8
C284: + | D284: 8 | E284: 7 | F284: 7 | G284: 6 | H284: 6 | I284: 5 | J284: 5
D285: 1 | E285: 70 | F285: 80 | G285: 90 | H285: 110 | I285: 120 | J285: 130
D286: Very Low | E286: Low | F286: Below average | G286: Average | H286: Above average | I286: High | J286: Very High
C287: GCAV | D287: 0 | E287: 11 | F287: 13 | G287: 15 | H287: 18 | I287: 20 | J287: 23
C288: GCAnv | D288: 0 | E288: 9 | F288: 11 | G288: 13 | H288: 16 | I288: 19 | J288: 22
C289: GCAsp | D289: 0 | E289: 10 | F289: 13 | G289: 15 | H289: 17 | I289: 21 | J289: 23
C290: Vnv | D290: 0 | E290: 15 | F290: 19 | G290: 22 | H290: 26 | I290: 32 | J290: 26
C291: Vsp | D291: 0 | E291: 17 | F291: 21 | G291: 24 | H291: 28 | I291: 34 | J291: 37
C292: Nvsp | D292: 0 | E292: 14 | F292: 19 | G292: 21 | H292: 25 | I292: 30 | J292: 34
C293: WS | D293: 0 | E293: 9 | F293: 11 | G293: 13 | H293: 16 | I293: 19 | J293: 22
C294: MSEQ | D294: 0 | E294: 10 | F294: 13 | G294: 15 | H294: 18 | I294: 20 | J294: 23
C295: RDPC | D295: 0 | E295: 10 | F295: 13 | G295: 15 | H295: 18 | I295: 23 | J295: 25
C296: % | D296: 50 | E296: 25 | F296: 10 | G296: 10 | H296: 5 | I296: 2 | J296: 1
C297: SNvCompT | D297: 80 | E297: 82 | F297: 85 | G297: 87 | H297: 90 | I297: 92 | J297: 95 | K297: 97 | L297: 99 | M297: 102 | N297: 104 | O297: 107 | P297: 109
C298: SNvComp | D298: 48 | E298: =D298+1 -> 49 | F298: 50 | G298: 51 | H298: 52 | I298: 53 | J298: 54 | K298: 55 | L298: 56 | M298: 57 | N298: 58 | O298: 59 | P298: 60
C299: snvcomp | D299: 48 | E299: 49 | F299: 83 | G299: 84 | H299: 117 | I299: 118 | J299: 152 | K299: 153 | L299: 159 | M299: 160
C300: - | D300: 6 | E300: 6 | F300: 7 | G300: 7 | H300: 8 | I300: 8 | J300: 9 | K300: 9 | L300: 9 | M300: 11
C301: + | D301: 9 | E301: 8 | F301: 8 | G301: 7 | H301: 7 | I301: 6 | J301: 6 | K301: 5 | L301: 5 | M301: 5 | Q301: 111 | R301: 114 | S301: 116 | T301: 119 | U301: 121 | V301: 124 | W301: 126 | X301: 129 | Y301: 131 | Z301: 134 | AA301: 136 | AB301: 139 | AC301: 142 | AD301: 144 | AE301: 147 | AF301: 149 | AG301: 151 | AH301: 153 | AI301: 156 | AJ301: 158 | AK301: 160 | AL301: 162 | AM301: 165 | AN301: 167 | AO301: 169 | AP301: 171 | AQ301: 173 | AR301: 175 | AS301: 177 | AT301: 179 | AU301: 181 | AV301: 183 | AW301: 186 | AX301: 188 | AY301: 190 | AZ301: 192 | BA301: 194 | BB301: 196 | BC301: 198 | BD301: 200 | BE301: 203 | BF301: 205 | BG301: 207 | BH301: 209 | BI301: 212 | BJ301: 214 | BK301: 216 | BL301: 218 | BM301: 221 | BN301: 223 | BO301: 225 | BP301: 227 | BQ301: 229 | BR301: 231 | BS301: 233 | BT301: 235 | BU301: 237 | BV301: 239 | BW301: 241 | BX301: 243 | BY301: 245 | BZ301: 247 | CA301: 249 | CB301: 252 | CC301: 254 | CD301: 256 | CE301: 258 | CF301: 260 | CG301: 262 | CH301: 264 | CI301: 265 | CJ301: 267 | CK301: 269 | CL301: 271 | CM301: 272 | CN301: 274 | CO301: 276 | CP301: 278 | CQ301: 280 | CR301: 281 | CS301: 283 | CT301: 285 | CU301: 286 | CV301: 288 | CW301: 290 | CX301: 292 | CY301: 293 | CZ301: 295 | DA301: 297 | DB301: 299 | DC301: 300 | DD301: 302 | DE301: 304 | DF301: 306 | DG301: 307 | DH301: 309 | DI301: 311 | DJ301: 312 | DK301: 314 | DL301: 316 | DM301: 318 | DN301: 319
Q302: =P298+1 -> 61 | R302: =Q302+1 -> 62 | S302: 63 | T302: 64 | U302: 65 | V302: 66 | W302: 67 | X302: 68 | Y302: 69 | Z302: 70 | AA302: 71 | AB302: 72 | AC302: 73 | AD302: 74 | AE302: 75 | AF302: 76 | AG302: 77 | AH302: 78 | AI302: 79 | AJ302: 80 | AK302: 81 | AL302: 82 | AM302: 83 | AN302: 84 | AO302: 85 | AP302: 86 | AQ302: 87 | AR302: 88 | AS302: 89 | AT302: 90 | AU302: 91 | AV302: 92 | AW302: 93 | AX302: =AW302+1 -> 94 | AY302: 95 | AZ302: 96 | BA302: 97 | BB302: 98 | BC302: 99 | BD302: 100 | BE302: 101 | BF302: 102 | BG302: 103 | BH302: 104 | BI302: 105 | BJ302: 106 | BK302: 107 | BL302: 108 | BM302: 109 | BN302: 110 | BO302: 111 | BP302: 112 | BQ302: 113 | BR302: 114 | BS302: 115 | BT302: 116 | BU302: 117 | BV302: 118 | BW302: 119 | BX302: 120 | BY302: 121 | BZ302: 122 | CA302: 123 | CB302: 124 | CC302: 125 | CD302: =CC302+1 -> 126 | CE302: 127 | CF302: 128 | CG302: 129 | CH302: 130 | CI302: 131 | CJ302: 132 | CK302: 133 | CL302: 134 | CM302: 135 | CN302: 136 | CO302: 137 | CP302: 138 | CQ302: 139 | CR302: 140 | CS302: 141 | CT302: 142 | CU302: 143 | CV302: 144 | CW302: 145 | CX302: 146 | CY302: 147 | CZ302: 148 | DA302: 149 | DB302: 150 | DC302: 151 | DD302: 152 | DE302: 153 | DF302: 154 | DG302: 155 | DH302: 156 | DI302: 157 | DJ302: 158 | DK302: 159 | DL302: 160 | DM302: 161 | DN302: 162
C303: iq | D303: m | E303: mllf | F303: nvoc | G303: nvtable | H303: pc | I303: psim | J303: rd | K303: rdig | L303: ro | M303: rod | N303: rop | O303: s | P303: sip
C305: Recall Designs | D305: Word Def. | E305: Pattern Con. | F305: Matrices | G305: Simil. | H305: Seq. & Quant. | I305: Recall Digits | J305: Recall Objects | K305: Recall Objects delayed | L305: Speed of Info. Process. | M305: Verbal Cluster: | N305: Nonverbal Reasoning: | O305: Spatial Cluster: | P305: GCA:
C306: 42 | D306: 37 | E306: 50 | F306: 38 | G306: 49 | H306: 47 | I306: 42 | J306: 59 | K306: 52 | M306: =C25 -> 0 | N306: =C26 -> 0 | O306: =C27 -> 0 | P306: =C28 -> RObI
A307: gca | Q307: snvc | R307: Sptable | S307: sq | T307: vc | U307: vtable | V307: wd
A309: Age | Q309: v% | R309: NV% | S309: S% | T309: GCA% | U309: vi | V309: nvi | W309: si | X309: gcai
A310: =H4 -> 0 | Q310: =E25 -> 0 | R310: =E26 -> 0 | S310: =E27 -> 0 | T310: =E28 -> 0 | U310: =G25 -> 0 | V310: =G26 -> 0 | W310: =G27 -> 0 | X310: =G28 -> 0

Sheet Shared Abilities SA
A1: Note: Shared Ability Standard Scores (SS) are computed only when all the subtests in the shared ability are administered. The Shared Ability subtest designation of High, Low, +, - , and = are given only if there is an appropriate mean score available.
A3: School-Age Shared Ability | C3: Shared Ability Subtests (includes out-of-level subtests)
A6: Formulation and Testing of Hypotheses | C6: VS | D6: SQR | E6: PC | F6: Mat
A7: ="SS = "&J73 -> SS = 76 | C7: =J56 -> - | D7: =J58 -> - | E7: =J60 -> Low | F7: =J57 -> Low
A9: Use of Verbal Mediation to Solve Nonverbal Problems | C9: SQR | D9: PC | E9: Mat
A10: ="SS = "&J74 -> SS = 75 | C10: =J58 -> - | D10: =J60 -> Low | E10: =J57 -> Low
A12: Verbal Comprehension: | C12: WD | D12: RSO
A13: ="SS = "&J75 -> SS = 83 | C13: =J55 -> - | D13: =J66 -> Low
A15: Verbal Expression: | C15: WD | D15: VS | E15: ROi | F15: RDf | G15: RSO | H15: RDb | I15: PhP | J15: RN
A16: ="SS = "&J76 -> SS = 91 | C16: =J55 -> - | D16: =J56 -> - | E16: =J62 -> High | F16: =J64 -> - | G16: =J66 -> Low | H16: =J68 -> + | I16: =J69 -> + | J16: =J70 -> -
A18: Visual Analysis of Figures or Designs: | C18: PCon | D18: Mat | E18: RDes
A19: ="SS = "&J78 -> SS = 98 | C19: =J60 -> Low | D19: =J57 -> Low | E19: =J59 -> High
A21: Visual Verbal Integration: | C21: SQR | D21: Mat | E21: ROi | F21: RSO
A22: ="SS = "&J80 -> SS = 82 | C22: =J58 -> - | D22: =J57 -> Low | E22: =J62 -> High | F22: =J66 -> Low
A24: Short-term Memory (general): | C24: RDes | D24: ROi | E24: RDf | F24: RPic | G24: RSO | H24: RDb
A25: ="SS = "&J80 -> SS = 82 | C25: =J59 -> High | D25: =J62 -> High | E25: =J64 -> - | F25: =J65 -> - | G25: =J66 -> Low | H25: =J68 -> +
A27: Auditory Short-term Memory: | C27: RDf | D27: RSO | E27: RDb
A28: ="SS = "&J82 -> SS = 86 | C28: =J64 -> - | D28: =J66 -> Low | E28: =J68 -> +
A30: Visual Short-term Memory: | C30: ROi | D30: RPic
A31: ="SS = "&J83 -> SS = 102 | C31: =J62 -> High | D31: =J65 -> -
A33: Verbal Long-term Information Retrieval: | C33: WD | D33: VS | E33: RN
A34: ="SS = "&J84 -> SS = 85 | C34: =J55 -> - | D34: =J56 -> - | E34: =J70 -> -
A36: Knowledge of Quantitative Concepts: | C36: SQR | D36: SIP
A37: ="SS = "&J85 -> SS = | C37: =J58 -> - | D37: =J67 -> 
A39: Visual/holistic Information Processing: | C39: PC | D39: RDes | E39: RPic
A40: ="SS = "&J86 -> SS = 108 | C40: =J60 -> Low | D40: =J59 -> High | E40: =J65 -> -
A42: Sequential Information Processing: | C42: ROi | D42: RDf | E42: RSO | F42: SIP | G42: RDb | H42: RN
A43: ="SS = "&J87 -> SS = | C43: =J62 -> High | D43: =J64 -> - | E43: =J66 -> Low | F43: =J67 ->  | G43: =J68 -> + | H43: =J70 -> -
C53: =IF('Record form School-age'!F68="","",'Record form School-age'!F68) -> 45
J54: choice
A55: ='Record form School-age'!E70 -> Word Definition (Gc) | C55: ='Record form School-age'!F70 -> 43 | D55: ='Record form School-age'!G70 -> 0 | E55: ='Record form School-age'!H70 -> 7 | F55: ='Record form School-age'!I70 -> 0 | G55: ='Record form School-age'!J70 -> -2 | H55: =IF(OR(samtyn="",C55=""),"",IF(G55<0,"-",IF(G55>0,"+","="))) -> - | I55: ='Record form School-age'!L70 ->  | J55: =IF(I55="High",I55,IF(I55="Low",I55,H55)) -> - | K55: ='Record form School-age'!N70 -> 
A56: ='Record form School-age'!E71 -> Verbal Similarities (Gc) | C56: ='Record form School-age'!F71 -> 40 | D56: ='Record form School-age'!G71 -> 0 | E56: ='Record form School-age'!H71 -> 8 | F56: ='Record form School-age'!I71 -> 0 | G56: ='Record form School-age'!J71 -> -5 | H56: - | I56: ='Record form School-age'!L71 ->  | J56: - | K56: ='Record form School-age'!N71 -> 
A57: ='Record form School-age'!E72 -> Matrices (Gf) | C57: ='Record form School-age'!F72 -> 27 | D57: ='Record form School-age'!G72 -> 0 | E57: ='Record form School-age'!H72 -> 7 | F57: ='Record form School-age'!I72 -> 0 | G57: ='Record form School-age'!J72 -> -18 | H57: - | I57: ='Record form School-age'!L72 -> Low | J57: Low | K57: ='Record form School-age'!N72 -> <10%
A58: ='Record form School-age'!E73 -> Sequential & Quantitative Reasoning (Gf) | C58: ='Record form School-age'!F73 -> 41 | D58: ='Record form School-age'!G73 -> 0 | E58: ='Record form School-age'!H73 -> 6 | F58: ='Record form School-age'!I73 -> 0 | G58: ='Record form School-age'!J73 -> -4 | H58: - | I58: ='Record form School-age'!L73 ->  | J58: - | K58: ='Record form School-age'!N73 -> 
A59: ='Record form School-age'!E74 -> Recall of Designs (Gv) | C59: ='Record form School-age'!F74 -> 80 | D59: ='Record form School-age'!G74 -> 0 | E59: ='Record form School-age'!H74 -> 7 | F59: ='Record form School-age'!I74 -> 0 | G59: ='Record form School-age'!J74 -> 35 | H59: + | I59: ='Record form School-age'!L74 -> High | J59: High | K59: ='Record form School-age'!N74 -> <10%
A60: ='Record form School-age'!E75 -> Pattern Construction (Gv) | C60: ='Record form School-age'!F75 -> 39 | D60: ='Record form School-age'!G75 -> 0 | E60: ='Record form School-age'!H75 -> 5 | F60: ='Record form School-age'!I75 -> 0 | G60: ='Record form School-age'!J75 -> -6 | H60: - | I60: ='Record form School-age'!L75 -> Low | J60: Low | K60: ='Record form School-age'!N75 -> 15%
A62: ='Record form School-age'!E77 -> Recall of Objects-Immediate (Glr) | C62: ='Record form School-age'!F77 -> 59 | D62: ='Record form School-age'!G77 -> 0 | E62: ='Record form School-age'!H77 -> 9 | F62: ='Record form School-age'!I77 -> 0 | G62: ='Record form School-age'!J77 -> 14 | H62: + | I62: ='Record form School-age'!L77 -> High | J62: High | K62: ='Record form School-age'!N77 -> <10%
A63: ='Record form School-age'!E78 -> Recall of Objects-Delayed (Glr) | C63: ='Record form School-age'!F78 -> 60 | D63: ='Record form School-age'!G78 -> 0 | E63: ='Record form School-age'!H78 -> 0 | F63: ='Record form School-age'!I78 -> 0 | G63: ='Record form School-age'!J78 -> 0 | H63: = | I63: ='Record form School-age'!L78 ->  | J63: = | K63: ='Record form School-age'!N78 -> 0
A64: ='Record form School-age'!E79 -> Recall of Digits Forward (Gsm) | C64: ='Record form School-age'!F79 -> 40 | D64: ='Record form School-age'!G79 -> 0 | E64: ='Record form School-age'!H79 -> 7 | F64: ='Record form School-age'!I79 -> 0 | G64: ='Record form School-age'!J79 -> -5 | H64: - | I64: ='Record form School-age'!L79 ->  | J64: - | K64: ='Record form School-age'!N79 -> 
A65: ='Record form School-age'!E80 -> Recognition of Pictures (Gv) | C65: ='Record form School-age'!F80 -> 43 | D65: ='Record form School-age'!G80 -> 0 | E65: ='Record form School-age'!H80 -> 13 | F65: ='Record form School-age'!I80 -> 0 | G65: ='Record form School-age'!J80 -> -2 | H65: - | I65: ='Record form School-age'!L80 ->  | J65: - | K65: ='Record form School-age'!N80 -> 
A66: ='Record form School-age'!E81 -> Recall of Sequential Order (Gsm) | C66: ='Record form School-age'!F81 -> 37 | D66: ='Record form School-age'!G81 -> 0 | E66: ='Record form School-age'!H81 -> 7 | F66: ='Record form School-age'!I81 -> 0 | G66: ='Record form School-age'!J81 -> -8 | H66: - | I66: ='Record form School-age'!L81 -> Low | J66: Low | K66: ='Record form School-age'!N81 -> 15%
A67: ='Record form School-age'!E82 -> Speed of Information Processing (Gs) | C67: ='Record form School-age'!F82 ->  | D67: ='Record form School-age'!G82 -> 0 | E67: ='Record form School-age'!H82 ->  | F67: ='Record form School-age'!I82 -> 0 | G67: ='Record form School-age'!J82 ->  | I67: ='Record form School-age'!L82 ->  | K67: ='Record form School-age'!N82 -> 
A68: ='Record form School-age'!E83 -> Recall of Digits Backward (Gsm) | C68: ='Record form School-age'!F83 -> 50 | D68: ='Record form School-age'!G83 -> 0 | E68: ='Record form School-age'!H83 -> 7 | F68: ='Record form School-age'!I83 -> 0 | G68: ='Record form School-age'!J83 -> 5 | H68: + | I68: ='Record form School-age'!L83 ->  | J68: + | K68: ='Record form School-age'!N83 -> 
A69: ='Record form School-age'!E84 -> Phonological Processing (Ga) | C69: ='Record form School-age'!F84 -> 53 | D69: ='Record form School-age'!G84 -> 0 | E69: ='Record form School-age'!H84 -> 9 | F69: ='Record form School-age'!I84 -> 0 | G69: ='Record form School-age'!J84 -> 8 | H69: + | I69: ='Record form School-age'!L84 ->  | J69: + | K69: ='Record form School-age'!N84 -> 
A70: ='Record form School-age'!E85 -> Rapid Naming (Gs) | C70: ='Record form School-age'!F85 -> 44 | D70: ='Record form School-age'!G85 -> 0 | E70: ='Record form School-age'!H85 -> 10 | F70: ='Record form School-age'!I85 -> 0 | G70: ='Record form School-age'!J85 -> -1 | H70: - | I70: ='Record form School-age'!L85 ->  | J70: - | K70: ='Record form School-age'!N85 -> 
A73: ='Record form School-age'!U114 -> Word Definition (Gc) | C73: ='Record form School-age'!V114 -> 43 | D73: ='Record form School-age'!W114 -> 1 | E73: ='Record form School-age'!X114 -> f&thypotheses | F73: ='Record form School-age'!Y114 -> 0 | G73: ='Record form School-age'!Z114 -> 147 | H73: ='Record form School-age'!AA114 -> 147 | I73: =ROUND('Record form School-age'!AB114,0) -> 76 | J73: =IF(H73="","",I73) -> 76 | K73: ='Record form School-age'!AD114 -> 3.53 | L73: ='Record form School-age'!AE114 -> 3.31 | M73: ='Record form School-age'!AF114 -> 4 | N73: ='Record form School-age'!AG114 -> 0.4602873089 | O73: ='Record form School-age'!AH114 -> 7.94253821 | P73: ='Record form School-age'!AI114 -> 0.9557438795 | Q73: ='Record form School-age'!AJ114 -> 3.155570807 | R73: ='Record form School-age'!AK114 -> 6.184918782 | S73: ='Record form School-age'!AL114 -> 3.015917485
A74: ='Record form School-age'!U115 -> Verbal Similarities (Gc) | C74: ='Record form School-age'!V115 -> 40 | D74: ='Record form School-age'!W115 -> 1 | E74: ='Record form School-age'!X115 -> u of verb med | F74: ='Record form School-age'!Y115 -> 0 | G74: ='Record form School-age'!Z115 -> 107 | H74: ='Record form School-age'!AA115 -> 107 | I74: =ROUND('Record form School-age'!AB115,0) -> 75 | J74: 75 | K74: ='Record form School-age'!AD115 -> 2.73 | L74: ='Record form School-age'!AE115 -> 1.78 | M74: ='Record form School-age'!AF115 -> 3 | N74: ='Record form School-age'!AG115 -> 0.5856516071 | O74: ='Record form School-age'!AH115 -> 12.15225894 | P74: ='Record form School-age'!AI115 -> 0.9588414634 | Q74: ='Record form School-age'!AJ115 -> 3.043135017 | R74: ='Record form School-age'!AK115 -> 5.964544633 | S74: ='Record form School-age'!AL115 -> 2.917884033
A75: ='Record form School-age'!U116 -> Matrices (Gf) | C75: ='Record form School-age'!V116 -> 27 | D75: ='Record form School-age'!W116 -> 1 | E75: ='Record form School-age'!X116 -> Verbal comp | F75: ='Record form School-age'!Y116 -> 0 | G75: ='Record form School-age'!Z116 -> 80 | H75: ='Record form School-age'!AA116 -> 80 | I75: =ROUND('Record form School-age'!AB116,0) -> 83 | J75: 83 | K75: ='Record form School-age'!AD116 -> 1.76 | L75: ='Record form School-age'!AE116 -> 0.49 | M75: ='Record form School-age'!AF116 -> 2 | N75: ='Record form School-age'!AG116 -> 0.8689266695 | O75: ='Record form School-age'!AH116 -> 13.10733305 | P75: ='Record form School-age'!AI116 -> 0.9194630872 | Q75: ='Record form School-age'!AJ116 -> 4.256853929 | R75: ='Record form School-age'!AK116 -> 8.3434337 | S75: ='Record form School-age'!AL116 -> 3.914020055
A76: ='Record form School-age'!U117 -> Sequential & Quantitative Reasoning (Gf) | C76: ='Record form School-age'!V117 -> 41 | D76: ='Record form School-age'!W117 -> 1 | E76: ='Record form School-age'!X117 -> Verbal expression | F76: ='Record form School-age'!Y117 -> 0 | G76: ='Record form School-age'!Z117 -> 366 | H76: ='Record form School-age'!AA117 -> 366 | I76: =ROUND('Record form School-age'!AB117,0) -> 91 | J76: 91 | K76: ='Record form School-age'!AD117 -> 6.93 | L76: ='Record form School-age'!AE117 -> 11.55 | M76: ='Record form School-age'!AF117 -> 8 | N76: ='Record form School-age'!AG117 -> 0.2689744725 | O76: ='Record form School-age'!AH117 -> -7.589789018 | P76: ='Record form School-age'!AI117 -> 0.9655948553 | Q76: ='Record form School-age'!AJ117 -> 2.782293578 | R76: ='Record form School-age'!AK117 -> 5.453295414 | S76: ='Record form School-age'!AL117 -> 2.686568365
A77: ='Record form School-age'!U118 -> Recall of Designs (Gv) | C77: ='Record form School-age'!V118 -> 80 | D77: ='Record form School-age'!W118 -> 1 | E77: ='Record form School-age'!X118 -> 0 | F77: ='Record form School-age'!Y118 -> 0 | G77: ='Record form School-age'!Z118 -> 0 | H77: ='Record form School-age'!AA118 -> 0 | I77: =ROUND('Record form School-age'!AB118,0) -> 0 | J77: 0 | K77: ='Record form School-age'!AD118 -> 2.43 | L77: ='Record form School-age'!AE118 -> 1.12 | M77: ='Record form School-age'!AF118 -> 3 | N77: ='Record form School-age'!AG118 -> 0.6552780425 | O77: ='Record form School-age'!AH118 -> 1.708293626 | P77: ='Record form School-age'!AI118 -> 0.891221374 | Q77: ='Record form School-age'!AJ118 -> 4.94724073 | R77: ='Record form School-age'!AK118 -> 9.696591831 | S77: ='Record form School-age'!AL118 -> 4.409086681
A78: ='Record form School-age'!U119 -> Pattern Construction (Gv) | C78: ='Record form School-age'!V119 -> 39 | D78: ='Record form School-age'!W119 -> 1 | E78: ='Record form School-age'!X119 -> vis anal fig and des | F78: ='Record form School-age'!Y119 -> 0 | G78: ='Record form School-age'!Z119 -> 146 | H78: ='Record form School-age'!AA119 -> 146 | I78: =ROUND('Record form School-age'!AB119,0) -> 98 | J78: 98 | K78: ='Record form School-age'!AD119 -> 2.68 | L78: ='Record form School-age'!AE119 -> 1.6 | M78: ='Record form School-age'!AF119 -> 3 | N78: ='Record form School-age'!AG119 -> 0.6024144967 | O78: ='Record form School-age'!AH119 -> 9.637825498 | P78: ='Record form School-age'!AI119 -> 0.9483870968 | Q78: ='Record form School-age'!AJ119 -> 3.407771005 | R78: ='Record form School-age'!AK119 -> 6.679231171 | S78: ='Record form School-age'!AL119 -> 3.23188605
A79: ='Record form School-age'!U120 -> 0 | C79: ='Record form School-age'!V120 -> 0 | D79: ='Record form School-age'!W120 -> 0 | E79: ='Record form School-age'!X120 -> 0 | F79: ='Record form School-age'!Y120 -> 0 | G79: ='Record form School-age'!Z120 -> 0 | H79: ='Record form School-age'!AA120 -> 0 | I79: =ROUND('Record form School-age'!AB120,0) -> 0 | J79: 0 | K79: ='Record form School-age'!AD120 -> 1.83 | L79: ='Record form School-age'!AE120 -> 0.55 | M79: ='Record form School-age'!AF120 -> 2 | N79: ='Record form School-age'!AG120 -> 0.8519427514 | O79: ='Record form School-age'!AH120 -> 14.80572486 | P79: ='Record form School-age'!AI120 -> 0.9451612903 | Q79: ='Record form School-age'!AJ120 -> 3.512649951 | R79: ='Record form School-age'!AK120 -> 6.884793904 | S79: ='Record form School-age'!AL120 -> 3.32002076
A80: ='Record form School-age'!U121 -> Recall of Objects-Immediate (Glr) | C80: ='Record form School-age'!V121 -> 59 | D80: ='Record form School-age'!W121 -> 1 | E80: ='Record form School-age'!X121 -> vis verb int | F80: ='Record form School-age'!Y121 -> 0 | G80: ='Record form School-age'!Z121 -> 208 | H80: ='Record form School-age'!AA121 -> 208 | I80: =ROUND('Record form School-age'!AB121,0) -> 82 | J80: 82 | K80: ='Record form School-age'!AD121 -> 4.35 | L80: ='Record form School-age'!AE121 -> 3.96 | M80: ='Record form School-age'!AF121 -> 5 | N80: ='Record form School-age'!AG121 -> 0.4173111631 | O80: ='Record form School-age'!AH121 -> -4.327790764 | P80: ='Record form School-age'!AI121 -> 0.9496904025 | Q80: ='Record form School-age'!AJ121 -> 3.364470158 | R80: ='Record form School-age'!AK121 -> 6.594361509 | S80: ='Record form School-age'!AL121 -> 3.195205018
A81: ='Record form School-age'!U122 -> Recall of Objects-Delayed (Glr) | C81: ='Record form School-age'!V122 -> 60 | D81: ='Record form School-age'!W122 -> 1 | E81: ='Record form School-age'!X122 -> stme gen | F81: ='Record form School-age'!Y122 -> 0 | G81: ='Record form School-age'!Z122 -> 309 | H81: ='Record form School-age'!AA122 -> 309 | I81: =ROUND('Record form School-age'!AB122,0) -> 103 | J81: 103 | K81: ='Record form School-age'!AD122 -> 5.21 | L81: ='Record form School-age'!AE122 -> 6.03 | M81: ='Record form School-age'!AF122 -> 6 | N81: ='Record form School-age'!AG122 -> 0.352965604 | O81: ='Record form School-age'!AH122 -> -5.8896812 | P81: ='Record form School-age'!AI122 -> 0.9562569214 | Q81: ='Record form School-age'!AJ122 -> 3.137226911 | R81: ='Record form School-age'!AK122 -> 6.148964746 | S81: ='Record form School-age'!AL122 -> 2.999994948
A82: ='Record form School-age'!U123 -> Recall of Digits Forward (Gsm) | C82: ='Record form School-age'!V123 -> 40 | D82: ='Record form School-age'!W123 -> 1 | E82: ='Record form School-age'!X123 -> aud stm | F82: ='Record form School-age'!Y123 -> 0 | G82: ='Record form School-age'!Z123 -> 127 | H82: ='Record form School-age'!AA123 -> 127 | I82: =ROUND('Record form School-age'!AB123,0) -> 86 | J82: 86 | K82: ='Record form School-age'!AD123 -> 2.76 | L82: ='Record form School-age'!AE123 -> 1.69 | M82: ='Record form School-age'!AF123 -> 3 | N82: ='Record form School-age'!AG123 -> 0.5938556868 | O82: ='Record form School-age'!AH123 -> 10.92164697 | P82: ='Record form School-age'!AI123 -> 0.9623824451 | Q82: ='Record form School-age'!AJ123 -> 2.909286827 | R82: ='Record form School-age'!AK123 -> 5.702202181 | S82: ='Record form School-age'!AL123 -> 2.79984657
A83: ='Record form School-age'!U124 -> Recognition of Pictures (Gv) | C83: ='Record form School-age'!V124 -> 43 | D83: ='Record form School-age'!W124 -> 1 | E83: ='Record form School-age'!X124 -> vis stm | F83: ='Record form School-age'!Y124 -> 0 | G83: ='Record form School-age'!Z124 -> 102 | H83: ='Record form School-age'!AA124 -> 102 | I83: =ROUND('Record form School-age'!AB124,0) -> 102 | J83: 102 | K83: ='Record form School-age'!AD124 -> 1.58 | L83: ='Record form School-age'!AE124 -> 0.37 | M83: ='Record form School-age'!AF124 -> 2 | N83: ='Record form School-age'!AG124 -> 0.90618314 | O83: ='Record form School-age'!AH124 -> 9.381686 | P83: ='Record form School-age'!AI124 -> 0.8467153285 | Q83: ='Record form School-age'!AJ124 -> 5.872737956 | R83: ='Record form School-age'!AK124 -> 11.51056639 | S83: ='Record form School-age'!AL124 -> 4.972537247
A84: ='Record form School-age'!U125 -> Recall of Sequential Order (Gsm) | C84: ='Record form School-age'!V125 -> 37 | D84: ='Record form School-age'!W125 -> 1 | E84: ='Record form School-age'!X125 -> ver ltr | F84: ='Record form School-age'!Y125 -> 0 | G84: ='Record form School-age'!Z125 -> 127 | H84: ='Record form School-age'!AA125 -> 127 | I84: =ROUND('Record form School-age'!AB125,0) -> 85 | J84: 85 | K84: ='Record form School-age'!AD125 -> 2.44 | L84: ='Record form School-age'!AE125 -> 1.21 | M84: ='Record form School-age'!AF125 -> 3 | N84: ='Record form School-age'!AG125 -> 0.6443051694 | O84: ='Record form School-age'!AH125 -> 3.354224593 | P84: ='Record form School-age'!AI125 -> 0.8966789668 | Q84: ='Record form School-age'!AJ125 -> 4.821538393 | R84: ='Record form School-age'!AK125 -> 9.45021525 | S84: ='Record form School-age'!AL125 -> 4.323372064
A85: ='Record form School-age'!U126 -> Speed of Information Processing (Gs) | C85: ='Record form School-age'!V126 ->  | D85: ='Record form School-age'!W126 -> 0 | E85: ='Record form School-age'!X126 -> k q con | F85: ='Record form School-age'!Y126 -> 0 | G85: ='Record form School-age'!Z126 ->  | H85: ='Record form School-age'!AA126 ->  | I85: =ROUND('Record form School-age'!AB126,0) ->  | K85: ='Record form School-age'!AD126 -> 1.83 | L85: ='Record form School-age'!AE126 -> 0.3 | M85: ='Record form School-age'!AF126 -> 2 | N85: ='Record form School-age'!AG126 -> 0.9302605094 | O85: ='Record form School-age'!AH126 -> 6.973949058 | P85: ='Record form School-age'!AI126 -> 0.9346153846 | Q85: ='Record form School-age'!AJ126 -> 3.83556234 | R85: ='Record form School-age'!AK126 -> 7.517702186 | S85: ='Record form School-age'!AL126 -> 3.584775571
A86: ='Record form School-age'!U127 -> Recall of Digits Backward (Gsm) | C86: ='Record form School-age'!V127 -> 50 | D86: ='Record form School-age'!W127 -> 1 | E86: ='Record form School-age'!X127 -> hol inf proc | F86: ='Record form School-age'!Y127 -> 0 | G86: ='Record form School-age'!Z127 -> 162 | H86: ='Record form School-age'!AA127 -> 162 | I86: =ROUND('Record form School-age'!AB127,0) -> 108 | J86: 108 | K86: ='Record form School-age'!AD127 -> 2.57 | L86: ='Record form School-age'!AE127 -> 1.37 | M86: ='Record form School-age'!AF127 -> 3 | N86: ='Record form School-age'!AG127 -> 0.6260879033 | O86: ='Record form School-age'!AH127 -> 6.086814498 | P86: ='Record form School-age'!AI127 -> 0.925087108 | Q86: ='Record form School-age'!AJ127 -> 4.105532937 | R86: ='Record form School-age'!AK127 -> 8.046844557 | S86: ='Record form School-age'!AL127 -> 3.797975592
A87: ='Record form School-age'!U128 -> Phonological Processing (Ga) | C87: ='Record form School-age'!V128 -> 53 | D87: ='Record form School-age'!W128 -> 1 | E87: ='Record form School-age'!X128 -> seq info proc | F87: ='Record form School-age'!Y128 -> 0 | G87: ='Record form School-age'!Z128 ->  | H87: ='Record form School-age'!AA128 ->  | I87: =ROUND('Record form School-age'!AB128,0) ->  | K87: ='Record form School-age'!AD128 -> 5.4 | L87: ='Record form School-age'!AE128 -> 5.69 | M87: ='Record form School-age'!AF128 -> 6 | N87: ='Record form School-age'!AG128 -> 0.3598043197 | O87: ='Record form School-age'!AH128 -> -7.941295898 | P87: ='Record form School-age'!AI128 -> 0.9654775604 | Q87: ='Record form School-age'!AJ128 -> 2.787032276 | R87: ='Record form School-age'!AK128 -> 5.462583261 | S87: ='Record form School-age'!AL128 -> 2.690817123
A88: ='Record form School-age'!U129 -> Rapid Naming (Gs) | C88: ='Record form School-age'!V129 -> 44 | D88: ='Record form School-age'!W129 -> 1

Sheet DAS-II SA Summary
A1: ='Record form School-age'!B2 -> Name: | B1: ='Record form School-age'!C2 -> C C | C1: ='Record form School-age'!B3 -> Age: | D1: ='Record form School-age'!C3 -> 8 years, 6 months, 14 days
B3: Composite/Cluster | C3: Score | D3: =CHOOSE(btwcl,"85% confidence","90% confidence", "95% confidence") -> 90% confidence | E3: PR | F3: Classification
B4: General Conceptual Ability (GCA): | C4: ='Record form School-age'!L17 -> 80 | D4: ='Record form School-age'!L19 -> 75 to 87 | E4: =IF(C4="","",'Record form School-age'!L18&" PR") -> 9 PR | F4: =IF(C4="","",LOOKUP(C4,ssname)) -> Below average
B5: Special Nonverbal Composite (SNC): | C5: ='Record form School-age'!N17 -> 58 | D5: ='Record form School-age'!N19 -> 54 to 65 | E5: =IF(C5="","",'Record form School-age'!N18&" PR") -> 1 PR | F5: Very Low
B6: Verbal (V): | C6: ='Record form School-age'!F17 -> 100 | D6: ='Record form School-age'!F19 -> 91 to 109 | E6: =IF(C6="","",'Record form School-age'!F18&" PR") -> 50 PR | F6: Average
B7: Nonverbal Reasoning (NVR): | C7: ='Record form School-age'!H17 -> 74 | D7: ='Record form School-age'!H19 -> 68 to 84 | E7: =IF(C7="","",'Record form School-age'!H18&" PR") -> 4 PR | F7: Low
B8: Spatial (Sp): | C8: ='Record form School-age'!J17 -> 91 | D8: ='Record form School-age'!J19 -> 85 to 98 | E8: =IF(C8="","",'Record form School-age'!J18&" PR") -> 27 PR | F8: Average
B9: Working Memory (WM): | C9: ='Record form School-age'!F42 -> 89 | D9: ='Record form School-age'!F44 -> 83 to 96 | E9: =IF(C9="","",'Record form School-age'!F43&" PR") -> 23 PR | F9: Below average
B10: Processing Speed (PS): | C10: ='Record form School-age'!H42 ->  | D10: ='Record form School-age'!H44 ->  | E10: =IF(C10="","",'Record form School-age'!H43&" PR") -> 
B11: School Readiness (SchR): | C11: ='Record form School-age'!J42 ->  | D11: ='Record form School-age'!J44 ->  | E11: =IF(C11="","",'Record form School-age'!J43&" PR") -> 
B12: Between Clusters | C12: Difference | D12: Significant | E12: Base rate
B13: =" V ( "&C6&" ) vs. NVR ( "&C7&" ): " -> V ( 100 ) vs. NVR ( 74 ): | C13: ='Record form School-age'!H52 -> 26 | D13: ='Record form School-age'!F20 -> V > NVR | E13: =IF(C13="","",'Record form School-age'!L52) -> 5%
B14: =" V ( "&C6&" ) vs. Sp ( "&C8&" ): " -> V ( 100 ) vs. Sp ( 91 ): | C14: ='Record form School-age'!H54 -> 9 | D14: ='Record form School-age'!J20 -> No | E14: =IF(C14="","",'Record form School-age'!L54) -> >15%
B15: =" NVR ( "&C7&" ) vs. Sp ( "&C8&" ): " -> NVR ( 74 ) vs. Sp ( 91 ): | C15: ='Record form School-age'!H53 -> -17 | D15: ='Record form School-age'!H20 -> NVR < Sp | E15: =IF(C15="","",'Record form School-age'!L53) -> 10%
B16: =" GCA ( "&C4&" ) vs. WM ( "&C9&" ): " -> GCA ( 80 ) vs. WM ( 89 ): | C16: =IF(OR(C4="",C9=""),"",C4-C9) -> -9 | D16: ='Record form School-age'!F45 -> WM > GCA | E16: =IF(C16="","",'Record form School-age'!AC42) -> >15
B17: =" GCA ( "&C4&" ) vs. PS ( "&C10&" ): " -> GCA ( 80 ) vs. PS ( ): | C17: =IF(OR(C4="",C10=""),"",C4-C10) ->  | D17: ='Record form School-age'!H45 ->  | E17: =IF(C17="","",'Record form School-age'!AC43) -> 
A18: Cluster | B18: Within Clusters | C18: Difference | D18: Significant | E18: Base rate
A19: Verbal | B19: ="WD ( "&'Record form School-age'!F9&" ) vs VSim ( "&'Record form School-age'!F12&" )" -> WD ( 43 ) vs VSim ( 40 ) | C19: ='Record form School-age'!H57 -> 3 | D19: ='Record form School-age'!F21 -> No | E19: ='Record form School-age'!L57 -> >15% | F19: ='Record form School-age'!F56 -> 
A20: Nonverbal Reasoning | B20: ="Mat ( "&'Record form School-age'!H11&" ) vs SQR ( "&'Record form School-age'!H13&" )" -> Mat ( 27 ) vs SQR ( 41 ) | C20: ='Record form School-age'!H59 -> -14 | D20: ='Record form School-age'!H21 -> Mat < SQR | E20: ='Record form School-age'!L59 -> 5% | F20: ='Record form School-age'!F58 -> Interpret With Caution
A21: Spatial | B21: ="RDes ( "&'Record form School-age'!J8&" ) vs PCon ( "&'Record form School-age'!J10&" )" -> RDes ( 80 ) vs PCon ( 39 ) | C21: ='Record form School-age'!H61 -> 41 | D21: ='Record form School-age'!J21 -> RDes > PC | E21: ='Record form School-age'!L61 -> <5% | F21: ='Record form School-age'!F60 -> Interpret With Caution
A22: Working Memory | B22: ="RSO ( "&'Record form School-age'!F34&" ) vs RDb ( "&'Record form School-age'!F36&" )" -> RSO ( 37 ) vs RDb ( 50 ) | C22: ='Record form School-age'!H63 -> -13 | D22: ='Record form School-age'!J63 -> Yes | E22: ='Record form School-age'!L63 -> 10% | F22: ='Record form School-age'!F62 -> Interpret With Caution
A23: Processing Speed | B23: ="SIP ( "&'Record form School-age'!H35&" ) vs RN ( "&'Record form School-age'!H38&" )" -> SIP ( ) vs RN ( 44 ) | C23: ='Record form School-age'!H65 ->  | D23: ='Record form School-age'!J65 ->  | E23: ='Record form School-age'!L65 ->  | F23: ='Record form School-age'!F64 -> 
B24: ="Mean Core T = "&'Record form School-age'!F68&" using "&'Record form School-age'!V72 -> Mean Core T = 45 using GCA | C24: T score | D24: High/Low | E24: Frequency
B25: Word Definition (Gc) | C25: ='Record form School-age'!F70 -> 43 | D25: ='Record form School-age'!L70 ->  | E25: ='Record form School-age'!N70 -> 
B26: Verbal Similarities (Gc) | C26: ='Record form School-age'!F71 -> 40 | D26: ='Record form School-age'!L71 ->  | E26: ='Record form School-age'!N71 -> 
B27: Matrices (Gf) | C27: ='Record form School-age'!F72 -> 27 | D27: ='Record form School-age'!L72 -> Low | E27: ='Record form School-age'!N72 -> <10%
B28: Sequential & Quantitative Reasoning (Gf) | C28: ='Record form School-age'!F73 -> 41 | D28: ='Record form School-age'!L73 ->  | E28: ='Record form School-age'!N73 -> 
B29: Recall of Designs (Gv) | C29: ='Record form School-age'!F74 -> 80 | D29: ='Record form School-age'!L74 -> High | E29: ='Record form School-age'!N74 -> <10%
B30: Pattern Construction (Gv) | C30: ='Record form School-age'!F75 -> 39 | D30: ='Record form School-age'!L75 -> Low | E30: ='Record form School-age'!N75 -> 15%
B32: Recall of Objects-Immediate (Glr) | C32: ='Record form School-age'!F77 -> 59 | D32: ='Record form School-age'!L77 -> High | E32: ='Record form School-age'!N77 -> <10%
B33: Recall of Objects-Delayed (Glr) | C33: ='Record form School-age'!F78 -> 60 | D33: ='Record form School-age'!L78 -> 
B34: Recall of Digits Forward (Gsm) | C34: ='Record form School-age'!F79 -> 40 | D34: ='Record form School-age'!L79 ->  | E34: ='Record form School-age'!N79 -> 
B35: Recognition of Pictures (Gv) | C35: ='Record form School-age'!F80 -> 43 | D35: ='Record form School-age'!L80 ->  | E35: ='Record form School-age'!N80 -> 
B36: Recall of Sequential Order (Gsm) | C36: ='Record form School-age'!F81 -> 37 | D36: ='Record form School-age'!L81 -> Low | E36: ='Record form School-age'!N81 -> 15%
B37: Speed of Information Processing (Gs) | C37: ='Record form School-age'!F82 ->  | D37: ='Record form School-age'!L82 ->  | E37: ='Record form School-age'!N82 -> 
B38: Recall of Digits Backward (Gsm) | C38: ='Record form School-age'!F83 -> 50 | D38: ='Record form School-age'!L83 ->  | E38: ='Record form School-age'!N83 -> 
B39: Phonological Processing (Ga) | C39: ='Record form School-age'!F84 -> 53 | D39: ='Record form School-age'!L84 ->  | E39: ='Record form School-age'!N84 -> 
B40: Rapid Naming (Gs) | C40: ='Record form School-age'!F85 -> 44 | D40: ='Record form School-age'!L85 ->  | E40: ='Record form School-age'!N85 -> 
B42: School-Age Shared Ability | C42: SS | D42: Subtests
A44: Formulation and Testing of Hypotheses | C44: ='Shared Abilities SA'!J73 -> 76 | D44: VS, SQR, PC, Mat
A45: Use of Verbal Mediation to Solve Nonverbal Problems | C45: ='Shared Abilities SA'!J74 -> 75 | D45: SQR, PCon, Mat
A46: Verbal Comprehension: | C46: ='Shared Abilities SA'!J75 -> 83 | D46: WD, RSO
A47: Verbal Expression: | C47: ='Shared Abilities SA'!J76 -> 91 | D47: VS, WD, ROi, RDf, RSO, RDb, PhP, RN
A48: Visual Analysis of Figures or Designs: | C48: ='Shared Abilities SA'!J78 -> 98 | D48: PC, Mat, RDes
A49: Visual Verbal Integration: | C49: ='Shared Abilities SA'!J80 -> 82 | D49: SQR, Mat, ROi, RSO
A50: Short-term Memory: (general): | C50: ='Shared Abilities SA'!J81 -> 103 | D50: RDes, ROi, RDf, RPic, RSO, RDb
A51: Auditory Short-term Memory: | C51: ='Shared Abilities SA'!J82 -> 86 | D51: RDf, RSO, RDb
A52: Visual Short-term Memory: | C52: ='Shared Abilities SA'!J83 -> 102 | D52: ROi, RPic
A53: Verbal Long -term Information Retrieval: | C53: ='Shared Abilities SA'!J84 -> 85 | D53: VS, WD, RN
A54: Knowledge of Quantitative Concepts: | C54: ='Shared Abilities SA'!J85 ->  | D54: SQR, SIP
A55: Visual/holistic Information Processing: | C55: ='Shared Abilities SA'!J86 -> 108 | D55: PC, RDes, RPic
A56: Sequential Information Processing: | C56: ='Shared Abilities SA'!J87 ->  | D56: ROi, RDf, RSO, SIP, RDb, RN
A58: Comparison | B58: Significance | C58: Possible implication
A60: ="RDf ("&C34&") vs. RDb ("&C38&")" -> RDf (40) vs. RDb (50) | B60: =W60 -> RDf < RDb | C60: Non-meaningful auditory memory span versus Non-meaningful auditory working memory | N60: =B25 -> Word Definition (Gc) | O60: 43 | Q60: =O69 -> 40 | R60: =O73 -> 50 | S60: =IF(OR(Q60="",R60=""),"",Q60-R60) -> -10 | T60: 8 | U60: =IF(OR(Q60="",R60=""),"",IF(Q60=R60,1,IF(S60<0,2,3))) -> 2 | V60: =IF(ABS(S60)>=T60,1,0) -> 1 | W60: =IF(OR(Q60="",R60=""),"",IF(V60=1,CHOOSE(U60,"NS",Y60,X60),"NS")) -> RDf < RDb | X60: RDf > RDb | Y60: RDf < RDb
N61: Verbal Similarities (Gc) | O61: 40 | Q61: =O69 -> 40 | R61: =O71 -> 37 | S61: 3 | T61: 8 | U61: 3 | V61: 0 | W61: =IF(OR(Q61="",R61=""),"",IF(V61=1,CHOOSE(U61,"NS",Y61,X61),"NS")) -> NS | X61: RDf > RSO | Y61: RDf < RSO
A62: ="RDf ("&C34&") vs. RSO ("&C36&")" -> RDf (40) vs. RSO (37) | B62: =W61 -> NS | C62: Non-meaningful auditory memory span versus Meaningful auditory/visual working memory | N62: Matrices (Gf) | O62: 27 | Q62: =O69 -> 40 | R62: =O70 -> 43 | S62: -3 | T62: 12 | U62: =IF(OR(Q62="",R62=""),"",IF(Q62=R62,1,IF(S62<0,2,3))) -> 2 | V62: 0 | W62: NS | X62: RDf > RPic | Y62: RDf < RPic
N63: Sequential & Quantitative Reasoning (Gf) | O63: 41 | Q63: =O69 -> 40 | R63: =O64 -> 80 | S63: -40 | T63: 9 | U63: =IF(OR(Q63="",R63=""),"",IF(Q63=R63,1,IF(S63<0,2,3))) -> 2 | V63: 1 | W63: RDf < RDes | X63: RDf > RDes | Y63: RDf < RDes
A64: ="RDf ("&C34&") vs. RPic ("&C35&")" -> RDf (40) vs. RPic (43) | B64: =W62 -> NS | C64: Non-meaningful auditory memory span versus Visual memory | N64: Recall of Designs (Gv) | O64: 80 | Q64: =O73 -> 50 | R64: =O71 -> 37 | S64: 13 | T64: 8 | U64: 3 | V64: 1 | W64: RDb > RSO | X64: RDb > RSO | Y64: RDb < RSO
N65: Pattern Construction (Gv) | O65: 39 | Q65: =O67 -> 59 | R65: =O68 -> 60 | S65: -1 | T65: 11 | U65: 2 | V65: 0 | W65: NS | X65: ROi > ROd | Y65: RObi < ROd
A66: ="RDf ("&C34&") vs. RDes ("&C29&")" -> RDf (40) vs. RDes (80) | B66: =W63 -> RDf < RDes | C66: Non-meaningful auditory memory span versus Non-meaningful visual memory | Q66: =O67 -> 59 | R66: =O69 -> 40 | S66: 19 | T66: 10 | U66: 3 | V66: 1 | W66: ROi > RDf | X66: ROi > RDf | Y66: RObi < RDf
N67: =B32 -> Recall of Objects-Immediate (Glr) | O67: =C32 -> 59 | Q67: =O67 -> 59 | R67: =O73 -> 50 | S67: 9 | T67: 14 | U67: 3 | V67: 0 | W67: NS | X67: ROi > RDb | Y67: ROi < RDb
A68: ="RDb ("&C38&") vs. RSO ("&C36&")" -> RDb (50) vs. RSO (37) | B68: =W64 -> RDb > RSO | C68: Non-meaningful auditory working memory versus Meaningful auditory/visual working memory | N68: Recall of Objects-Delayed (Glr) | O68: 60 | Q68: =O64 -> 80 | R68: =O70 -> 43 | S68: 37 | T68: 12 | U68: 3 | V68: =IF(ABS(S68)>=T68,1,0) -> 1 | W68: =IF(OR(Q68="",R68=""),"",IF(V68=1,CHOOSE(U68,"NS",Y68,X68),"NS")) -> RDes > RPic | X68: RDes > RPic | Y68: RDes < RPic
N69: Recall of Digits Forward (Gsm) | O69: 40 | Q69: =O75 -> 44 | R69: =O75 -> 44 | S69: 0 | T69: 10 | U69: 1 | V69: =IF(ABS(S69)>=T69,1,0) -> 0 | W69: NS | X69: SIP > RN | Y69: SIP < RN
A70: ="ROi ("&C32&") vs. ROd ("&C33&")" -> ROi (59) vs. ROd (60) | B70: =W65 -> NS | C70: Meaningful visual memory immediate versus Meaningful visual memory delayed | N70: Recognition of Pictures (Gv) | O70: 43 | Q70: =O67 -> 59 | R70: =O75 -> 44 | S70: 15 | T70: 12 | U70: 3 | V70: =IF(ABS(S70)>=T70,1,0) -> 1 | W70: ROi > RN | X70: ROi > RN | Y70: ROi < RN
N71: Recall of Sequential Order (Gsm) | O71: 37
A72: ="ROi ("&C32&") vs. RDf ("&C34&")" -> ROi (59) vs. RDf (40) | B72: =W66 -> ROi > RDf | C72: Meaningful visual memory immediate versus Non-meaningful auditory memory span | N72: Speed of Information Processing (Gs)
N73: Recall of Digits Backward (Gsm) | O73: 50
A74: ="ROi ("&C32&") vs. RDb ("&C38&")" -> ROi (59) vs. RDb (50) | B74: =W67 -> NS | C74: Meaningful visual memory versus Non-meaningful auditory working memory | N74: Phonological Processing (Ga) | O74: 53
N75: Rapid Naming (Gs) | O75: 44
A76: ="RDes ("&C29&") vs. RPic ("&C35&")" -> RDes (80) vs. RPic (43) | B76: =W68 -> RDes > RPic | C76: Non-meaningful visual memory versus Meaningful visual memory
A78: ="SIP ("&C37&") vs. RN ("&C40&")" -> SIP () vs. RN (44) | B78: =W69 -> NS | C78: Processing Speed Cluster: If significant difference is evidenced, examine ROi vs. RN comparison
A80: ="ROi ("&C32&") vs. RN ("&C40&")" -> ROi (59) vs. RN (44) | B80: =W70 -> ROi > RN | C80: * Make this comparison only if the SIP vs. RN is significant. RN could involve Glr

Sheet DAS-II Culture Linguistic
C1: Name | D1: ='Record form School-age'!C2 -> C C | G1: Age | I1: ='Record form School-age'!C3 -> 8 years, 6 months, 14 days
C2: DEGREE OF LINGUISTIC DEMAND
C3: LOW | F3: MEDIUM | I3: HIGH
A4: DEGREE OF CULTURAL LOADING | C4: ="Low/Low Cell Average = "&IF(COUNT(D6:D11)=0,"",ROUND(AVERAGE(D6:D11),0)) -> Low/Low Cell Average = 95 | D4: SS | F4: ="Low/Medium Cell Average = "&IF(COUNT(G6:G11)=0,"",ROUND(AVERAGE(G6:G11),0)) -> Low/Medium Cell Average = 100 | G4: SS | I4: ="Low/High Cell Average = "&IF(COUNT(J6:J11)=0,"",ROUND(AVERAGE(J6:J11),0)) -> Low/High Cell Average = 85 | J4: SS
D5: Score | G5: Score | J5: Score
B6: LOW | C6: ="Matrices T = "&IF('Input page School-age'!D11="","",'Input page School-age'!D11)&" " -> Matrices T = 27 | D6: =IF('Input page School-age'!D11="","",(15*('Input page School-age'!D11-50)/10)+100) -> 65.5 | F6: ="Recall of Digits Backward T = "&IF('Input page School-age'!D28="","",'Input page School-age'!D28)&" " -> Recall of Digits Backward T = 50 | G6: =IF('Input page School-age'!D28="","",(15*('Input page School-age'!D28-50)/10)+100) -> 100 | I6: ="Recall of Digits Forward T = "&IF('Input page School-age'!D24="","",'Input page School-age'!D24)&" " -> Recall of Digits Forward T = 40 | J6: =IF('Input page School-age'!D24="","",(15*('Input page School-age'!D24-50)/10)+100) -> 85 | L6: ="Low Cultural Loading = "&S11 -> Low Cultural Loading = 93 | P6: =IF(COUNT(D6:D11)=0,"",ROUND(AVERAGE(D6:D11),0)) -> 95
C7: ="Sequential & Quantitative Reasoning T = "&IF('Input page School-age'!D13="","",'Input page School-age'!D13)&" " -> Sequential & Quantitative Reasoning T = 41 | D7: =IF('Input page School-age'!D13="","",(15*('Input page School-age'!D13-50)/10)+100) -> 86.5 | F7: ="Speed of Information Processing T = "&IF('Input page School-age'!D27="","",'Input page School-age'!D27)&" " -> Speed of Information Processing T = | G7: =IF('Input page School-age'!D27="","",(15*('Input page School-age'!D27-50)/10)+100) ->  | K7: =IF(J7="","",IF(AND(J7>0,J7<20),(15*((J7-10)/3)+100),J7)) -> 
C8: ="Pattern Construction T = "&IF('Input page School-age'!D10="","",'Input page School-age'!D10)&" " -> Pattern Construction T = 39 | D8: =IF('Input page School-age'!D10="","",(15*('Input page School-age'!D10-50)/10)+100) -> 83.5 | H8: =IF(G8="","",IF(AND(G8>0,G8<20),(15*((G8-10)/3)+100),G8)) ->  | K8: =IF(J8="","",IF(AND(J8>0,J8<20),(15*((J8-10)/3)+100),J8)) -> 
C9: ="Recall of Designs T = "&IF('Input page School-age'!D8="","",'Input page School-age'!D8)&" " -> Recall of Designs T = 80 | D9: =IF('Input page School-age'!D8="","",(15*('Input page School-age'!D8-50)/10)+100) -> 145 | K9: =IF(J9="","",IF(AND(J9>0,J9<20),(15*((J9-10)/3)+100),J9)) -> 
C10: ="Matching Letter-like Forms T = "&IF('Input page School-age'!D53="","",'Input page School-age'!D53)&" " -> Matching Letter-like Forms T = | D10: =IF('Input page School-age'!D53="","",(15*('Input page School-age'!D53-50)/10)+100) ->  | H10: =IF(G10="","",IF(AND(G10>0,G10<20),(15*((G10-10)/3)+100),G10)) ->  | K10: =IF(J10="","",IF(AND(J10>0,J10<20),(15*((J10-10)/3)+100),J10)) -> 
C11: ="Copying T = "&IF('Input page School-age'!D57="","",'Input page School-age'!D57)&" " -> Copying T = | D11: =IF('Input page School-age'!D57="","",(15*('Input page School-age'!D57-50)/10)+100) ->  | H11: =IF(G11="","",IF(AND(G11>0,G11<20),(15*((G11-10)/3)+100),G11)) ->  | K11: =IF(J11="","",IF(AND(J11>0,J11<20),(15*((J11-10)/3)+100),J11)) ->  | Q11: =IF(COUNT(G6:G11)=0,"",ROUND(AVERAGE(G6:G11),0)) -> 100 | R11: =IF(COUNT(J6:J11)=0,"",ROUND(AVERAGE(J6:J11),0)) -> 85 | S11: =IF(COUNT(P6:R11)=0,"",ROUND(AVERAGE(P6:R11),0)) -> 93
C12: ="Medium/Low Cell Average = "&IF(COUNT(D14:D19)=0,"",ROUND(AVERAGE(D14:D19),0)) -> Medium/Low Cell Average = 106 | D12: SS | F12: ="Medium/Medium Cell Average = "&IF(COUNT(G14:G19)=0,"",ROUND(AVERAGE(G14:G19),0)) -> Medium/Medium Cell Average = 86 | G12: SS | I12: ="Medium/High Cell Average = "&IF(COUNT(J14:J19)=0,"",ROUND(AVERAGE(J14:J19),0)) -> Medium/High Cell Average = 105 | J12: SS
D13: Score | G13: Score | J13: Score
B14: MEDIUM | C14: ="Picture Similarities T = "&IF('Input page School-age'!D55="","",'Input page School-age'!D55)&" " -> Picture Similarities T = | D14: =IF('Input page School-age'!D55="","",(15*('Input page School-age'!D55-50)/10)+100) ->  | F14: ="Early Number Concepts T = "&IF('Input page School-age'!D52="","",'Input page School-age'!D52)&" " -> Early Number Concepts T = | G14: =IF('Input page School-age'!D52="","",(15*('Input page School-age'!D52-50)/10)+100) ->  | I14: ="Phonological Processing T = "&IF('Input page School-age'!D29="","",'Input page School-age'!D29)&" " -> Phonological Processing T = 53 | J14: =IF('Input page School-age'!D29="","",(15*('Input page School-age'!D29-50)/10)+100) -> 104.5 | L14: ="Medium Cultural Loading = "&S19 -> Medium Cultural Loading = 99 | P14: =IF(COUNT(D14:D19)=0,"",ROUND(AVERAGE(D14:D19),0)) -> 106
C15: ="Recognition of Pictures T = "&IF('Input page School-age'!D25="","",'Input page School-age'!D25)&" " -> Recognition of Pictures T = 43 | D15: =IF('Input page School-age'!D25="","",(15*('Input page School-age'!D25-50)/10)+100) -> 89.5 | F15: ="Rapid Naming T = "&IF('Input page School-age'!D30="","",'Input page School-age'!D30)&" " -> Rapid Naming T = 44 | G15: =IF('Input page School-age'!D30="","",(15*('Input page School-age'!D30-50)/10)+100) -> 91 | K15: =IF(J15="","",IF(AND(J15>0,J15<20),(15*((J15-10)/3)+100),J15)) -> 
C16: ="Recall of Objects-Immediate T = "&IF('Input page School-age'!D22="","",'Input page School-age'!D22)&" " -> Recall of Objects-Immediate T = 59 | D16: =IF('Input page School-age'!D22="","",(15*('Input page School-age'!D22-50)/10)+100) -> 113.5 | F16: ="Recall of Sequential Order T = "&IF('Input page School-age'!D26="","",'Input page School-age'!D26)&" " -> Recall of Sequential Order T = 37 | G16: =IF('Input page School-age'!D26="","",(15*('Input page School-age'!D26-50)/10)+100) -> 80.5 | K16: =IF(J16="","",IF(AND(J16>0,J16<20),(15*((J16-10)/3)+100),J16)) -> 
C17: ="Recall of Objects-Delayed T = "&IF('Input page School-age'!D23="","",'Input page School-age'!D23)&" " -> Recall of Objects-Delayed T = 60 | D17: =IF('Input page School-age'!D23="","",(15*('Input page School-age'!D23-50)/10)+100) -> 115 | H17: =IF(G17="","",IF(AND(G17>0,G17<20),(15*((G17-10)/3)+100),G17)) ->  | K17: =IF(J17="","",IF(AND(J17>0,J17<20),(15*((J17-10)/3)+100),J17)) -> 
E18: =IF(D18="","",IF(AND(D18>0,D18<20),(15*((D18-10)/3)+100),D18)) ->  | H18: =IF(G18="","",IF(AND(G18>0,G18<20),(15*((G18-10)/3)+100),G18)) ->  | K18: =IF(J18="","",IF(AND(J18>0,J18<20),(15*((J18-10)/3)+100),J18)) -> 
E19: =IF(D19="","",IF(AND(D19>0,D19<20),(15*((D19-10)/3)+100),D19)) ->  | H19: =IF(G19="","",IF(AND(G19>0,G19<20),(15*((G19-10)/3)+100),G19)) ->  | K19: =IF(J19="","",IF(AND(J19>0,J19<20),(15*((J19-10)/3)+100),J19)) ->  | Q19: =IF(COUNT(G14:G19)=0,"",ROUND(AVERAGE(G14:G19),0)) -> 86 | R19: =IF(COUNT(J14:J19)=0,"",ROUND(AVERAGE(J14:J19),0)) -> 105 | S19: =IF(COUNT(P14:R19)=0,"",ROUND(AVERAGE(P14:R19),0)) -> 99
C20: ="High/Low Cell Average = "&IF(COUNT(D22:D27)=0,"",ROUND(AVERAGE(E22:E27),0)) -> High/Low Cell Average = | D20: SS | F20: ="High/Medium Cell Average = "&IF(COUNT(G22:G27)=0,"",ROUND(AVERAGE(G22:G27),0)) -> High/Medium Cell Average = | G20: SS | I20: ="High/High Cell Average = "&IF(COUNT(J22:J27)=0,"",ROUND(AVERAGE(J22:J27),0)) -> High/High Cell Average = 87 | J20: SS
D21: Score | G21: Score | J21: Score
B22: HIGH | E22: =IF(D22="","",IF(AND(D22>0,D22<20),(15*((D22-10)/3)+100),D22)) ->  | F22: ="Verbal Comprehension T = "&IF('Input page School-age'!D54="","",'Input page School-age'!D54)&" " -> Verbal Comprehension T = | G22: =IF('Input page School-age'!D54="","",(15*('Input page School-age'!D54-50)/10)+100) ->  | I22: ="Verbal Similarities T = "&IF('Input page School-age'!D12="","",'Input page School-age'!D12)&" " -> Verbal Similarities T = 40 | J22: =IF('Input page School-age'!D12="","",(15*('Input page School-age'!D12-50)/10)+100) -> 85 | L22: ="High Cultural Loading = "&S27 -> High Cultural Loading = 87 | P22: =IF(COUNT(D22:D27)=0,"",ROUND(AVERAGE(D22:D27),0)) -> 
F23: ="Naming Vocabulary T = "&IF('Input page School-age'!D56="","",'Input page School-age'!D56)&" " -> Naming Vocabulary T = | G23: =IF('Input page School-age'!D56="","",(15*('Input page School-age'!D56-50)/10)+100) ->  | I23: ="Word Definitions T = "&IF('Input page School-age'!D9="","",'Input page School-age'!D9)&" " -> Word Definitions T = 43 | J23: =IF('Input page School-age'!D9="","",(15*('Input page School-age'!D9-50)/10)+100) -> 89.5
H24: =IF(G24="","",IF(AND(G24>0,G24<20),(15*((G24-10)/3)+100),G24)) ->  | K24: =IF(J24="","",IF(AND(J24>0,J24<20),(15*((J24-10)/3)+100),J24)) -> 
H25: =IF(G25="","",IF(AND(G25>0,G25<20),(15*((G25-10)/3)+100),G25)) ->  | K25: =IF(J25="","",IF(AND(J25>0,J25<20),(15*((J25-10)/3)+100),J25)) -> 
H26: =IF(G26="","",IF(AND(G26>0,G26<20),(15*((G26-10)/3)+100),G26)) ->  | K26: =IF(J26="","",IF(AND(J26>0,J26<20),(15*((J26-10)/3)+100),J26)) -> 
H27: =IF(G27="","",IF(AND(G27>0,G27<20),(15*((G27-10)/3)+100),G27)) ->  | K27: =IF(J27="","",IF(AND(J27>0,J27<20),(15*((J27-10)/3)+100),J27)) ->  | Q27: =IF(COUNT(G22:G27)=0,"",ROUND(AVERAGE(G22:G27),0)) ->  | R27: =IF(COUNT(J22:J27)=0,"",ROUND(AVERAGE(J22:J27),0)) -> 87 | S27: =IF(COUNT(P22:R27)=0,"",ROUND(AVERAGE(P22:R27),0)) -> 87
C28: ="Low Linguistic Loading = "&P28 -> Low Linguistic Loading = 101 | F28: ="Medium Linguistic Loading = "&Q28 -> Medium Linguistic Loading = 93 | I28: ="High Linguistic Loading = "&S28 -> High Linguistic Loading = 93 | P28: =ROUND(AVERAGE(P6:P27),0) -> 101 | Q28: =ROUND(AVERAGE(Q6:Q27),0) -> 93 | R28: =ROUND(AVERAGE(R6:R27),0) -> 92 | S28: =ROUND(AVERAGE(S6:S27),0) -> 93
C29: Adapted from Flanagan, D. P., Ortiz, S. O., & Alfonso, V. (2007). Essentials of Cross-Battery Assessment, Second Edition. New York: John Wiley & Sons.
D32: =F4 -> Low/Medium Cell Average = 100 | G32: =I4 -> Low/High Cell Average = 85
D33: =F12 -> Medium/Medium Cell Average = 86 | G33: =I12 -> Medium/High Cell Average = 105
C34: =C20 -> High/Low Cell Average = | D34: =F20 -> High/Medium Cell Average = | G34: =I20 -> High/High Cell Average = 87
D37: Low/Low | F37: =IF(COUNT(D6:D11)=0,"",ROUND(AVERAGE(D6:D11),0)) -> 95
D38: Low/Medium | F38: =IF(COUNT(G6:G11)=0,"",ROUND(AVERAGE(G6:G11),0)) -> 100
D39: Low/High | F39: =IF(COUNT(J6:J11)=0,"",ROUND(AVERAGE(J6:J11),0)) -> 85
D40: Medium/Low | F40: =IF(COUNT(D14:D19)=0,"",ROUND(AVERAGE(D14:D19),0)) -> 106
D41: Medium/Medium | F41: =IF(COUNT(G14:G19)=0,"",ROUND(AVERAGE(G14:G19),0)) -> 86
D42: Medium/High | F42: =IF(COUNT(J14:J19)=0,"",ROUND(AVERAGE(J14:J19),0)) -> 105
D43: High/Low | F43: =IF(COUNT(D22:D27)=0,"",ROUND(AVERAGE(E22:E27),0)) -> 
D44: High/Medium | F44: =IF(COUNT(G22:G27)=0,"",ROUND(AVERAGE(G22:G27),0)) -> 
D45: High/High | F45: =IF(COUNT(J22:J27)=0,"",ROUND(AVERAGE(J22:J27),0)) -> 87
